Unique Reference Number,Vendor Name,Head of Service,Cost Centre Desc,Subj Mapping 1,Subj Mapping 2,Subjective  Desc,Line Amount,Capital/Revenue,GL Posting Date,Directorate
WC52-0001,1ST HAND CARE LTD,Commissioning,OP COMMISSIONING,Third Party Payments,Private Contractor Fees,73372-DOMICILIARY CARE,552.00,Revenue,27/01/2015,Social Care & Inclusion
WC52-0002,1ST HAND CARE LTD,Commissioning,OP COMMISSIONING,Third Party Payments,Private Contractor Fees,73372-DOMICILIARY CARE,"9,201.44",Revenue,27/01/2015,Social Care & Inclusion
WC52-0003,1ST HAND CARE LTD,Commissioning,OP COMMISSIONING,Third Party Payments,Private Contractor Fees,73372-DOMICILIARY CARE,"15,084.77",Revenue,06/01/2015,Social Care & Inclusion
WC52-0004,247 CARS (WILLENHALL) LIMITED,Educational Support,SCHOOL TRANSPORT,Transport,Hire,52000-WITH DRIVER-HIRE OF VEHICLES,252.00,Revenue,16/01/2015,Childrens
WC52-0005,247 CARS (WILLENHALL) LIMITED,Educational Support,SCHOOL TRANSPORT,Transport,Hire,52000-WITH DRIVER-HIRE OF VEHICLES,288.00,Revenue,16/01/2015,Childrens
WC52-0006,247 CARS (WILLENHALL) LIMITED,Educational Support,SCHOOL TRANSPORT,Transport,Hire,52000-WITH DRIVER-HIRE OF VEHICLES,300.00,Revenue,16/01/2015,Childrens
WC52-0007,247 CARS (WILLENHALL) LIMITED,Educational Support,SCHOOL TRANSPORT,Transport,Hire,52000-WITH DRIVER-HIRE OF VEHICLES,324.00,Revenue,16/01/2015,Childrens
WC52-0008,247 CARS (WILLENHALL) LIMITED,Educational Support,SCHOOL TRANSPORT,Transport,Hire,52000-WITH DRIVER-HIRE OF VEHICLES,324.00,Revenue,16/01/2015,Childrens
WC52-0009,247 CARS (WILLENHALL) LIMITED,Educational Support,SCHOOL TRANSPORT,Transport,Hire,52000-WITH DRIVER-HIRE OF VEHICLES,420.00,Revenue,16/01/2015,Childrens
WC52-0010,247 CARS (WILLENHALL) LIMITED,Educational Support,SCHOOL TRANSPORT,Transport,Hire,52000-WITH DRIVER-HIRE OF VEHICLES,444.00,Revenue,14/01/2015,Childrens
WC52-0011,247 CARS (WILLENHALL) LIMITED,Educational Support,SCHOOL TRANSPORT,Transport,Hire,52000-WITH DRIVER-HIRE OF VEHICLES,444.00,Revenue,16/01/2015,Childrens
WC52-0012,247 CARS (WILLENHALL) LIMITED,Educational Support,SCHOOL TRANSPORT,Transport,Hire,52000-WITH DRIVER-HIRE OF VEHICLES,510.00,Revenue,14/01/2015,Childrens
WC52-0013,247 CARS (WILLENHALL) LIMITED,Educational Support,SCHOOL TRANSPORT,Transport,Hire,52000-WITH DRIVER-HIRE OF VEHICLES,540.00,Revenue,14/01/2015,Childrens
WC52-0014,247 CARS (WILLENHALL) LIMITED,Educational Support,SCHOOL TRANSPORT,Transport,Hire,52000-WITH DRIVER-HIRE OF VEHICLES,744.00,Revenue,14/01/2015,Childrens
WC52-0015,247 CARS (WILLENHALL) LIMITED,Educational Support,SCHOOL TRANSPORT,Transport,Hire,52000-WITH DRIVER-HIRE OF VEHICLES,750.00,Revenue,14/01/2015,Childrens
WC52-0016,247 CARS (WILLENHALL) LIMITED,Educational Support,SCHOOL TRANSPORT,Transport,Hire,52000-WITH DRIVER-HIRE OF VEHICLES,750.00,Revenue,14/01/2015,Childrens
WC52-0017,247 CARS (WILLENHALL) LIMITED,Educational Support,SCHOOL TRANSPORT,Transport,Hire,52000-WITH DRIVER-HIRE OF VEHICLES,954.00,Revenue,14/01/2015,Childrens
WC52-0018,A 2 Z TAXIS (A2Z CARS),Educational Support,SCHOOL TRANSPORT,Transport,Hire,52000-WITH DRIVER-HIRE OF VEHICLES,"1,666.00",Revenue,21/01/2015,Childrens
WC52-0019,A 2 Z TAXIS (A2Z CARS),Educational Support,SCHOOL TRANSPORT,Transport,Hire,52000-WITH DRIVER-HIRE OF VEHICLES,"2,380.00",Revenue,06/01/2015,Childrens
WC52-0020,REDACTED,WACC & WLLA,PRINCIPAL MARKETING,Supplies & Services,"Equip,Furniture & Materials",60500-GENERAL MATERIALS,40.00,Revenue,28/01/2015,Neighbourhood Services
WC52-0021,REDACTED,WACC & WLLA,PRINCIPAL MARKETING,Supplies & Services,"Equip,Furniture & Materials",60500-GENERAL MATERIALS,320.00,Revenue,09/01/2015,Neighbourhood Services
WC52-0022,REDACTED,WACC & WLLA,AP FINANCE & RESOURCES STAFF DEVELOPMENT,Supplies & Services,"Equip,Furniture & Materials",60500-GENERAL MATERIALS,343.00,Revenue,28/01/2015,Neighbourhood Services
WC52-0023,A D T FIRE AND SECURITY PLC,Property Services,CENTRALISED MAINTENANCE,Third Party Payments,Private Contractor Fees,73025-PROFESSIONAL SERVICES-PRIV CONTRACTOR & OTHER AGENCIES,-323.00,Revenue,22/01/2015,Regeneration
WC52-0024,A D T FIRE AND SECURITY PLC,Property Services,CHALLENGE BUILDING,Premises,Premises-Repairs & Maintenance,"40000-REPAIRS,ALTERATIONS & MAINTENANCE-PREM",304.68,Revenue,21/01/2015,Regeneration
WC52-0025,A D T FIRE AND SECURITY PLC,Property Services,CENTRALISED MAINTENANCE,Third Party Payments,Private Contractor Fees,73025-PROFESSIONAL SERVICES-PRIV CONTRACTOR & OTHER AGENCIES,323.00,Revenue,22/01/2015,Regeneration
WC52-0026,A D T FIRE AND SECURITY PLC,Libraries Heritage & Arts,LIBRARY OPERATIONS CENTRAL,Supplies & Services,"Equip,Furniture & Materials",60008-MAINTENANCE-FURNITURE & EQUIPMENT,325.04,Revenue,13/01/2015,Neighbourhood Services
WC52-0027,A D T FIRE AND SECURITY PLC,Housing Services,TENANCY SERVICE,Premises,Premises-Repairs & Maintenance,"40000-REPAIRS,ALTERATIONS & MAINTENANCE-PREM",513.78,Revenue,28/01/2015,Resources
WC52-0028,A D T FIRE AND SECURITY PLC,Housing Services,TENANCY SERVICE,Premises,Premises-Repairs & Maintenance,"40000-REPAIRS,ALTERATIONS & MAINTENANCE-PREM",602.00,Revenue,19/01/2015,Resources
WC52-0029,A D T FIRE AND SECURITY PLC,Property Services,CENTRALISED MAINTENANCE,Third Party Payments,Private Contractor Fees,73025-PROFESSIONAL SERVICES-PRIV CONTRACTOR & OTHER AGENCIES,723.38,Revenue,19/01/2015,Regeneration
WC52-0030,A D T FIRE AND SECURITY PLC,Libraries Heritage & Arts,LIBRARY OPERATIONS CENTRAL,Supplies & Services,"Equip,Furniture & Materials",60008-MAINTENANCE-FURNITURE & EQUIPMENT,798.00,Revenue,13/01/2015,Neighbourhood Services
WC52-0031,A D T FIRE AND SECURITY PLC,Property Services,CENTRALISED MAINTENANCE,Third Party Payments,Private Contractor Fees,73025-PROFESSIONAL SERVICES-PRIV CONTRACTOR & OTHER AGENCIES,912.62,Revenue,29/01/2015,Regeneration
WC52-0032,A D T FIRE AND SECURITY PLC,Property Services,CENTRALISED MAINTENANCE,Third Party Payments,Private Contractor Fees,73002-SECURITY-PRIV CONTRACTOR FEES,"1,012.66",Revenue,29/01/2015,Regeneration
WC52-0033,A D T FIRE AND SECURITY PLC,Housing Services,TENANCY SERVICE,Premises,Premises-Repairs & Maintenance,"40000-REPAIRS,ALTERATIONS & MAINTENANCE-PREM","1,513.00",Revenue,28/01/2015,Resources
WC52-0034,A D T FIRE AND SECURITY PLC,Property Services,CENTRALISED MAINTENANCE,Third Party Payments,Private Contractor Fees,73025-PROFESSIONAL SERVICES-PRIV CONTRACTOR & OTHER AGENCIES,"1,797.20",Revenue,26/01/2015,Regeneration
WC52-0035,A D T FIRE AND SECURITY PLC,Housing Services,TENANCY SERVICE,Premises,Premises-Repairs & Maintenance,"40000-REPAIRS,ALTERATIONS & MAINTENANCE-PREM","3,272.33",Revenue,15/01/2015,Resources
WC52-0036,A F BLAKEMORE & SON LTD,Leisure & Community Health,BLOXWICH LEISURE CENTRE,Supplies & Services,Provisions,61002-DRY FOODS-PROVISIONS,192.34,Revenue,26/01/2015,Neighbourhood Services
WC52-0037,A F BLAKEMORE & SON LTD,Leisure & Community Health,BLOXWICH LEISURE CENTRE,Supplies & Services,Provisions,61009-BEVERAGES-PROVISIONS,224.14,Revenue,26/01/2015,Neighbourhood Services
WC52-0038,A F BLAKEMORE & SON LTD,Provider,REABLEMENT TEAM - HOLLY BANK,Supplies & Services,Provisions,61016-FOOD AND BEVERAGES-PROVISIONS,257.22,Revenue,28/01/2015,Social Care & Inclusion
WC52-0039,A F BLAKEMORE & SON LTD,Provider,GOSCOTE,Supplies & Services,Provisions,61305-CATERING,263.36,Revenue,20/01/2015,Social Care & Inclusion
WC52-0040,A F BLAKEMORE & SON LTD,Provider,GOSCOTE,Supplies & Services,Provisions,61305-CATERING,265.92,Revenue,01/01/2015,Social Care & Inclusion
WC52-0041,A F BLAKEMORE & SON LTD,Provider,REABLEMENT TEAM - HOLLY BANK,Supplies & Services,Provisions,61016-FOOD AND BEVERAGES-PROVISIONS,365.51,Revenue,28/01/2015,Social Care & Inclusion
WC52-0042,A F BLAKEMORE & SON LTD,Leisure & Community Health,OAK PARK,Supplies & Services,Provisions,61008-CONFECTIONERY/SNACKS-PROVISIONS,437.72,Revenue,27/01/2015,Neighbourhood Services
WC52-0043,A F BLAKEMORE & SON LTD,Leisure & Community Health,WALSALL TOWN HALL,Supplies & Services,Provisions,61016-FOOD AND BEVERAGES-PROVISIONS,663.93,Revenue,07/01/2015,Neighbourhood Services
WC52-0044,A F BLAKEMORE & SON LTD,Leisure & Community Health,OAK PARK,Supplies & Services,Provisions,61008-CONFECTIONERY/SNACKS-PROVISIONS,729.78,Revenue,09/01/2015,Neighbourhood Services
WC52-0045,A F BLAKEMORE & SON LTD,Provider,REABLEMENT TEAM - HOLLY BANK,Supplies & Services,Provisions,61016-FOOD AND BEVERAGES-PROVISIONS,885.79,Revenue,16/01/2015,Social Care & Inclusion
WC52-0046,REDACTED,Corporate Parenting,INTERNAL FOSTER CARE PROVISION,Third Party Payments,Private Contractor Fees,74006-HOLIDAY/CHRISTMAS ALLOWANCE-FOSTER CARERS-OTH AGENCY PROVISION,333.92,Revenue,19/01/2015,Childrens
WC52-0047,A KARIMS CHUCKERY PHARMACY,Public Health,ALCOHOL & DRUGS MISUSE/TOBACCO CONTROL,Supplies & Services,Services,63000-PROFESSIONAL FEES AND SERVICES,50.00,Revenue,20/01/2015,Neighbourhood Services
WC52-0048,A KARIMS CHUCKERY PHARMACY,Public Health,SEXUAL HEALTH,Supplies & Services,Services,63000-PROFESSIONAL FEES AND SERVICES,136.35,Revenue,20/01/2015,Neighbourhood Services
WC52-0049,A KARIMS CHUCKERY PHARMACY,Public Health,PUBLIC HEALTH BUSINESS SUPPORT,Third Party Payments,Private Contractor Fees,70000-SOCIAL SERVICES-FEES TO VOLUNTARY BODIES,857.98,Revenue,20/01/2015,Neighbourhood Services
WC52-0050,A KARIMS CHUCKERY PHARMACY,Public Health,HEALTH CHECKS,Supplies & Services,Services,63000-PROFESSIONAL FEES AND SERVICES,"5,243.54",Revenue,20/01/2015,Neighbourhood Services
WC52-0051,REDACTED,Corporate Parenting,INTERNAL FOSTER CARE PROVISION,Supplies & Services,Other Supplies & Services,62515-MISCELLANEOUS SUPPLIES,896.24,Revenue,05/01/2015,Childrens
WC52-0052,REDACTED,Corporate Parenting,INTERNAL FOSTER CARE PROVISION,Third Party Payments,Private Contractor Fees,74006-HOLIDAY/CHRISTMAS ALLOWANCE-FOSTER CARERS-OTH AGENCY PROVISION,968.32,Revenue,05/01/2015,Childrens
WC52-0053,A1 EXPRESS TAXIS,Housing Services,TENANCY SERVICE,Transport,Hire,52000-WITH DRIVER-HIRE OF VEHICLES,295.00,Revenue,08/01/2015,Resources
WC52-0054,A4E LTD#3,Strategic Development,INDIVIDUAL BUDGET - SUPPORT,Transfer Payments,Transfer Payments,76423-DIRECT PAYMENTS SUPPORT,"2,184.00",Revenue,26/01/2015,Social Care & Inclusion
WC52-0055,AAA BEE JAY TRAVEL,Educational Support,SCHOOL TRANSPORT,Transport,Hire,52000-WITH DRIVER-HIRE OF VEHICLES,430.00,Revenue,13/01/2015,Childrens
WC52-0056,REDACTED,Specialist Services Management,FAMILY SUPPORT - DIRECT PAYMENTS,Transfer Payments,Transfer Payments,76422-DIRECT PAYMENTS TO SOCIAL SERVICES CLIENTS,345.24,Revenue,12/01/2015,Childrens
WC52-0057,ABACUS FOSTERING LTD,Corporate Parenting,EXTERNAL FOSTER CARE PROVISION,Third Party Payments,Private Contractor Fees,74037-INDEPENDENT FOSTER CARE-OTH AGENCY PROVISION,"3,542.86",Revenue,21/01/2015,Childrens
WC52-0058,ABACUS FOSTERING LTD,Corporate Parenting,EXTERNAL FOSTER CARE PROVISION,Third Party Payments,Private Contractor Fees,74037-INDEPENDENT FOSTER CARE-OTH AGENCY PROVISION,"3,852.86",Revenue,21/01/2015,Childrens
WC52-0059,REDACTED,Corporate Parenting,INTERNAL FOSTER CARE PROVISION,Third Party Payments,Private Contractor Fees,74006-HOLIDAY/CHRISTMAS ALLOWANCE-FOSTER CARERS-OTH AGENCY PROVISION,639.40,Revenue,19/01/2015,Childrens
WC52-0060,ABBEY COURT NURSING & RESIDEN,Commissioning,OP COMMISSIONING,Third Party Payments,Private Contractor Fees,73373-RESIDENTIAL & NURSING CARE PLACEMENTS,"1,494.00",Revenue,06/01/2015,Social Care & Inclusion
WC52-0061,ABBEY COURT NURSING & RESIDEN,Commissioning,OP COMMISSIONING,Third Party Payments,Private Contractor Fees,73373-RESIDENTIAL & NURSING CARE PLACEMENTS,"1,494.00",Revenue,20/01/2015,Social Care & Inclusion
WC52-0062,ABBEY HEALTHCARE HOMES LTD,Commissioning,CONCESSIONARY TRAVEL,Third Party Payments,Private Contractor Fees,73373-RESIDENTIAL & NURSING CARE PLACEMENTS,"2,243.60",Revenue,13/01/2015,Social Care & Inclusion
WC52-0063,ABBEYMERE CARE CENTRE,Commissioning,OP COMMISSIONING,Third Party Payments,Private Contractor Fees,73373-RESIDENTIAL & NURSING CARE PLACEMENTS,"1,528.87",Revenue,13/01/2015,Social Care & Inclusion
WC52-0064,ABC DAY NURSERY (WILLENHALL) LIMITED,Education,EARLY YEARS - 2 YR OLDS,Third Party Payments,Grants to Other Orgs,66505-OTHER-GRANTS TO OTHER ORGS,"3,855.54",Revenue,23/01/2015,Childrens
WC52-0065,ABC DAY NURSERY (WILLENHALL) LIMITED,Education,EARLY YEARS - 2 YR OLDS,Third Party Payments,Grants to Other Orgs,66505-OTHER-GRANTS TO OTHER ORGS,"23,957.58",Revenue,23/01/2015,Childrens
WC52-0066,ABC FOSTERING,Corporate Parenting,EXTERNAL FOSTER CARE PROVISION,Third Party Payments,Private Contractor Fees,74037-INDEPENDENT FOSTER CARE-OTH AGENCY PROVISION,"2,980.34",Revenue,16/01/2015,Childrens
WC52-0067,ABC FOSTERING,Corporate Parenting,EXTERNAL FOSTER CARE PROVISION,Third Party Payments,Private Contractor Fees,74037-INDEPENDENT FOSTER CARE-OTH AGENCY PROVISION,"3,137.20",Revenue,16/01/2015,Childrens
WC52-0068,ABC NURSERY T/A LITTLE STARS LTD,Education,EARLY YEARS - 2 YR OLDS,Third Party Payments,Grants to Other Orgs,66505-OTHER-GRANTS TO OTHER ORGS,953.55,Revenue,16/01/2015,Childrens
WC52-0069,ABC TEACHERS LIMITED,Educational Support,ACCESS TEAM,Employees,Agency,34305-AGENCY STAFF-EMPLOYEES,587.97,Revenue,19/01/2015,Childrens
WC52-0070,ABC TEACHERS LIMITED,Educational Support,ACCESS TEAM,Employees,Agency,34305-AGENCY STAFF-EMPLOYEES,"1,184.95",Revenue,01/01/2015,Childrens
WC52-0071,ABEL ALARM CO LTD,Property Services,CENTRALISED MAINTENANCE,Third Party Payments,Private Contractor Fees,73002-SECURITY-PRIV CONTRACTOR FEES,758.00,Revenue,26/01/2015,Regeneration
WC52-0072,REDACTED,"Access,Assessment & Care Management",LD COMMISSIONING,Transfer Payments,Transfer Payments,76422-DIRECT PAYMENTS TO SOCIAL SERVICES CLIENTS,"2,357.99",Revenue,12/01/2015,Social Care & Inclusion
WC52-0073,ABLEWELL CARS,Educational Support,SCHOOL TRANSPORT,Transport,Hire,52000-WITH DRIVER-HIRE OF VEHICLES,265.00,Revenue,13/01/2015,Childrens
WC52-0074,ABU BAKR NURSERY,Education,EARLY YEARS - 2 YR OLDS,Third Party Payments,Grants to Other Orgs,66505-OTHER-GRANTS TO OTHER ORGS,"7,393.68",Revenue,23/01/2015,Childrens
WC52-0075,ACCORD HOUSING ASSOCIATION LTD#135,Commissioning,OP COMMISSIONING,Third Party Payments,Private Contractor Fees,73372-DOMICILIARY CARE,"-6,573.62",Revenue,15/01/2015,Social Care & Inclusion
WC52-0076,ACCORD HOUSING ASSOCIATION LTD#135,Commissioning,OP COMMISSIONING,Third Party Payments,Private Contractor Fees,73372-DOMICILIARY CARE,321.76,Revenue,06/01/2015,Social Care & Inclusion
WC52-0077,ACCORD HOUSING ASSOCIATION LTD#135,Commissioning,OP COMMISSIONING,Third Party Payments,Private Contractor Fees,73372-DOMICILIARY CARE,321.76,Revenue,15/01/2015,Social Care & Inclusion
WC52-0078,ACCORD HOUSING ASSOCIATION LTD#135,Mental Health,MH COMMISSIONING,Third Party Payments,Private Contractor Fees,73372-DOMICILIARY CARE,354.28,Revenue,06/01/2015,Social Care & Inclusion
WC52-0079,ACCORD HOUSING ASSOCIATION LTD#135,Mental Health,MH COMMISSIONING,Third Party Payments,Private Contractor Fees,73372-DOMICILIARY CARE,354.28,Revenue,15/01/2015,Social Care & Inclusion
WC52-0080,ACCORD HOUSING ASSOCIATION LTD#135,"Access,Assessment & Care Management",LD COMMISSIONING,Third Party Payments,Private Contractor Fees,73374-SUPPORTED & OTHER ACCOMMODATION,411.20,Revenue,01/01/2015,Social Care & Inclusion
WC52-0081,ACCORD HOUSING ASSOCIATION LTD#135,"Access,Assessment & Care Management",LD COMMISSIONING,Third Party Payments,Private Contractor Fees,73374-SUPPORTED & OTHER ACCOMMODATION,411.20,Revenue,29/01/2015,Social Care & Inclusion
WC52-0082,ACCORD HOUSING ASSOCIATION LTD#135,Commissioning,OP COMMISSIONING,Third Party Payments,Private Contractor Fees,73372-DOMICILIARY CARE,411.92,Revenue,06/01/2015,Social Care & Inclusion
WC52-0083,ACCORD HOUSING ASSOCIATION LTD#135,Commissioning,OP COMMISSIONING,Third Party Payments,Private Contractor Fees,73372-DOMICILIARY CARE,411.92,Revenue,15/01/2015,Social Care & Inclusion
WC52-0084,ACCORD HOUSING ASSOCIATION LTD#135,Commissioning,OP COMMISSIONING,Third Party Payments,Private Contractor Fees,73372-DOMICILIARY CARE,412.52,Revenue,15/01/2015,Social Care & Inclusion
WC52-0085,ACCORD HOUSING ASSOCIATION LTD#135,Commissioning,OP COMMISSIONING,Third Party Payments,Private Contractor Fees,73372-DOMICILIARY CARE,463.60,Revenue,01/01/2015,Social Care & Inclusion
WC52-0086,ACCORD HOUSING ASSOCIATION LTD#135,Commissioning,OP COMMISSIONING,Third Party Payments,Private Contractor Fees,73372-DOMICILIARY CARE,463.60,Revenue,29/01/2015,Social Care & Inclusion
WC52-0087,ACCORD HOUSING ASSOCIATION LTD#135,Commissioning,OP COMMISSIONING,Third Party Payments,Private Contractor Fees,73372-DOMICILIARY CARE,492.40,Revenue,06/01/2015,Social Care & Inclusion
WC52-0088,ACCORD HOUSING ASSOCIATION LTD#135,Commissioning,OP COMMISSIONING,Third Party Payments,Private Contractor Fees,73372-DOMICILIARY CARE,492.40,Revenue,15/01/2015,Social Care & Inclusion
WC52-0089,ACCORD HOUSING ASSOCIATION LTD#135,Commissioning,OP COMMISSIONING,Third Party Payments,Private Contractor Fees,73372-DOMICILIARY CARE,502.20,Revenue,06/01/2015,Social Care & Inclusion
WC52-0090,ACCORD HOUSING ASSOCIATION LTD#135,Commissioning,OP COMMISSIONING,Third Party Payments,Private Contractor Fees,73372-DOMICILIARY CARE,502.32,Revenue,01/01/2015,Social Care & Inclusion
WC52-0091,ACCORD HOUSING ASSOCIATION LTD#135,Commissioning,OP COMMISSIONING,Third Party Payments,Private Contractor Fees,73372-DOMICILIARY CARE,502.32,Revenue,29/01/2015,Social Care & Inclusion
WC52-0092,ACCORD HOUSING ASSOCIATION LTD#135,Commissioning,OP COMMISSIONING,Third Party Payments,Private Contractor Fees,73372-DOMICILIARY CARE,531.32,Revenue,06/01/2015,Social Care & Inclusion
WC52-0093,ACCORD HOUSING ASSOCIATION LTD#135,Commissioning,OP COMMISSIONING,Third Party Payments,Private Contractor Fees,73372-DOMICILIARY CARE,531.32,Revenue,15/01/2015,Social Care & Inclusion
WC52-0094,ACCORD HOUSING ASSOCIATION LTD#135,Commissioning,OP COMMISSIONING,Third Party Payments,Private Contractor Fees,73372-DOMICILIARY CARE,592.80,Revenue,07/01/2015,Social Care & Inclusion
WC52-0095,ACCORD HOUSING ASSOCIATION LTD#135,Commissioning,OP COMMISSIONING,Third Party Payments,Private Contractor Fees,73372-DOMICILIARY CARE,592.80,Revenue,15/01/2015,Social Care & Inclusion
WC52-0096,ACCORD HOUSING ASSOCIATION LTD#135,Commissioning,OP COMMISSIONING,Third Party Payments,Private Contractor Fees,73372-DOMICILIARY CARE,595.44,Revenue,06/01/2015,Social Care & Inclusion
WC52-0097,ACCORD HOUSING ASSOCIATION LTD#135,Commissioning,OP COMMISSIONING,Third Party Payments,Private Contractor Fees,73372-DOMICILIARY CARE,595.44,Revenue,15/01/2015,Social Care & Inclusion
WC52-0098,ACCORD HOUSING ASSOCIATION LTD#135,Commissioning,OP COMMISSIONING,Third Party Payments,Private Contractor Fees,73372-DOMICILIARY CARE,618.00,Revenue,06/01/2015,Social Care & Inclusion
WC52-0099,ACCORD HOUSING ASSOCIATION LTD#135,Commissioning,OP COMMISSIONING,Third Party Payments,Private Contractor Fees,73372-DOMICILIARY CARE,656.88,Revenue,06/01/2015,Social Care & Inclusion
WC52-0100,ACCORD HOUSING ASSOCIATION LTD#135,Commissioning,OP COMMISSIONING,Third Party Payments,Private Contractor Fees,73372-DOMICILIARY CARE,656.88,Revenue,15/01/2015,Social Care & Inclusion
WC52-0101,ACCORD HOUSING ASSOCIATION LTD#135,Commissioning,CONCESSIONARY TRAVEL,Third Party Payments,Private Contractor Fees,73374-SUPPORTED & OTHER ACCOMMODATION,657.08,Revenue,01/01/2015,Social Care & Inclusion
WC52-0102,ACCORD HOUSING ASSOCIATION LTD#135,Commissioning,CONCESSIONARY TRAVEL,Third Party Payments,Private Contractor Fees,73374-SUPPORTED & OTHER ACCOMMODATION,657.08,Revenue,29/01/2015,Social Care & Inclusion
WC52-0103,ACCORD HOUSING ASSOCIATION LTD#135,Commissioning,OP COMMISSIONING,Third Party Payments,Private Contractor Fees,73372-DOMICILIARY CARE,697.64,Revenue,01/01/2015,Social Care & Inclusion
WC52-0104,ACCORD HOUSING ASSOCIATION LTD#135,Commissioning,OP COMMISSIONING,Third Party Payments,Private Contractor Fees,73372-DOMICILIARY CARE,697.64,Revenue,16/01/2015,Social Care & Inclusion
WC52-0105,ACCORD HOUSING ASSOCIATION LTD#135,Commissioning,OP COMMISSIONING,Third Party Payments,Private Contractor Fees,73372-DOMICILIARY CARE,721.28,Revenue,01/01/2015,Social Care & Inclusion
WC52-0106,ACCORD HOUSING ASSOCIATION LTD#135,Commissioning,OP COMMISSIONING,Third Party Payments,Private Contractor Fees,73372-DOMICILIARY CARE,721.28,Revenue,29/01/2015,Social Care & Inclusion
WC52-0107,ACCORD HOUSING ASSOCIATION LTD#135,Commissioning,OP COMMISSIONING,Third Party Payments,Private Contractor Fees,73372-DOMICILIARY CARE,721.28,Revenue,29/01/2015,Social Care & Inclusion
WC52-0108,ACCORD HOUSING ASSOCIATION LTD#135,Commissioning,OP COMMISSIONING,Third Party Payments,Private Contractor Fees,73372-DOMICILIARY CARE,750.24,Revenue,01/01/2015,Social Care & Inclusion
WC52-0109,ACCORD HOUSING ASSOCIATION LTD#135,Commissioning,OP COMMISSIONING,Third Party Payments,Private Contractor Fees,73372-DOMICILIARY CARE,772.56,Revenue,06/01/2015,Social Care & Inclusion
WC52-0110,ACCORD HOUSING ASSOCIATION LTD#135,Commissioning,OP COMMISSIONING,Third Party Payments,Private Contractor Fees,73372-DOMICILIARY CARE,772.56,Revenue,29/01/2015,Social Care & Inclusion
WC52-0111,ACCORD HOUSING ASSOCIATION LTD#135,Commissioning,OP COMMISSIONING,Third Party Payments,Private Contractor Fees,73372-DOMICILIARY CARE,775.76,Revenue,06/01/2015,Social Care & Inclusion
WC52-0112,ACCORD HOUSING ASSOCIATION LTD#135,Commissioning,OP COMMISSIONING,Third Party Payments,Private Contractor Fees,73372-DOMICILIARY CARE,775.76,Revenue,15/01/2015,Social Care & Inclusion
WC52-0113,ACCORD HOUSING ASSOCIATION LTD#135,Commissioning,OP COMMISSIONING,Third Party Payments,Private Contractor Fees,73372-DOMICILIARY CARE,811.20,Revenue,06/01/2015,Social Care & Inclusion
WC52-0114,ACCORD HOUSING ASSOCIATION LTD#135,Commissioning,OP COMMISSIONING,Third Party Payments,Private Contractor Fees,73372-DOMICILIARY CARE,811.20,Revenue,15/01/2015,Social Care & Inclusion
WC52-0115,ACCORD HOUSING ASSOCIATION LTD#135,Commissioning,OP COMMISSIONING,Third Party Payments,Private Contractor Fees,73372-DOMICILIARY CARE,862.96,Revenue,29/01/2015,Social Care & Inclusion
WC52-0116,ACCORD HOUSING ASSOCIATION LTD#135,Commissioning,OP COMMISSIONING,Third Party Payments,Private Contractor Fees,73372-DOMICILIARY CARE,"1,133.20",Revenue,01/01/2015,Social Care & Inclusion
WC52-0117,ACCORD HOUSING ASSOCIATION LTD#135,Commissioning,OP COMMISSIONING,Third Party Payments,Private Contractor Fees,73372-DOMICILIARY CARE,"1,133.20",Revenue,15/01/2015,Social Care & Inclusion
WC52-0118,ACCORD HOUSING ASSOCIATION LTD#135,Commissioning,OP COMMISSIONING,Third Party Payments,Private Contractor Fees,73372-DOMICILIARY CARE,"1,133.20",Revenue,29/01/2015,Social Care & Inclusion
WC52-0119,ACCORD HOUSING ASSOCIATION LTD#135,Commissioning,OP COMMISSIONING,Third Party Payments,Private Contractor Fees,73372-DOMICILIARY CARE,"1,144.04",Revenue,06/01/2015,Social Care & Inclusion
WC52-0120,ACCORD HOUSING ASSOCIATION LTD#135,Commissioning,OP COMMISSIONING,Third Party Payments,Private Contractor Fees,73372-DOMICILIARY CARE,"1,144.04",Revenue,16/01/2015,Social Care & Inclusion
WC52-0121,ACCORD HOUSING ASSOCIATION LTD#135,Commissioning,OP COMMISSIONING,Third Party Payments,Private Contractor Fees,73372-DOMICILIARY CARE,"1,159.20",Revenue,06/01/2015,Social Care & Inclusion
WC52-0122,ACCORD HOUSING ASSOCIATION LTD#135,Commissioning,OP COMMISSIONING,Third Party Payments,Private Contractor Fees,73372-DOMICILIARY CARE,"1,159.20",Revenue,15/01/2015,Social Care & Inclusion
WC52-0123,ACCORD HOUSING ASSOCIATION LTD#135,Commissioning,OP COMMISSIONING,Third Party Payments,Private Contractor Fees,73372-DOMICILIARY CARE,"1,183.96",Revenue,06/01/2015,Social Care & Inclusion
WC52-0124,ACCORD HOUSING ASSOCIATION LTD#135,Commissioning,OP COMMISSIONING,Third Party Payments,Private Contractor Fees,73372-DOMICILIARY CARE,"1,183.96",Revenue,15/01/2015,Social Care & Inclusion
WC52-0125,ACCORD HOUSING ASSOCIATION LTD#135,Commissioning,OP COMMISSIONING,Third Party Payments,Private Contractor Fees,73372-DOMICILIARY CARE,"1,197.80",Revenue,06/01/2015,Social Care & Inclusion
WC52-0126,ACCORD HOUSING ASSOCIATION LTD#135,Commissioning,OP COMMISSIONING,Third Party Payments,Private Contractor Fees,73372-DOMICILIARY CARE,"1,197.80",Revenue,15/01/2015,Social Care & Inclusion
WC52-0127,ACCORD HOUSING ASSOCIATION LTD#135,Commissioning,OP COMMISSIONING,Third Party Payments,Private Contractor Fees,73372-DOMICILIARY CARE,"1,387.14",Revenue,15/01/2015,Social Care & Inclusion
WC52-0128,ACCORD HOUSING ASSOCIATION LTD#135,Commissioning,OP COMMISSIONING,Third Party Payments,Private Contractor Fees,73372-DOMICILIARY CARE,"1,493.84",Revenue,06/01/2015,Social Care & Inclusion
WC52-0129,ACCORD HOUSING ASSOCIATION LTD#135,Commissioning,OP COMMISSIONING,Third Party Payments,Private Contractor Fees,73372-DOMICILIARY CARE,"1,538.68",Revenue,06/01/2015,Social Care & Inclusion
WC52-0130,ACCORD HOUSING ASSOCIATION LTD#135,Commissioning,OP COMMISSIONING,Third Party Payments,Private Contractor Fees,73372-DOMICILIARY CARE,"1,538.68",Revenue,15/01/2015,Social Care & Inclusion
WC52-0131,ACCORD HOUSING ASSOCIATION LTD#135,Commissioning,OP COMMISSIONING,Third Party Payments,Private Contractor Fees,73374-SUPPORTED & OTHER ACCOMMODATION,"1,584.00",Revenue,06/01/2015,Social Care & Inclusion
WC52-0132,ACCORD HOUSING ASSOCIATION LTD#135,Commissioning,OP COMMISSIONING,Third Party Payments,Private Contractor Fees,73372-DOMICILIARY CARE,"1,584.00",Revenue,15/01/2015,Social Care & Inclusion
WC52-0133,ACCORD HOUSING ASSOCIATION LTD#135,Commissioning,OP COMMISSIONING,Third Party Payments,Private Contractor Fees,73372-DOMICILIARY CARE,"1,584.00",Revenue,15/01/2015,Social Care & Inclusion
WC52-0134,ACCORD HOUSING ASSOCIATION LTD#135,Commissioning,OP COMMISSIONING,Third Party Payments,Private Contractor Fees,73374-SUPPORTED & OTHER ACCOMMODATION,"1,584.00",Revenue,15/01/2015,Social Care & Inclusion
WC52-0135,ACCORD HOUSING ASSOCIATION LTD#135,Commissioning,OP COMMISSIONING,Third Party Payments,Private Contractor Fees,73372-DOMICILIARY CARE,"1,663.64",Revenue,06/01/2015,Social Care & Inclusion
WC52-0136,ACCORD HOUSING ASSOCIATION LTD#135,Commissioning,OP COMMISSIONING,Third Party Payments,Private Contractor Fees,73372-DOMICILIARY CARE,"1,663.64",Revenue,16/01/2015,Social Care & Inclusion
WC52-0137,ACCORD HOUSING ASSOCIATION LTD#135,Commissioning,OP COMMISSIONING,Third Party Payments,Private Contractor Fees,73372-DOMICILIARY CARE,"1,725.68",Revenue,06/01/2015,Social Care & Inclusion
WC52-0138,ACCORD HOUSING ASSOCIATION LTD#135,Commissioning,OP COMMISSIONING,Third Party Payments,Private Contractor Fees,73372-DOMICILIARY CARE,"1,725.68",Revenue,15/01/2015,Social Care & Inclusion
WC52-0139,ACCORD HOUSING ASSOCIATION LTD#135,Commissioning,OP COMMISSIONING,Third Party Payments,Private Contractor Fees,73372-DOMICILIARY CARE,"2,408.32",Revenue,01/01/2015,Social Care & Inclusion
WC52-0140,ACCORD HOUSING ASSOCIATION LTD#135,Commissioning,OP COMMISSIONING,Third Party Payments,Private Contractor Fees,73372-DOMICILIARY CARE,"2,408.32",Revenue,16/01/2015,Social Care & Inclusion
WC52-0141,ACCORD HOUSING ASSOCIATION LTD#135,Public Health,ALCOHOL & DRUGS MISUSE/TOBACCO CONTROL,Supplies & Services,Services,63000-PROFESSIONAL FEES AND SERVICES,"68,846.01",Revenue,12/01/2015,Neighbourhood Services
WC52-0142,ACCORD HOUSING ASSOCIATION LTD#135,Public Health,ALCOHOL & DRUGS MISUSE/TOBACCO CONTROL,Supplies & Services,Services,63000-PROFESSIONAL FEES AND SERVICES,"68,846.01",Revenue,14/01/2015,Neighbourhood Services
WC52-0143,ACE CARE AGENCY,Commissioning,OP COMMISSIONING,Third Party Payments,Private Contractor Fees,73372-DOMICILIARY CARE,323.76,Revenue,08/01/2015,Social Care & Inclusion
WC52-0144,ACE CARE AGENCY,Commissioning,OP COMMISSIONING,Third Party Payments,Private Contractor Fees,73372-DOMICILIARY CARE,323.76,Revenue,22/01/2015,Social Care & Inclusion
WC52-0145,ACE CARE AGENCY,Mental Health,MH COMMISSIONING,Third Party Payments,Private Contractor Fees,73372-DOMICILIARY CARE,404.70,Revenue,08/01/2015,Social Care & Inclusion
WC52-0146,ACE CARE AGENCY,Commissioning,OP COMMISSIONING,Third Party Payments,Private Contractor Fees,73372-DOMICILIARY CARE,519.40,Revenue,08/01/2015,Social Care & Inclusion
WC52-0147,ACE CARE AGENCY,Commissioning,OP COMMISSIONING,Third Party Payments,Private Contractor Fees,73372-DOMICILIARY CARE,519.40,Revenue,22/01/2015,Social Care & Inclusion
WC52-0148,ACE CARE AGENCY,Mental Health,MH COMMISSIONING,Third Party Payments,Private Contractor Fees,73372-DOMICILIARY CARE,526.11,Revenue,22/01/2015,Social Care & Inclusion
WC52-0149,ACE CARE AGENCY,Mental Health,MH COMMISSIONING,Third Party Payments,Private Contractor Fees,73372-DOMICILIARY CARE,647.52,Revenue,08/01/2015,Social Care & Inclusion
WC52-0150,ACE CARE AGENCY,Commissioning,OP COMMISSIONING,Third Party Payments,Private Contractor Fees,73372-DOMICILIARY CARE,939.68,Revenue,01/01/2015,Social Care & Inclusion
WC52-0151,ACE CARE AGENCY,Commissioning,OP COMMISSIONING,Third Party Payments,Private Contractor Fees,73372-DOMICILIARY CARE,939.68,Revenue,22/01/2015,Social Care & Inclusion
WC52-0152,ACE RADIO CARS,Educational Support,SCHOOL TRANSPORT,Transport,Hire,52000-WITH DRIVER-HIRE OF VEHICLES,"1,464.30",Revenue,20/01/2015,Childrens
WC52-0153,ACEPAY LTD (COTTAGE NUR HOME),Commissioning,OP COMMISSIONING,Third Party Payments,Private Contractor Fees,73373-RESIDENTIAL & NURSING CARE PLACEMENTS,"1,933.16",Revenue,20/01/2015,Social Care & Inclusion
WC52-0154,ACEPAY LTD (COTTAGE NUR HOME),Commissioning,OP COMMISSIONING,Third Party Payments,Private Contractor Fees,73373-RESIDENTIAL & NURSING CARE PLACEMENTS,"1,933.16",Revenue,20/01/2015,Social Care & Inclusion
WC52-0155,ACEPAY LTD (COTTAGE NUR HOME),Commissioning,OP COMMISSIONING,Third Party Payments,Private Contractor Fees,73373-RESIDENTIAL & NURSING CARE PLACEMENTS,"1,933.16",Revenue,20/01/2015,Social Care & Inclusion
WC52-0156,ACEPAY LTD (COTTAGE NUR HOME),Commissioning,OP COMMISSIONING,Third Party Payments,Private Contractor Fees,73373-RESIDENTIAL & NURSING CARE PLACEMENTS,"1,979.20",Revenue,20/01/2015,Social Care & Inclusion
WC52-0157,ACEPAY LTD (COTTAGE NUR HOME),Commissioning,OP COMMISSIONING,Third Party Payments,Private Contractor Fees,73373-RESIDENTIAL & NURSING CARE PLACEMENTS,"1,979.20",Revenue,20/01/2015,Social Care & Inclusion
WC52-0158,ACHIEVING FOR CHILDREN LTD,Corporate Parenting,ADOPTION TEAM,Transfer Payments,Transfer Payments,74009-ADOPTION ALLOWANCE,"14,850.00",Revenue,15/01/2015,Childrens
WC52-0159,ACIVICO LTD,Property Services,CENTRALISED MAINTENANCE,Third Party Payments,Private Contractor Fees,73025-PROFESSIONAL SERVICES-PRIV CONTRACTOR & OTHER AGENCIES,"2,819.26",Revenue,16/01/2015,Regeneration
WC52-0160,ACORN FOSTERING SERVICES LTD,Corporate Parenting,EXTERNAL FOSTER CARE PROVISION,Third Party Payments,Private Contractor Fees,74037-INDEPENDENT FOSTER CARE-OTH AGENCY PROVISION,770.00,Revenue,06/01/2015,Childrens
WC52-0161,ACORN FOSTERING SERVICES LTD,Corporate Parenting,EXTERNAL FOSTER CARE PROVISION,Third Party Payments,Private Contractor Fees,74037-INDEPENDENT FOSTER CARE-OTH AGENCY PROVISION,"1,327.86",Revenue,06/01/2015,Childrens
WC52-0162,ACORN FOSTERING SERVICES LTD,Corporate Parenting,EXTERNAL FOSTER CARE PROVISION,Third Party Payments,Private Contractor Fees,74037-INDEPENDENT FOSTER CARE-OTH AGENCY PROVISION,"2,535.00",Revenue,06/01/2015,Childrens
WC52-0163,ACORN REST HOME,Commissioning,OP COMMISSIONING,Third Party Payments,Private Contractor Fees,73373-RESIDENTIAL & NURSING CARE PLACEMENTS,"1,460.40",Revenue,06/01/2015,Social Care & Inclusion
WC52-0164,ACORN REST HOME,Commissioning,OP COMMISSIONING,Third Party Payments,Private Contractor Fees,73373-RESIDENTIAL & NURSING CARE PLACEMENTS,"1,460.40",Revenue,27/01/2015,Social Care & Inclusion
WC52-0165,ACORNS CHILDRENS HOSPICE TRUST,Specialist Services Management,DIRECTLY COMMISSIONED NURSING SERVICES,Supplies & Services,Services,63000-PROFESSIONAL FEES AND SERVICES,750.00,Revenue,28/01/2015,Childrens
WC52-0166,ACTION FOR CHILDREN,Corporate Parenting,EXTERNAL FOSTER CARE PROVISION,Third Party Payments,Private Contractor Fees,74037-INDEPENDENT FOSTER CARE-OTH AGENCY PROVISION,"3,518.85",Revenue,28/01/2015,Childrens
WC52-0167,ACTION ON HEARING LOSS,"Access,Assessment & Care Management",SENSORY/DEAF SERVICES,Supplies & Services,"Printing, Stationery & Office Exp",63500-POSTAGES AND COURIER SERVICES,7.08,Revenue,13/01/2015,Social Care & Inclusion
WC52-0168,ACTION ON HEARING LOSS,"Access,Assessment & Care Management",SENSORY/DEAF SERVICES,Supplies & Services,"Equip,Furniture & Materials",60006-NEW-FURNITURE & EQUIPMENT,"1,103.62",Revenue,13/01/2015,Social Care & Inclusion
WC52-0169,ACTION ON HEARING LOSS,Commissioning,YADS SLA,Third Party Payments,Private Contractor Fees,70000-SOCIAL SERVICES-FEES TO VOLUNTARY BODIES,"25,664.06",Revenue,02/01/2015,Social Care & Inclusion
WC52-0170,ACTIVE ASSISTANCE,Specialist Services Management,DIRECTLY COMMISSIONED NURSING SERVICES,Supplies & Services,Services,63000-PROFESSIONAL FEES AND SERVICES,"1,722.12",Revenue,26/01/2015,Childrens
WC52-0171,ACTIVE ASSISTANCE,Specialist Services Management,DIRECTLY COMMISSIONED NURSING SERVICES,Supplies & Services,Services,63000-PROFESSIONAL FEES AND SERVICES,"1,747.52",Revenue,19/01/2015,Childrens
WC52-0172,ACTIVE ASSISTANCE,Specialist Services Management,DIRECTLY COMMISSIONED NURSING SERVICES,Supplies & Services,Services,63000-PROFESSIONAL FEES AND SERVICES,"1,767.84",Revenue,26/01/2015,Childrens
WC52-0173,ACTIVE ASSISTANCE,Specialist Services Management,DIRECTLY COMMISSIONED NURSING SERVICES,Supplies & Services,Services,63000-PROFESSIONAL FEES AND SERVICES,"1,869.44",Revenue,09/01/2015,Childrens
WC52-0174,ACTIVE ASSISTANCE,Specialist Services Management,DIRECTLY COMMISSIONED NURSING SERVICES,Supplies & Services,Services,63000-PROFESSIONAL FEES AND SERVICES,"2,468.88",Revenue,26/01/2015,Childrens
WC52-0175,ACTIVE ASSISTANCE,Specialist Services Management,DIRECTLY COMMISSIONED NURSING SERVICES,Supplies & Services,Services,63000-PROFESSIONAL FEES AND SERVICES,"2,479.04",Revenue,26/01/2015,Childrens
WC52-0176,ADA BUILDERS & JOINERS,Housing Services,CFR 826 DISABLED FACILITIES GRANTS (SOCIAL SERVICES),Capital,Capital,01006-SITE WORKS MAIN CONTRACTORS,"12,405.00",Capital,01/01/2015,Resources
WC52-0177,REDACTED,Libraries Heritage & Arts,NAG - REFURBISHMENTS,Supplies & Services,Services,63000-PROFESSIONAL FEES AND SERVICES,450.00,Revenue,09/01/2015,Neighbourhood Services
WC52-0178,REDACTED,Libraries Heritage & Arts,NAG - REFURBISHMENTS,Supplies & Services,Services,63000-PROFESSIONAL FEES AND SERVICES,450.00,Revenue,09/01/2015,Neighbourhood Services
WC52-0179,REDACTED,Libraries Heritage & Arts,EXHIBITIONS - SPECIAL PROJECTS/PARTNERSHIPS,Supplies & Services,Services,63000-PROFESSIONAL FEES AND SERVICES,858.00,Revenue,09/01/2015,Neighbourhood Services
WC52-0180,REDACTED,Specialist Services Management,FAMILY SUPPORT - DIRECT PAYMENTS,Transfer Payments,Transfer Payments,76422-DIRECT PAYMENTS TO SOCIAL SERVICES CLIENTS,487.60,Revenue,12/01/2015,Childrens
WC52-0181,REDACTED,"Access,Assessment & Care Management",LD COMMISSIONING,Transfer Payments,Transfer Payments,76422-DIRECT PAYMENTS TO SOCIAL SERVICES CLIENTS,812.00,Revenue,12/01/2015,Social Care & Inclusion
WC52-0182,ADDACTION,Public Health,ALCOHOL & DRUGS MISUSE/TOBACCO CONTROL,Supplies & Services,Services,63000-PROFESSIONAL FEES AND SERVICES,"243,723.00",Revenue,08/01/2015,Neighbourhood Services
WC52-0183,REDACTED,Commissioning,OP COMMISSIONING,Transfer Payments,Transfer Payments,76422-DIRECT PAYMENTS TO SOCIAL SERVICES CLIENTS,860.00,Revenue,12/01/2015,Social Care & Inclusion
WC52-0184,ADMIRAL SELF STORAGE LTD,Finance,FINANCE ADMIN,Supplies & Services,Services,63000-PROFESSIONAL FEES AND SERVICES,419.32,Revenue,22/01/2015,Resources
WC52-0185,ADMIRAL SELF STORAGE LTD,Finance,FINANCE ADMIN,Supplies & Services,Services,63000-PROFESSIONAL FEES AND SERVICES,783.90,Revenue,07/01/2015,Resources
WC52-0186,ADOPTION UK,Corporate Parenting,ADOPTION TEAM,Supplies & Services,Communications & Computing,68001-PUBLICITY & ADVERTISING (NOT STAFF ADVERTISING),424.13,Revenue,01/01/2015,Childrens
WC52-0187,ADOPTION UK,Corporate Parenting,ADOPTION TEAM,Supplies & Services,Communications & Computing,68001-PUBLICITY & ADVERTISING (NOT STAFF ADVERTISING),424.13,Revenue,22/01/2015,Childrens
WC52-0188,REDACTED,Corporate Parenting,INTERNAL FOSTER CARE PROVISION,Third Party Payments,Private Contractor Fees,74006-HOLIDAY/CHRISTMAS ALLOWANCE-FOSTER CARERS-OTH AGENCY PROVISION,681.52,Revenue,19/01/2015,Childrens
WC52-0189,ADVANCE HEALTH CARE (UK) LTD,Provider,COMMUNITY INTERMEDIATE CARE,Employees,Agency,34305-AGENCY STAFF-EMPLOYEES,260.00,Revenue,01/01/2015,Social Care & Inclusion
WC52-0190,ADVANCE HEALTH CARE (UK) LTD,Provider,COMMUNITY INTERMEDIATE CARE,Employees,Agency,34305-AGENCY STAFF-EMPLOYEES,266.50,Revenue,01/01/2015,Social Care & Inclusion
WC52-0191,ADVANCE HEALTH CARE (UK) LTD,Commissioning,OP COMMISSIONING,Third Party Payments,Private Contractor Fees,73372-DOMICILIARY CARE,286.20,Revenue,15/01/2015,Social Care & Inclusion
WC52-0192,ADVANCE HEALTH CARE (UK) LTD,Commissioning,OP COMMISSIONING,Third Party Payments,Private Contractor Fees,73372-DOMICILIARY CARE,286.20,Revenue,15/01/2015,Social Care & Inclusion
WC52-0193,ADVANCE HEALTH CARE (UK) LTD,Commissioning,OP COMMISSIONING,Third Party Payments,Private Contractor Fees,73372-DOMICILIARY CARE,286.20,Revenue,15/01/2015,Social Care & Inclusion
WC52-0194,ADVANCE HEALTH CARE (UK) LTD,Commissioning,OP COMMISSIONING,Third Party Payments,Private Contractor Fees,73372-DOMICILIARY CARE,286.20,Revenue,15/01/2015,Social Care & Inclusion
WC52-0195,ADVANCE HEALTH CARE (UK) LTD,Commissioning,OP COMMISSIONING,Third Party Payments,Private Contractor Fees,73372-DOMICILIARY CARE,296.80,Revenue,01/01/2015,Social Care & Inclusion
WC52-0196,ADVANCE HEALTH CARE (UK) LTD,Commissioning,OP COMMISSIONING,Third Party Payments,Private Contractor Fees,73372-DOMICILIARY CARE,296.80,Revenue,01/01/2015,Social Care & Inclusion
WC52-0197,ADVANCE HEALTH CARE (UK) LTD,Commissioning,OP COMMISSIONING,Third Party Payments,Private Contractor Fees,73372-DOMICILIARY CARE,296.80,Revenue,01/01/2015,Social Care & Inclusion
WC52-0198,ADVANCE HEALTH CARE (UK) LTD,Commissioning,OP COMMISSIONING,Third Party Payments,Private Contractor Fees,73372-DOMICILIARY CARE,296.80,Revenue,01/01/2015,Social Care & Inclusion
WC52-0199,ADVANCE HEALTH CARE (UK) LTD,Provider,COMMUNITY INTERMEDIATE CARE,Employees,Agency,34305-AGENCY STAFF-EMPLOYEES,451.75,Revenue,01/01/2015,Social Care & Inclusion
WC52-0200,ADVANCE HEALTH CARE (UK) LTD,Provider,COMMUNITY INTERMEDIATE CARE,Employees,Agency,34305-AGENCY STAFF-EMPLOYEES,"1,225.25",Revenue,01/01/2015,Social Care & Inclusion
WC52-0201,ADVANCE HEALTH CARE (UK) LTD,Provider,COMMUNITY INTERMEDIATE CARE,Employees,Agency,34305-AGENCY STAFF-EMPLOYEES,"1,813.50",Revenue,01/01/2015,Social Care & Inclusion
WC52-0202,ADVANCE HEALTH CARE (UK) LTD,Provider,COMMUNITY INTERMEDIATE CARE,Employees,Agency,34305-AGENCY STAFF-EMPLOYEES,"3,120.00",Revenue,01/01/2015,Social Care & Inclusion
WC52-0203,ADVANCE HEALTH CARE (UK) LTD,Provider,COMMUNITY INTERMEDIATE CARE,Employees,Agency,34305-AGENCY STAFF-EMPLOYEES,"4,680.00",Revenue,01/01/2015,Social Care & Inclusion
WC52-0204,ADVANCE HEALTH CARE (UK) LTD,Commissioning,OP COMMISSIONING,Third Party Payments,Private Contractor Fees,73372-DOMICILIARY CARE,"26,713.27",Revenue,21/01/2015,Social Care & Inclusion
WC52-0205,ADVANCE PHARMA LTD T/A PLECK PHARMACY,Public Health,HEALTH CHECKS,Supplies & Services,Services,63000-PROFESSIONAL FEES AND SERVICES,"1,589.66",Revenue,20/01/2015,Neighbourhood Services
WC52-0206,ADVANCED CONTRACTS (MIDLANDS) LTD,Property Services,RECHARGEABLE - SCHOOLS MAINTENANCE,Premises,Premises-Repairs & Maintenance,"40000-REPAIRS,ALTERATIONS & MAINTENANCE-PREM",250.00,Revenue,08/01/2015,Regeneration
WC52-0207,ADVANCED CONTRACTS (MIDLANDS) LTD,Property Services,CENTRALISED MAINTENANCE,Third Party Payments,Private Contractor Fees,73025-PROFESSIONAL SERVICES-PRIV CONTRACTOR & OTHER AGENCIES,456.00,Revenue,13/01/2015,Regeneration
WC52-0208,ADVANCED CONTRACTS (MIDLANDS) LTD,Property Services,CENTRALISED MAINTENANCE,Third Party Payments,Private Contractor Fees,73025-PROFESSIONAL SERVICES-PRIV CONTRACTOR & OTHER AGENCIES,480.00,Revenue,26/01/2015,Regeneration
WC52-0209,ADVANCED CONTRACTS (MIDLANDS) LTD,Property Services,RECHARGEABLE - NON SCHOOLS MAINTENANCE,Premises,Premises-Repairs & Maintenance,"40000-REPAIRS,ALTERATIONS & MAINTENANCE-PREM",600.00,Revenue,26/01/2015,Regeneration
WC52-0210,ADVANCED CONTRACTS (MIDLANDS) LTD,Property Services,CENTRALISED MAINTENANCE,Third Party Payments,Private Contractor Fees,73025-PROFESSIONAL SERVICES-PRIV CONTRACTOR & OTHER AGENCIES,821.30,Revenue,21/01/2015,Regeneration
WC52-0211,ADVANCED CONTRACTS (MIDLANDS) LTD,Property Services,CARETAKERS HOUSES,Premises,Premises-Repairs & Maintenance,"40000-REPAIRS,ALTERATIONS & MAINTENANCE-PREM",828.00,Revenue,21/01/2015,Regeneration
WC52-0212,ADVANCED CONTRACTS (MIDLANDS) LTD,Property Services,RECHARGEABLE - NON SCHOOLS MAINTENANCE,Premises,Premises-Repairs & Maintenance,"40000-REPAIRS,ALTERATIONS & MAINTENANCE-PREM",920.00,Revenue,21/01/2015,Regeneration
WC52-0213,ADVANCED CONTRACTS (MIDLANDS) LTD,Property Services,RECHARGEABLE - NON SCHOOLS MAINTENANCE,Premises,Premises-Repairs & Maintenance,"40000-REPAIRS,ALTERATIONS & MAINTENANCE-PREM","1,185.00",Revenue,14/01/2015,Regeneration
WC52-0214,ADVANCED CONTRACTS (MIDLANDS) LTD,Property Services,CENTRALISED MAINTENANCE,Third Party Payments,Private Contractor Fees,73025-PROFESSIONAL SERVICES-PRIV CONTRACTOR & OTHER AGENCIES,"1,845.00",Revenue,02/01/2015,Regeneration
WC52-0215,ADVANCED CONTRACTS (MIDLANDS) LTD,Property Services,RECHARGEABLE - NON SCHOOLS MAINTENANCE,Premises,Premises-Repairs & Maintenance,"40000-REPAIRS,ALTERATIONS & MAINTENANCE-PREM","2,198.80",Revenue,28/01/2015,Regeneration
WC52-0216,ADVANCED CONTRACTS (MIDLANDS) LTD,Property Services,RECHARGEABLE - SCHOOLS MAINTENANCE,Premises,Premises-Repairs & Maintenance,"40000-REPAIRS,ALTERATIONS & MAINTENANCE-PREM","13,260.00",Revenue,02/01/2015,Regeneration
WC52-0217,ADVANCED HEALTH AND CARE,Provider,COMMUNITY INTERMEDIATE CARE,Supplies & Services,Communications & Computing,63800-COMPUTER EQUIPMENT AND SUPPLIES,325.00,Revenue,14/01/2015,Social Care & Inclusion
WC52-0218,ADVENTURELAND DAY NURSERY,Corporate Parenting,FAMILY PLACEMENTS,Employees,Other Staff Costs,32000-MISC FEES AND EXPENSES,289.80,Revenue,01/01/2015,Childrens
WC52-0219,ADVENTURELAND DAY NURSERY,Corporate Parenting,FAMILY PLACEMENTS,Employees,Other Staff Costs,32000-MISC FEES AND EXPENSES,290.00,Revenue,01/01/2015,Childrens
WC52-0220,ADVENTURELAND DAY NURSERY,Corporate Parenting,FAMILY PLACEMENTS,Employees,Other Staff Costs,32000-MISC FEES AND EXPENSES,290.80,Revenue,20/01/2015,Childrens
WC52-0221,ADVENTURELAND DAY NURSERY,"Prevention, Workforce and Partnerships",EARLY YEARS SERVICE,Supplies & Services,Other Supplies & Services,63120-CRECHE FACILITIES-SERVICES-FEES,360.00,Revenue,23/01/2015,Childrens
WC52-0222,ADVENTURELAND DAY NURSERY,"Prevention, Workforce and Partnerships",EARLY YEARS SERVICE,Supplies & Services,Other Supplies & Services,63120-CRECHE FACILITIES-SERVICES-FEES,360.00,Revenue,23/01/2015,Childrens
WC52-0223,ADVENTURELAND DAY NURSERY,Education,EARLY YEARS - 2 YR OLDS,Third Party Payments,Grants to Other Orgs,66505-OTHER-GRANTS TO OTHER ORGS,"5,545.26",Revenue,23/01/2015,Childrens
WC52-0224,ADVOCACY MATTERS LIMITED,Commissioning,YADS SLA,Third Party Payments,Private Contractor Fees,70000-SOCIAL SERVICES-FEES TO VOLUNTARY BODIES,"13,429.00",Revenue,02/01/2015,Social Care & Inclusion
WC52-0225,ADVOCACY MATTERS LIMITED,Commissioning,LD SLA,Third Party Payments,Private Contractor Fees,70000-SOCIAL SERVICES-FEES TO VOLUNTARY BODIES,"20,120.00",Revenue,02/01/2015,Social Care & Inclusion
WC52-0226,ADVOCACY MATTERS LIMITED,Commissioning,OP SLA,Third Party Payments,Private Contractor Fees,70000-SOCIAL SERVICES-FEES TO VOLUNTARY BODIES,"22,560.75",Revenue,02/01/2015,Social Care & Inclusion
WC52-0227,AECOM LIMITED,Strategic Regeneration,CFR 876 DARLASTON CDMC,Capital,Capital,01001-OTHER CONSULTANTS FEES,"1,505.15",Capital,07/01/2015,Regeneration
WC52-0228,AECOM LIMITED,Strategic Regeneration,CFR 876 DARLASTON DSDA,Capital,Capital,01001-OTHER CONSULTANTS FEES,"2,658.54",Capital,07/01/2015,Regeneration
WC52-0229,AGE UK WALSALL,Strategic Development,INDIVIDUAL BUDGET - SUPPORT,Transfer Payments,Transfer Payments,76423-DIRECT PAYMENTS SUPPORT,"2,280.00",Revenue,20/01/2015,Social Care & Inclusion
WC52-0230,AGE UK WALSALL,Strategic Development,INDIVIDUAL BUDGET - SUPPORT,Transfer Payments,Transfer Payments,76423-DIRECT PAYMENTS SUPPORT,"4,080.00",Revenue,20/01/2015,Social Care & Inclusion
WC52-0231,AGE UK WALSALL,Strategic Development,INDIVIDUAL BUDGET - SUPPORT,Transfer Payments,Transfer Payments,76423-DIRECT PAYMENTS SUPPORT,"7,950.00",Revenue,14/01/2015,Social Care & Inclusion
WC52-0232,AGINCARE UK LTD,Commissioning,OP COMMISSIONING,Third Party Payments,Private Contractor Fees,73372-DOMICILIARY CARE,308.00,Revenue,09/01/2015,Social Care & Inclusion
WC52-0233,AGINCARE UK LTD,Commissioning,OP COMMISSIONING,Third Party Payments,Private Contractor Fees,73372-DOMICILIARY CARE,308.00,Revenue,26/01/2015,Social Care & Inclusion
WC52-0234,AGINCARE UK LTD,Commissioning,OP COMMISSIONING,Third Party Payments,Private Contractor Fees,73372-DOMICILIARY CARE,"1,527.66",Revenue,09/01/2015,Social Care & Inclusion
WC52-0235,AGINCARE UK LTD,Commissioning,OP COMMISSIONING,Third Party Payments,Private Contractor Fees,73372-DOMICILIARY CARE,"1,713.60",Revenue,09/01/2015,Social Care & Inclusion
WC52-0236,AGINCARE UK LTD,Commissioning,OP COMMISSIONING,Third Party Payments,Private Contractor Fees,73372-DOMICILIARY CARE,"1,713.60",Revenue,26/01/2015,Social Care & Inclusion
WC52-0237,AGINCARE UK LTD,Commissioning,OP COMMISSIONING,Third Party Payments,Private Contractor Fees,73372-DOMICILIARY CARE,"2,036.88",Revenue,26/01/2015,Social Care & Inclusion
WC52-0238,AIDSERVICE LTD,"Access,Assessment & Care Management",OCCUPATIONAL THERAPY SERVICES,Supplies & Services,"Equip,Furniture & Materials",60013-DISABLED-EQUIPMENT,"1,505.00",Revenue,19/01/2015,Social Care & Inclusion
WC52-0239,REDACTED,"Access,Assessment & Care Management",LD COMMISSIONING,Transfer Payments,Transfer Payments,76422-DIRECT PAYMENTS TO SOCIAL SERVICES CLIENTS,"1,882.00",Revenue,12/01/2015,Social Care & Inclusion
WC52-0240,REDACTED,Commissioning,OP COMMISSIONING,Transfer Payments,Transfer Payments,76422-DIRECT PAYMENTS TO SOCIAL SERVICES CLIENTS,936.52,Revenue,12/01/2015,Social Care & Inclusion
WC52-0241,REDACTED,Commissioning,OP COMMISSIONING,Transfer Payments,Transfer Payments,76422-DIRECT PAYMENTS TO SOCIAL SERVICES CLIENTS,667.80,Revenue,12/01/2015,Social Care & Inclusion
WC52-0242,ALDERGROVE MANOR CARE HOME,Mental Health,MH COMMISSIONING,Third Party Payments,Private Contractor Fees,73373-RESIDENTIAL & NURSING CARE PLACEMENTS,"1,784.48",Revenue,13/01/2015,Social Care & Inclusion
WC52-0243,ALDRIDGE & BARONS LIMITED,Commissioning,COMMISSIONING TEAM,Transport,Hire,52001-HIRE OF VEHICLES,262.52,Revenue,21/01/2015,Social Care & Inclusion
WC52-0244,ALDRIDGE & BARONS LIMITED,Specialist Services Management,DIRECTLY COMMISSIONED NURSING SERVICES,Supplies & Services,Services,63000-PROFESSIONAL FEES AND SERVICES,272.00,Revenue,19/01/2015,Childrens
WC52-0245,ALDRIDGE & BARONS LIMITED,Commissioning,COMMISSIONING TEAM,Transport,Hire,52001-HIRE OF VEHICLES,300.00,Revenue,21/01/2015,Social Care & Inclusion
WC52-0246,ALDRIDGE & BARONS LIMITED,Educational Support,SCHOOL TRANSPORT,Transport,Hire,52000-WITH DRIVER-HIRE OF VEHICLES,"1,147.84",Revenue,20/01/2015,Childrens
WC52-0247,ALDRIDGE & BARONS LIMITED,Educational Support,SCHOOL TRANSPORT,Transport,Hire,52000-WITH DRIVER-HIRE OF VEHICLES,"1,181.25",Revenue,20/01/2015,Childrens
WC52-0248,ALDRIDGE & BARONS LIMITED,Educational Support,SCHOOL TRANSPORT,Transport,Hire,52000-WITH DRIVER-HIRE OF VEHICLES,"1,190.00",Revenue,20/01/2015,Childrens
WC52-0249,ALDRIDGE & BARONS LIMITED,Educational Support,SCHOOL TRANSPORT,Transport,Hire,52000-WITH DRIVER-HIRE OF VEHICLES,"1,360.00",Revenue,20/01/2015,Childrens
WC52-0250,ALDRIDGE & BARONS LIMITED,Corporate Parenting,FOSTERING SUPPORT TEAM,Transport,Hire,52000-WITH DRIVER-HIRE OF VEHICLES,"1,532.52",Revenue,12/01/2015,Childrens
WC52-0251,ALDRIDGE & BARONS LIMITED,Corporate Parenting,FOSTERING SUPPORT TEAM,Transport,Hire,52000-WITH DRIVER-HIRE OF VEHICLES,"1,578.96",Revenue,21/01/2015,Childrens
WC52-0252,ALDRIDGE & BARONS LIMITED,Educational Support,SCHOOL TRANSPORT,Transport,Hire,52000-WITH DRIVER-HIRE OF VEHICLES,"2,023.00",Revenue,20/01/2015,Childrens
WC52-0253,ALDRIDGE & BARONS LIMITED,Educational Support,SCHOOL TRANSPORT,Transport,Hire,52000-WITH DRIVER-HIRE OF VEHICLES,"2,242.10",Revenue,20/01/2015,Childrens
WC52-0254,ALDRIDGE & BARONS LIMITED,Educational Support,SCHOOL TRANSPORT,Transport,Hire,52000-WITH DRIVER-HIRE OF VEHICLES,"2,242.10",Revenue,20/01/2015,Childrens
WC52-0255,ALDRIDGE & BARONS LIMITED,Educational Support,SCHOOL TRANSPORT,Transport,Hire,52000-WITH DRIVER-HIRE OF VEHICLES,"2,329.60",Revenue,20/01/2015,Childrens
WC52-0256,ALDRIDGE & BARONS LIMITED,Educational Support,SCHOOL TRANSPORT,Transport,Hire,52000-WITH DRIVER-HIRE OF VEHICLES,"2,390.20",Revenue,20/01/2015,Childrens
WC52-0257,ALDRIDGE & BARONS LIMITED,Educational Support,SCHOOL TRANSPORT,Transport,Hire,52000-WITH DRIVER-HIRE OF VEHICLES,"2,723.00",Revenue,23/01/2015,Childrens
WC52-0258,ALDRIDGE & BARONS LIMITED,Educational Support,SCHOOL TRANSPORT,Transport,Hire,52000-WITH DRIVER-HIRE OF VEHICLES,"2,772.00",Revenue,23/01/2015,Childrens
WC52-0259,ALDRIDGE & BARONS LIMITED,Educational Support,SCHOOL TRANSPORT,Transport,Hire,52000-WITH DRIVER-HIRE OF VEHICLES,"3,168.00",Revenue,20/01/2015,Childrens
WC52-0260,ALDRIDGE & BARONS LIMITED,Educational Support,SCHOOL TRANSPORT,Transport,Hire,52000-WITH DRIVER-HIRE OF VEHICLES,"3,672.00",Revenue,20/01/2015,Childrens
WC52-0261,ALDRIDGE & BARONS LIMITED,Educational Support,SCHOOL TRANSPORT,Transport,Hire,52000-WITH DRIVER-HIRE OF VEHICLES,"4,060.00",Revenue,20/01/2015,Childrens
WC52-0262,ALDRIDGE & BARONS LIMITED,Educational Support,SCHOOL TRANSPORT,Transport,Hire,52000-WITH DRIVER-HIRE OF VEHICLES,"4,175.20",Revenue,20/01/2015,Childrens
WC52-0263,ALDRIDGE SCHOOL A SCIENCE COLLEGE.,Education,ALDRIDGE SCHOOL SCIENCE COLLEGE (ACADEMY),Third Party Payments,Grants to Other Orgs,66502-TOP UP FUNDING -GRANTS TO SCHOOLS,"8,584.56",Revenue,12/01/2015,Childrens
WC52-0264,REDACTED,Commissioning,CONCESSIONARY TRAVEL,Transfer Payments,Transfer Payments,76422-DIRECT PAYMENTS TO SOCIAL SERVICES CLIENTS,"1,204.00",Revenue,12/01/2015,Social Care & Inclusion
WC52-0265,ALEXANDRA HOUSE CARE SERVICES LTD T/A STONEBRIDGE NURSING HOME,Commissioning,OP COMMISSIONING,Third Party Payments,Private Contractor Fees,73373-RESIDENTIAL & NURSING CARE PLACEMENTS,"6,960.84",Revenue,20/01/2015,Social Care & Inclusion
WC52-0266,REDACTED,Specialist Services Management,FAMILY SUPPORT - DIRECT PAYMENTS,Transfer Payments,Transfer Payments,76422-DIRECT PAYMENTS TO SOCIAL SERVICES CLIENTS,582.66,Revenue,12/01/2015,Childrens
WC52-0267,REDACTED,Commissioning,CONCESSIONARY TRAVEL,Transfer Payments,Transfer Payments,76422-DIRECT PAYMENTS TO SOCIAL SERVICES CLIENTS,854.00,Revenue,12/01/2015,Social Care & Inclusion
WC52-0268,ALIGNED ASSETS LTD,Shared Services,APPLICATIONS,Supplies & Services,Communications & Computing,63800-COMPUTER EQUIPMENT AND SUPPLIES,"3,488.61",Revenue,15/01/2015,Resources
WC52-0269,REDACTED,Commissioning,OP COMMISSIONING,Transfer Payments,Transfer Payments,76422-DIRECT PAYMENTS TO SOCIAL SERVICES CLIENTS,328.80,Revenue,12/01/2015,Social Care & Inclusion
WC52-0270,REDACTED,Corporate Parenting,INTERNAL FOSTER CARE PROVISION,Third Party Payments,Private Contractor Fees,74006-HOLIDAY/CHRISTMAS ALLOWANCE-FOSTER CARERS-OTH AGENCY PROVISION,968.32,Revenue,05/01/2015,Childrens
WC52-0271,REDACTED,Corporate Parenting,INTERNAL FOSTER CARE PROVISION,Supplies & Services,Other Supplies & Services,62515-MISCELLANEOUS SUPPLIES,"1,428.44",Revenue,05/01/2015,Childrens
WC52-0272,REDACTED,Education,EARLY YEARS - 2 YR OLDS,Third Party Payments,Grants to Other Orgs,66505-OTHER-GRANTS TO OTHER ORGS,616.14,Revenue,28/01/2015,Childrens
WC52-0273,REDACTED,Corporate Parenting,INTERNAL FOSTER CARE PROVISION,Third Party Payments,Private Contractor Fees,74006-HOLIDAY/CHRISTMAS ALLOWANCE-FOSTER CARERS-OTH AGENCY PROVISION,542.80,Revenue,19/01/2015,Childrens
WC52-0274,ALL SAINTS CHURCH STREETLY,Communities & Partnership,AREA 2 - ALDRIDGE/STREETLY/PHEASEY,Supplies & Services,Other Supplies & Services,62515-MISCELLANEOUS SUPPLIES,250.00,Revenue,09/01/2015,Neighbourhood Services
WC52-0275,ALLSORTS OFFICE SUPPLIES LTD,Smarter Workplaces,CFR 837 SMARTER WORKPLACES-WORKPLACE SOLUTIONS INVESTMENT,Capital,Capital,01044-PURCHASE OF FURNITURE & EQUIPMENT,404.82,Capital,14/01/2015,Regeneration
WC52-0276,ALLSORTS OFFICE SUPPLIES LTD,Housing Services,ACCOMMODATION SERVICES MANAGEMENT,Supplies & Services,"Equip,Furniture & Materials",60000-FURNITURE & EQUIPMENT,"1,056.00",Revenue,14/01/2015,Resources
WC52-0277,ALMA COURT,Mental Health,MH COMMISSIONING,Third Party Payments,Private Contractor Fees,73373-RESIDENTIAL & NURSING CARE PLACEMENTS,"6,177.86",Revenue,20/01/2015,Social Care & Inclusion
WC52-0278,ALMA COURT,Commissioning,OP COMMISSIONING,Third Party Payments,Private Contractor Fees,73373-RESIDENTIAL & NURSING CARE PLACEMENTS,"6,177.86",Revenue,20/01/2015,Social Care & Inclusion
WC52-0279,ALMOND CARE,Specialist Services Management,DIRECTLY COMMISSIONED NURSING SERVICES,Supplies & Services,Services,63000-PROFESSIONAL FEES AND SERVICES,"1,003.75",Revenue,06/01/2015,Childrens
WC52-0280,ALMOZENE NURSERY & CHILDRENS CENTRE,Education,EARLY YEARS - 2 YR OLDS,Third Party Payments,Grants to Other Orgs,66505-OTHER-GRANTS TO OTHER ORGS,"6,161.40",Revenue,23/01/2015,Childrens
WC52-0281,ALPHA HAIR DESIGN ACADEMY,Schools,INDEPENDENT PROVIDERS - POST SCHOOL,Third Party Payments,Grants to Other Orgs,66502-TOP UP FUNDING -GRANTS TO SCHOOLS,"1,506.52",Revenue,26/01/2015,Childrens
WC52-0282,ALPHA HEALTH CARE LTD,Commissioning,OP COMMISSIONING,Third Party Payments,Private Contractor Fees,73373-RESIDENTIAL & NURSING CARE PLACEMENTS,260.79,Revenue,06/01/2015,Social Care & Inclusion
WC52-0283,ALPHA HEALTH CARE LTD,Commissioning,OP COMMISSIONING,Third Party Payments,Private Contractor Fees,73373-RESIDENTIAL & NURSING CARE PLACEMENTS,"1,199.61",Revenue,06/01/2015,Social Care & Inclusion
WC52-0284,ALPHA HEALTH CARE LTD,Commissioning,OP COMMISSIONING,Third Party Payments,Private Contractor Fees,73373-RESIDENTIAL & NURSING CARE PLACEMENTS,"1,375.60",Revenue,20/01/2015,Social Care & Inclusion
WC52-0285,ALPHA HEALTH CARE LTD,Commissioning,OP COMMISSIONING,Third Party Payments,Private Contractor Fees,73373-RESIDENTIAL & NURSING CARE PLACEMENTS,"1,375.60",Revenue,20/01/2015,Social Care & Inclusion
WC52-0286,ALPHA HEALTH CARE LTD,Commissioning,OP COMMISSIONING,Third Party Payments,Private Contractor Fees,73373-RESIDENTIAL & NURSING CARE PLACEMENTS,"1,382.00",Revenue,20/01/2015,Social Care & Inclusion
WC52-0287,ALPHA HEALTH CARE LTD,Commissioning,OP COMMISSIONING,Third Party Payments,Private Contractor Fees,73373-RESIDENTIAL & NURSING CARE PLACEMENTS,"1,460.40",Revenue,06/01/2015,Social Care & Inclusion
WC52-0288,ALPHA HEALTH CARE LTD,Commissioning,OP COMMISSIONING,Third Party Payments,Private Contractor Fees,73373-RESIDENTIAL & NURSING CARE PLACEMENTS,"1,460.40",Revenue,06/01/2015,Social Care & Inclusion
WC52-0289,ALPHA HEALTH CARE LTD,Commissioning,OP COMMISSIONING,Third Party Payments,Private Contractor Fees,73373-RESIDENTIAL & NURSING CARE PLACEMENTS,"1,460.40",Revenue,06/01/2015,Social Care & Inclusion
WC52-0290,ALPHA HEALTH CARE LTD,Commissioning,OP COMMISSIONING,Third Party Payments,Private Contractor Fees,73373-RESIDENTIAL & NURSING CARE PLACEMENTS,"1,460.40",Revenue,06/01/2015,Social Care & Inclusion
WC52-0291,ALPHA HEALTH CARE LTD,Commissioning,OP COMMISSIONING,Third Party Payments,Private Contractor Fees,73373-RESIDENTIAL & NURSING CARE PLACEMENTS,"1,460.40",Revenue,20/01/2015,Social Care & Inclusion
WC52-0292,ALPHA HEALTH CARE LTD,Commissioning,OP COMMISSIONING,Third Party Payments,Private Contractor Fees,73373-RESIDENTIAL & NURSING CARE PLACEMENTS,"1,460.40",Revenue,20/01/2015,Social Care & Inclusion
WC52-0293,ALPHA HEALTH CARE LTD,"Access,Assessment & Care Management",LD COMMISSIONING,Third Party Payments,Private Contractor Fees,73373-RESIDENTIAL & NURSING CARE PLACEMENTS,"1,470.60",Revenue,20/01/2015,Social Care & Inclusion
WC52-0294,ALPHA HEALTH CARE LTD,"Access,Assessment & Care Management",LD COMMISSIONING,Third Party Payments,Private Contractor Fees,73373-RESIDENTIAL & NURSING CARE PLACEMENTS,"1,476.84",Revenue,20/01/2015,Social Care & Inclusion
WC52-0295,ALPHA HEALTH CARE LTD,Mental Health,MH COMMISSIONING,Third Party Payments,Private Contractor Fees,73373-RESIDENTIAL & NURSING CARE PLACEMENTS,"1,476.84",Revenue,20/01/2015,Social Care & Inclusion
WC52-0296,ALPHA HEALTH CARE LTD,Commissioning,OP COMMISSIONING,Third Party Payments,Private Contractor Fees,73373-RESIDENTIAL & NURSING CARE PLACEMENTS,"1,476.84",Revenue,20/01/2015,Social Care & Inclusion
WC52-0297,ALPHA HEALTH CARE LTD,Commissioning,OP COMMISSIONING,Third Party Payments,Private Contractor Fees,73373-RESIDENTIAL & NURSING CARE PLACEMENTS,"1,489.60",Revenue,06/01/2015,Social Care & Inclusion
WC52-0298,ALPHA HEALTH CARE LTD,Commissioning,OP COMMISSIONING,Third Party Payments,Private Contractor Fees,73373-RESIDENTIAL & NURSING CARE PLACEMENTS,"1,489.60",Revenue,06/01/2015,Social Care & Inclusion
WC52-0299,ALPHA HEALTH CARE LTD,Commissioning,OP COMMISSIONING,Third Party Payments,Private Contractor Fees,73373-RESIDENTIAL & NURSING CARE PLACEMENTS,"1,489.60",Revenue,13/01/2015,Social Care & Inclusion
WC52-0300,ALPHA HEALTH CARE LTD,Commissioning,OP COMMISSIONING,Third Party Payments,Private Contractor Fees,73373-RESIDENTIAL & NURSING CARE PLACEMENTS,"1,489.60",Revenue,20/01/2015,Social Care & Inclusion
WC52-0301,ALPHA HEALTH CARE LTD,Commissioning,OP COMMISSIONING,Third Party Payments,Private Contractor Fees,73373-RESIDENTIAL & NURSING CARE PLACEMENTS,"1,489.60",Revenue,20/01/2015,Social Care & Inclusion
WC52-0302,ALPHA HEALTH CARE LTD,Commissioning,OP COMMISSIONING,Third Party Payments,Private Contractor Fees,73373-RESIDENTIAL & NURSING CARE PLACEMENTS,"1,489.60",Revenue,20/01/2015,Social Care & Inclusion
WC52-0303,ALPHA HEALTH CARE LTD,Commissioning,OP COMMISSIONING,Third Party Payments,Private Contractor Fees,73373-RESIDENTIAL & NURSING CARE PLACEMENTS,"1,489.60",Revenue,20/01/2015,Social Care & Inclusion
WC52-0304,ALPHA HEALTH CARE LTD,Commissioning,OP COMMISSIONING,Third Party Payments,Private Contractor Fees,73373-RESIDENTIAL & NURSING CARE PLACEMENTS,"1,489.60",Revenue,20/01/2015,Social Care & Inclusion
WC52-0305,ALPHA HEALTH CARE LTD,Mental Health,MH COMMISSIONING,Third Party Payments,Private Contractor Fees,73373-RESIDENTIAL & NURSING CARE PLACEMENTS,"1,489.60",Revenue,20/01/2015,Social Care & Inclusion
WC52-0306,ALPHA HEALTH CARE LTD,Commissioning,OP COMMISSIONING,Third Party Payments,Private Contractor Fees,73373-RESIDENTIAL & NURSING CARE PLACEMENTS,"1,489.60",Revenue,20/01/2015,Social Care & Inclusion
WC52-0307,ALPHA HEALTH CARE LTD,Mental Health,MH COMMISSIONING,Third Party Payments,Private Contractor Fees,73373-RESIDENTIAL & NURSING CARE PLACEMENTS,"1,489.60",Revenue,20/01/2015,Social Care & Inclusion
WC52-0308,ALPHA HEALTH CARE LTD,Mental Health,MH COMMISSIONING,Third Party Payments,Private Contractor Fees,73373-RESIDENTIAL & NURSING CARE PLACEMENTS,"1,489.60",Revenue,20/01/2015,Social Care & Inclusion
WC52-0309,ALPHA HEALTH CARE LTD,Mental Health,MH COMMISSIONING,Third Party Payments,Private Contractor Fees,73373-RESIDENTIAL & NURSING CARE PLACEMENTS,"1,489.60",Revenue,20/01/2015,Social Care & Inclusion
WC52-0310,ALPHA HEALTH CARE LTD,Commissioning,OP COMMISSIONING,Third Party Payments,Private Contractor Fees,73373-RESIDENTIAL & NURSING CARE PLACEMENTS,"1,489.64",Revenue,20/01/2015,Social Care & Inclusion
WC52-0311,ALPHA HEALTH CARE LTD,Commissioning,OP COMMISSIONING,Third Party Payments,Private Contractor Fees,73373-RESIDENTIAL & NURSING CARE PLACEMENTS,"1,534.12",Revenue,20/01/2015,Social Care & Inclusion
WC52-0312,ALPHA HEALTH CARE LTD,Commissioning,OP COMMISSIONING,Third Party Payments,Private Contractor Fees,73373-RESIDENTIAL & NURSING CARE PLACEMENTS,"1,534.12",Revenue,20/01/2015,Social Care & Inclusion
WC52-0313,ALPHA HEALTH CARE LTD,Commissioning,OP COMMISSIONING,Third Party Payments,Private Contractor Fees,73373-RESIDENTIAL & NURSING CARE PLACEMENTS,"1,534.12",Revenue,20/01/2015,Social Care & Inclusion
WC52-0314,ALPHA HEALTH CARE LTD,Commissioning,OP COMMISSIONING,Third Party Payments,Private Contractor Fees,73373-RESIDENTIAL & NURSING CARE PLACEMENTS,"1,534.28",Revenue,20/01/2015,Social Care & Inclusion
WC52-0315,ALPHA HEALTH CARE LTD,Commissioning,OP COMMISSIONING,Third Party Payments,Private Contractor Fees,73373-RESIDENTIAL & NURSING CARE PLACEMENTS,"1,590.32",Revenue,20/01/2015,Social Care & Inclusion
WC52-0316,ALPHA HEALTH CARE LTD,Commissioning,OP COMMISSIONING,Third Party Payments,Private Contractor Fees,73373-RESIDENTIAL & NURSING CARE PLACEMENTS,"1,937.56",Revenue,20/01/2015,Social Care & Inclusion
WC52-0317,ALPHA HEALTH CARE LTD,Commissioning,OP COMMISSIONING,Third Party Payments,Private Contractor Fees,73373-RESIDENTIAL & NURSING CARE PLACEMENTS,"2,006.76",Revenue,13/01/2015,Social Care & Inclusion
WC52-0318,ALPHA HEALTH CARE LTD,Commissioning,OP COMMISSIONING,Third Party Payments,Private Contractor Fees,73373-RESIDENTIAL & NURSING CARE PLACEMENTS,"2,008.20",Revenue,20/01/2015,Social Care & Inclusion
WC52-0319,ALPHA HEALTH CARE LTD,Mental Health,MH COMMISSIONING,Third Party Payments,Private Contractor Fees,73373-RESIDENTIAL & NURSING CARE PLACEMENTS,"2,109.44",Revenue,20/01/2015,Social Care & Inclusion
WC52-0320,ALPHA HEALTH CARE LTD,Mental Health,MH COMMISSIONING,Third Party Payments,Private Contractor Fees,73373-RESIDENTIAL & NURSING CARE PLACEMENTS,"5,426.72",Revenue,20/01/2015,Social Care & Inclusion
WC52-0321,ALPHA HEALTH CARE LTD,Mental Health,MH COMMISSIONING,Third Party Payments,Private Contractor Fees,73373-RESIDENTIAL & NURSING CARE PLACEMENTS,"5,600.00",Revenue,20/01/2015,Social Care & Inclusion
WC52-0322,ALTODIGITAL NETWORKS LTD,"Prevention, Workforce and Partnerships",CLUSTER 2 STREETLY & LEIGHSWOOD,Supplies & Services,Communications & Computing,63800-COMPUTER EQUIPMENT AND SUPPLIES,300.00,Revenue,16/01/2015,Childrens
WC52-0323,ALTODIGITAL NETWORKS LTD,Strategic Development,INTEGRATED BUSINESS PROCESSES & SERVICES,Supplies & Services,"Printing, Stationery & Office Exp",62000-EXTERNAL PRINTING SERVICES,331.97,Revenue,08/01/2015,Social Care & Inclusion
WC52-0324,ALTODIGITAL NETWORKS LTD,Safeguarding,CHILD PROTECTION & REVIEW SERVICES,Supplies & Services,"Equip,Furniture & Materials",60009-LEASING/HIRE/RENTAL-EQUIPMENT,334.97,Revenue,19/01/2015,Childrens
WC52-0325,ALTODIGITAL NETWORKS LTD,Strategic Development,ALLENS CENTRE,Supplies & Services,"Equip,Furniture & Materials",60009-LEASING/HIRE/RENTAL-EQUIPMENT,362.13,Revenue,09/01/2015,Social Care & Inclusion
WC52-0326,ALTODIGITAL NETWORKS LTD,Legal,LAW LIBRARY,Supplies & Services,"Equip,Furniture & Materials",60009-LEASING/HIRE/RENTAL-EQUIPMENT,436.00,Revenue,01/01/2015,Resources
WC52-0327,ALTODIGITAL NETWORKS LTD,Provider,REABLEMENT TEAM - HOLLY BANK,Supplies & Services,"Equip,Furniture & Materials",60009-LEASING/HIRE/RENTAL-EQUIPMENT,614.31,Revenue,08/01/2015,Social Care & Inclusion
WC52-0328,ALTODIGITAL NETWORKS LTD,Strategic Development,INTEGRATED BUSINESS PROCESSES & SERVICES,Supplies & Services,"Equip,Furniture & Materials",60009-LEASING/HIRE/RENTAL-EQUIPMENT,634.72,Revenue,01/01/2015,Social Care & Inclusion
WC52-0329,ALTODIGITAL NETWORKS LTD,Corporate Parenting,LOOKED AFTER CHILDRENS SOCIAL WORK TEAM,Supplies & Services,"Equip,Furniture & Materials",60009-LEASING/HIRE/RENTAL-EQUIPMENT,"2,088.03",Revenue,12/01/2015,Childrens
WC52-0330,ALUMWELLIES NURSERY,"Prevention, Workforce and Partnerships",EARLY YEARS SERVICE,Employees,Other Staff Costs,32000-MISC FEES AND EXPENSES,"2,700.00",Revenue,28/01/2015,Childrens
WC52-0331,ALUMWELLIES NURSERY,Education,EARLY YEARS - 2 YR OLDS,Third Party Payments,Grants to Other Orgs,66505-OTHER-GRANTS TO OTHER ORGS,"14,787.36",Revenue,23/01/2015,Childrens
WC52-0332,REDACTED,Corporate Parenting,INTERNAL FOSTER CARE PROVISION,Third Party Payments,Private Contractor Fees,74006-HOLIDAY/CHRISTMAS ALLOWANCE-FOSTER CARERS-OTH AGENCY PROVISION,"1,493.76",Revenue,19/01/2015,Childrens
WC52-0333,REDACTED,Corporate Parenting,INTERNAL FOSTER CARE PROVISION,Supplies & Services,Other Supplies & Services,62515-MISCELLANEOUS SUPPLIES,393.92,Revenue,05/01/2015,Childrens
WC52-0334,REDACTED,Corporate Parenting,INTERNAL FOSTER CARE PROVISION,Third Party Payments,Private Contractor Fees,74006-HOLIDAY/CHRISTMAS ALLOWANCE-FOSTER CARERS-OTH AGENCY PROVISION,561.32,Revenue,05/01/2015,Childrens
WC52-0335,REDACTED,Commissioning,OP COMMISSIONING,Transfer Payments,Transfer Payments,76422-DIRECT PAYMENTS TO SOCIAL SERVICES CLIENTS,654.50,Revenue,12/01/2015,Social Care & Inclusion
WC52-0336,REDACTED,Specialist Services Management,FAMILY SUPPORT - DIRECT PAYMENTS,Transfer Payments,Transfer Payments,76422-DIRECT PAYMENTS TO SOCIAL SERVICES CLIENTS,378.25,Revenue,12/01/2015,Childrens
WC52-0337,AMEY LG LIMITED,Development & Delivery,WALSALL MARKET,Supplies & Services,"Equip,Furniture & Materials",60015-MARKET STALLS-EQUIPMENT,489.76,Revenue,12/01/2015,Regeneration
WC52-0338,AMEY LG LIMITED,Engineering & Transportation,TRAFFIC MANAGEMENT,Third Party Payments,Private Contractor Fees,73025-PROFESSIONAL SERVICES-PRIV CONTRACTOR & OTHER AGENCIES,"4,260.76",Revenue,26/01/2015,Neighbourhood Services
WC52-0339,AMG NURSING CARE SERVICES,Commissioning,OP COMMISSIONING,Third Party Payments,Private Contractor Fees,73374-SUPPORTED & OTHER ACCOMMODATION,-880.04,Revenue,12/01/2015,Social Care & Inclusion
WC52-0340,AMG NURSING CARE SERVICES,Commissioning,OP COMMISSIONING,Third Party Payments,Private Contractor Fees,73372-DOMICILIARY CARE,-504.00,Revenue,07/01/2015,Social Care & Inclusion
WC52-0341,AMG NURSING CARE SERVICES,Specialist Services Management,DIRECTLY COMMISSIONED NURSING SERVICES,Supplies & Services,Services,63000-PROFESSIONAL FEES AND SERVICES,"1,088.88",Revenue,14/01/2015,Childrens
WC52-0342,AMG NURSING CARE SERVICES,Specialist Services Management,DIRECTLY COMMISSIONED NURSING SERVICES,Supplies & Services,Services,63000-PROFESSIONAL FEES AND SERVICES,"1,907.20",Revenue,20/01/2015,Childrens
WC52-0343,AMG NURSING CARE SERVICES,Specialist Services Management,DIRECTLY COMMISSIONED NURSING SERVICES,Supplies & Services,Services,63000-PROFESSIONAL FEES AND SERVICES,"2,229.76",Revenue,01/01/2015,Childrens
WC52-0344,AMG NURSING CARE SERVICES,Specialist Services Management,DIRECTLY COMMISSIONED NURSING SERVICES,Supplies & Services,Services,63000-PROFESSIONAL FEES AND SERVICES,"2,229.76",Revenue,14/01/2015,Childrens
WC52-0345,AMG NURSING CARE SERVICES,Specialist Services Management,DIRECTLY COMMISSIONED NURSING SERVICES,Supplies & Services,Services,63000-PROFESSIONAL FEES AND SERVICES,"2,270.16",Revenue,28/01/2015,Childrens
WC52-0346,AMG NURSING CARE SERVICES,Commissioning,CONCESSIONARY TRAVEL,Third Party Payments,Private Contractor Fees,73372-DOMICILIARY CARE,"6,695.88",Revenue,14/01/2015,Social Care & Inclusion
WC52-0347,AMG NURSING CARE SERVICES,Commissioning,CONCESSIONARY TRAVEL,Third Party Payments,Private Contractor Fees,73372-DOMICILIARY CARE,"6,782.98",Revenue,19/01/2015,Social Care & Inclusion
WC52-0348,REDACTED,Commissioning,OP COMMISSIONING,Transfer Payments,Transfer Payments,76422-DIRECT PAYMENTS TO SOCIAL SERVICES CLIENTS,"1,485.40",Revenue,12/01/2015,Social Care & Inclusion
WC52-0349,REDACTED,Commissioning,CONCESSIONARY TRAVEL,Transfer Payments,Transfer Payments,76422-DIRECT PAYMENTS TO SOCIAL SERVICES CLIENTS,891.24,Revenue,12/01/2015,Social Care & Inclusion
WC52-0350,REDACTED,Corporate Parenting,INTERNAL FOSTER CARE PROVISION,Third Party Payments,Private Contractor Fees,74006-HOLIDAY/CHRISTMAS ALLOWANCE-FOSTER CARERS-OTH AGENCY PROVISION,417.56,Revenue,19/01/2015,Childrens
WC52-0351,REDACTED,Commissioning,OP COMMISSIONING,Transfer Payments,Transfer Payments,76422-DIRECT PAYMENTS TO SOCIAL SERVICES CLIENTS,569.50,Revenue,12/01/2015,Social Care & Inclusion
WC52-0352,REDACTED,Corporate Parenting,INTERNAL FOSTER CARE PROVISION,Supplies & Services,Other Supplies & Services,62515-MISCELLANEOUS SUPPLIES,350.40,Revenue,05/01/2015,Childrens
WC52-0353,REDACTED,Corporate Parenting,INTERNAL FOSTER CARE PROVISION,Third Party Payments,Private Contractor Fees,74006-HOLIDAY/CHRISTMAS ALLOWANCE-FOSTER CARERS-OTH AGENCY PROVISION,"1,278.80",Revenue,05/01/2015,Childrens
WC52-0354,REDACTED,Corporate Parenting,INTERNAL FOSTER CARE PROVISION,Supplies & Services,Other Supplies & Services,62515-MISCELLANEOUS SUPPLIES,"1,961.44",Revenue,05/01/2015,Childrens
WC52-0355,REDACTED,Commissioning,CONCESSIONARY TRAVEL,Transfer Payments,Transfer Payments,76422-DIRECT PAYMENTS TO SOCIAL SERVICES CLIENTS,378.00,Revenue,12/01/2015,Social Care & Inclusion
WC52-0356,ANDREW PAGE LTD,Clean and Green Services,FLEET PARTS STOCK ACCOUNT,Supplies & Services,"Equip,Furniture & Materials",60514-MATERIALS TO STORES,307.12,Revenue,26/01/2015,Neighbourhood Services
WC52-0357,REDACTED,Corporate Parenting,INTERNAL FOSTER CARE PROVISION,Third Party Payments,Private Contractor Fees,74006-HOLIDAY/CHRISTMAS ALLOWANCE-FOSTER CARERS-OTH AGENCY PROVISION,886.32,Revenue,05/01/2015,Childrens
WC52-0358,REDACTED,Corporate Parenting,INTERNAL FOSTER CARE PROVISION,Supplies & Services,Other Supplies & Services,62515-MISCELLANEOUS SUPPLIES,896.24,Revenue,05/01/2015,Childrens
WC52-0359,ANDREWS ELECTRICAL LTD,Education,CFR 1017 ST JOHNS CE PRIMARY ROOFING WORKS,Capital,Capital,01006-SITE WORKS MAIN CONTRACTORS,"1,850.00",Capital,26/01/2015,Childrens
WC52-0360,ANDREWS ELECTRICAL LTD,Education,CFR 1017 POOL HAYES A&C SCHOOL REWIRE PHASE 2,Capital,Capital,01006-SITE WORKS MAIN CONTRACTORS,"48,405.35",Capital,26/01/2015,Childrens
WC52-0361,ANGEL COURT RESIDENTIAL CARE HOME,Commissioning,OP COMMISSIONING,Third Party Payments,Private Contractor Fees,73373-RESIDENTIAL & NURSING CARE PLACEMENTS,"1,698.49",Revenue,13/01/2015,Social Care & Inclusion
WC52-0362,ANGEL COURT RESIDENTIAL CARE HOME,Commissioning,OP COMMISSIONING,Third Party Payments,Private Contractor Fees,73373-RESIDENTIAL & NURSING CARE PLACEMENTS,"1,857.25",Revenue,13/01/2015,Social Care & Inclusion
WC52-0363,REDACTED,Corporate Parenting,INTERNAL FOSTER CARE PROVISION,Third Party Payments,Private Contractor Fees,74006-HOLIDAY/CHRISTMAS ALLOWANCE-FOSTER CARERS-OTH AGENCY PROVISION,"1,918.20",Revenue,19/01/2015,Childrens
WC52-0364,REDACTED,Corporate Parenting,INTERNAL FOSTER CARE PROVISION,Third Party Payments,Private Contractor Fees,74006-HOLIDAY/CHRISTMAS ALLOWANCE-FOSTER CARERS-OTH AGENCY PROVISION,796.00,Revenue,19/01/2015,Childrens
WC52-0365,ANGLIA STAIRLIFTS LTD,Housing Services,CFR 826 DISABLED FACILITIES GRANTS (SOCIAL SERVICES),Capital,Capital,01045-PRIVATE GRANTS,"4,855.00",Capital,16/01/2015,Resources
WC52-0366,REDACTED,Corporate Parenting,INTERNAL FOSTER CARE PROVISION,Supplies & Services,Other Supplies & Services,62515-MISCELLANEOUS SUPPLIES,459.44,Revenue,05/01/2015,Childrens
WC52-0367,REDACTED,Corporate Parenting,INTERNAL FOSTER CARE PROVISION,Third Party Payments,Private Contractor Fees,74006-HOLIDAY/CHRISTMAS ALLOWANCE-FOSTER CARERS-OTH AGENCY PROVISION,"1,317.95",Revenue,05/01/2015,Childrens
WC52-0368,REDACTED,Commissioning,OP COMMISSIONING,Transfer Payments,Transfer Payments,76422-DIRECT PAYMENTS TO SOCIAL SERVICES CLIENTS,318.00,Revenue,12/01/2015,Social Care & Inclusion
WC52-0369,REDACTED,Commissioning,BCPFT,Third Party Payments,Private Contractor Fees,73374-SUPPORTED & OTHER ACCOMMODATION,735.12,Revenue,06/01/2015,Social Care & Inclusion
WC52-0370,REDACTED,Commissioning,CONCESSIONARY TRAVEL,Transfer Payments,Transfer Payments,76422-DIRECT PAYMENTS TO SOCIAL SERVICES CLIENTS,625.82,Revenue,12/01/2015,Social Care & Inclusion
WC52-0371,ANSON COURT RESIDENTIAL HOME,Commissioning,OP COMMISSIONING,Third Party Payments,Private Contractor Fees,73373-RESIDENTIAL & NURSING CARE PLACEMENTS,"1,532.52",Revenue,20/01/2015,Social Care & Inclusion
WC52-0372,ANSON COURT RESIDENTIAL HOME,Commissioning,OP COMMISSIONING,Third Party Payments,Private Contractor Fees,73373-RESIDENTIAL & NURSING CARE PLACEMENTS,"1,534.12",Revenue,13/01/2015,Social Care & Inclusion
WC52-0373,ANSON COURT RESIDENTIAL HOME,Commissioning,OP COMMISSIONING,Third Party Payments,Private Contractor Fees,73373-RESIDENTIAL & NURSING CARE PLACEMENTS,"1,534.12",Revenue,20/01/2015,Social Care & Inclusion
WC52-0374,ANSON COURT RESIDENTIAL HOME,Mental Health,MH COMMISSIONING,Third Party Payments,Private Contractor Fees,73373-RESIDENTIAL & NURSING CARE PLACEMENTS,"1,534.12",Revenue,20/01/2015,Social Care & Inclusion
WC52-0375,ANSON COURT RESIDENTIAL HOME,Commissioning,OP COMMISSIONING,Third Party Payments,Private Contractor Fees,73373-RESIDENTIAL & NURSING CARE PLACEMENTS,"1,534.12",Revenue,20/01/2015,Social Care & Inclusion
WC52-0376,ANSON COURT RESIDENTIAL HOME,Commissioning,OP COMMISSIONING,Third Party Payments,Private Contractor Fees,73373-RESIDENTIAL & NURSING CARE PLACEMENTS,"1,534.12",Revenue,20/01/2015,Social Care & Inclusion
WC52-0377,ANSON COURT RESIDENTIAL HOME,Commissioning,OP COMMISSIONING,Third Party Payments,Private Contractor Fees,73373-RESIDENTIAL & NURSING CARE PLACEMENTS,"1,534.12",Revenue,20/01/2015,Social Care & Inclusion
WC52-0378,ANSON COURT RESIDENTIAL HOME,Mental Health,MH COMMISSIONING,Third Party Payments,Private Contractor Fees,73373-RESIDENTIAL & NURSING CARE PLACEMENTS,"1,534.12",Revenue,20/01/2015,Social Care & Inclusion
WC52-0379,ANSON COURT RESIDENTIAL HOME,Commissioning,OP COMMISSIONING,Third Party Payments,Private Contractor Fees,73373-RESIDENTIAL & NURSING CARE PLACEMENTS,"1,534.72",Revenue,27/01/2015,Social Care & Inclusion
WC52-0380,ANSON COURT RESIDENTIAL HOME,Mental Health,MH COMMISSIONING,Third Party Payments,Private Contractor Fees,73373-RESIDENTIAL & NURSING CARE PLACEMENTS,"1,612.92",Revenue,20/01/2015,Social Care & Inclusion
WC52-0381,ANSON COURT RESIDENTIAL HOME,Commissioning,OP COMMISSIONING,Third Party Payments,Private Contractor Fees,73373-RESIDENTIAL & NURSING CARE PLACEMENTS,"1,614.12",Revenue,13/01/2015,Social Care & Inclusion
WC52-0382,ANSON COURT RESIDENTIAL HOME,Commissioning,OP COMMISSIONING,Third Party Payments,Private Contractor Fees,73373-RESIDENTIAL & NURSING CARE PLACEMENTS,"1,614.12",Revenue,20/01/2015,Social Care & Inclusion
WC52-0383,ANSON COURT RESIDENTIAL HOME,Commissioning,OP COMMISSIONING,Third Party Payments,Private Contractor Fees,73373-RESIDENTIAL & NURSING CARE PLACEMENTS,"1,614.72",Revenue,20/01/2015,Social Care & Inclusion
WC52-0384,ANSON COURT RESIDENTIAL HOME,Commissioning,OP COMMISSIONING,Third Party Payments,Private Contractor Fees,73373-RESIDENTIAL & NURSING CARE PLACEMENTS,"1,614.72",Revenue,20/01/2015,Social Care & Inclusion
WC52-0385,ANSON COURT RESIDENTIAL HOME,Mental Health,MH COMMISSIONING,Third Party Payments,Private Contractor Fees,73373-RESIDENTIAL & NURSING CARE PLACEMENTS,"2,794.40",Revenue,13/01/2015,Social Care & Inclusion
WC52-0386,ANSON PRIMARY SCHOOL,Education,OUT OF BOROUGH SCHOOLS,Transfer Payments,Transfer Payments,77300-ISB-FORMULA ALLOCATION,"1,300.00",Revenue,15/01/2015,Childrens
WC52-0387,ANSWAR ASLAM,Libraries Heritage & Arts,LIBRARY DEVELOPMENT 1,Supplies & Services,"Equip,Furniture & Materials",60500-GENERAL MATERIALS,250.00,Revenue,02/01/2015,Neighbourhood Services
WC52-0388,REDACTED,Corporate Parenting,INTERNAL FOSTER CARE PROVISION,Third Party Payments,Private Contractor Fees,74006-HOLIDAY/CHRISTMAS ALLOWANCE-FOSTER CARERS-OTH AGENCY PROVISION,"1,364.56",Revenue,19/01/2015,Childrens
WC52-0389,REDACTED,Corporate Parenting,INTERNAL FOSTER CARE PROVISION,Third Party Payments,Private Contractor Fees,74006-HOLIDAY/CHRISTMAS ALLOWANCE-FOSTER CARERS-OTH AGENCY PROVISION,561.32,Revenue,19/01/2015,Childrens
WC52-0390,APCOA PARKING SERVICES (UK) LTD,Smarter Workplaces,CFR 837 SMARTER WORKPLACES-WORKPLACE SOLUTIONS INVESTMENT,Capital,Capital,01044-PURCHASE OF FURNITURE & EQUIPMENT,530.00,Capital,13/01/2015,Regeneration
WC52-0391,APCOA PARKING SERVICES (UK) LTD,Smarter Workplaces,CFR 837 SMARTER WORKPLACES-WORKPLACE SOLUTIONS INVESTMENT,Capital,Capital,01044-PURCHASE OF FURNITURE & EQUIPMENT,800.00,Capital,13/01/2015,Regeneration
WC52-0392,APCOA PARKING SERVICES (UK) LTD,Engineering & Transportation,PARKING SERVICES,Third Party Payments,Private Contractor Fees,73025-PROFESSIONAL SERVICES-PRIV CONTRACTOR & OTHER AGENCIES,"40,805.61",Revenue,16/01/2015,Neighbourhood Services
WC52-0393,APCOA PARKING SERVICES (UK) LTD,Engineering & Transportation,PARKING SERVICES,Third Party Payments,Private Contractor Fees,73025-PROFESSIONAL SERVICES-PRIV CONTRACTOR & OTHER AGENCIES,"105,369.53",Revenue,16/01/2015,Neighbourhood Services
WC52-0394,APPLE TRANSCRIPTION LIMITED,Specialist Services Management,GENERAL MANAGEMENT SUPPORT (INC LEGAL),Transfer Payments,Transfer Payments,74009-ADOPTION ALLOWANCE,424.75,Revenue,29/01/2015,Childrens
WC52-0395,ARBORETUM NURSING HOME.,Commissioning,OP COMMISSIONING,Third Party Payments,Private Contractor Fees,73373-RESIDENTIAL & NURSING CARE PLACEMENTS,"1,933.16",Revenue,13/01/2015,Social Care & Inclusion
WC52-0396,ARBORETUM NURSING HOME.,Commissioning,OP COMMISSIONING,Third Party Payments,Private Contractor Fees,73373-RESIDENTIAL & NURSING CARE PLACEMENTS,"1,933.16",Revenue,13/01/2015,Social Care & Inclusion
WC52-0397,ARBORETUM NURSING HOME.,Commissioning,OP COMMISSIONING,Third Party Payments,Private Contractor Fees,73373-RESIDENTIAL & NURSING CARE PLACEMENTS,"1,933.16",Revenue,13/01/2015,Social Care & Inclusion
WC52-0398,ARBORETUM NURSING HOME.,Commissioning,OP COMMISSIONING,Third Party Payments,Private Contractor Fees,73373-RESIDENTIAL & NURSING CARE PLACEMENTS,"1,933.16",Revenue,13/01/2015,Social Care & Inclusion
WC52-0399,ARBORETUM NURSING HOME.,Commissioning,CONCESSIONARY TRAVEL,Third Party Payments,Private Contractor Fees,73373-RESIDENTIAL & NURSING CARE PLACEMENTS,"1,990.76",Revenue,13/01/2015,Social Care & Inclusion
WC52-0400,ARBORETUM NURSING HOME.,Commissioning,OP COMMISSIONING,Third Party Payments,Private Contractor Fees,73373-RESIDENTIAL & NURSING CARE PLACEMENTS,"1,990.76",Revenue,13/01/2015,Social Care & Inclusion
WC52-0401,ARBORETUM NURSING HOME.,Commissioning,OP COMMISSIONING,Third Party Payments,Private Contractor Fees,73373-RESIDENTIAL & NURSING CARE PLACEMENTS,"1,990.76",Revenue,13/01/2015,Social Care & Inclusion
WC52-0402,ARBORETUM NURSING HOME.,Commissioning,OP COMMISSIONING,Third Party Payments,Private Contractor Fees,73373-RESIDENTIAL & NURSING CARE PLACEMENTS,"2,416.45",Revenue,13/01/2015,Social Care & Inclusion
WC52-0403,ARBORETUM NURSING HOME.,Commissioning,OP COMMISSIONING,Third Party Payments,Private Contractor Fees,73373-RESIDENTIAL & NURSING CARE PLACEMENTS,"2,472.75",Revenue,20/01/2015,Social Care & Inclusion
WC52-0404,ARBORETUM NURSING HOME.,Commissioning,OP COMMISSIONING,Third Party Payments,Private Contractor Fees,73373-RESIDENTIAL & NURSING CARE PLACEMENTS,"2,488.45",Revenue,13/01/2015,Social Care & Inclusion
WC52-0405,ARBORICULTURAL ASSOCIATION,Clean and Green Services,TREE TEAM,Supplies & Services,"Equip,Furniture & Materials",60500-GENERAL MATERIALS,285.05,Revenue,07/01/2015,Neighbourhood Services
WC52-0406,ARCHWAY TCS LTD,Clean and Green Services,DEPOT,Third Party Payments,Private Contractor Fees,73025-PROFESSIONAL SERVICES-PRIV CONTRACTOR & OTHER AGENCIES,425.70,Revenue,23/01/2015,Neighbourhood Services
WC52-0407,ARCHWAY TCS LTD,Clean and Green Services,DEPOT,Supplies & Services,"Equip,Furniture & Materials",60537-VEHICLE WASH PLANT-MATERIALS,680.00,Revenue,22/01/2015,Neighbourhood Services
WC52-0408,ARCHWAY TCS LTD,Clean and Green Services,DEPOT,Supplies & Services,"Equip,Furniture & Materials",60537-VEHICLE WASH PLANT-MATERIALS,707.50,Revenue,12/01/2015,Neighbourhood Services
WC52-0409,ARCO GROUP,Clean and Green Services,FLEET PARTS STOCK ACCOUNT,Supplies & Services,"Equip,Furniture & Materials",60514-MATERIALS TO STORES,426.30,Revenue,01/01/2015,Neighbourhood Services
WC52-0410,ARJOHUNTLEIGH UK,Strategic Development,INTEGRATED BUSINESS PROCESSES & SERVICES,Supplies & Services,"Equip,Furniture & Materials",60520-HEALTH & SAFETY-MATERIALS,447.00,Revenue,26/01/2015,Social Care & Inclusion
WC52-0411,ARTHUR M GRIFFITHS & SON LTD,Corporate Parenting,CFR 824 SHORT BREAKS FOR DISABLED CHILDREN CAPITAL GRANT 2011/12,Capital,Capital,01002-PROJECT FEES,"22,193.67",Capital,22/01/2015,Childrens
WC52-0412,ARTREACH EVENTS LTD,Libraries Heritage & Arts,FOREST ARTS CENTRE,Supplies & Services,Services,63000-PROFESSIONAL FEES AND SERVICES,"3,300.00",Revenue,06/01/2015,Neighbourhood Services
WC52-0413,ASAN MANAGEMENT SERVICES LTD,Strategic Regeneration,ERDF-AUTHORITY PARTNERS/TECHNICAL ASSISTANCE PROGRAMME,Supplies & Services,Other Supplies & Services,63128-HIRE OF ROOM-SERVICES-FEES,330.00,Revenue,12/01/2015,Regeneration
WC52-0414,ASDA PHARMACY,Public Health,ALCOHOL & DRUGS MISUSE/TOBACCO CONTROL,Supplies & Services,Services,63000-PROFESSIONAL FEES AND SERVICES,87.50,Revenue,20/01/2015,Neighbourhood Services
WC52-0415,ASDA PHARMACY,Public Health,SEXUAL HEALTH,Supplies & Services,Services,63000-PROFESSIONAL FEES AND SERVICES,350.00,Revenue,20/01/2015,Neighbourhood Services
WC52-0416,ASH GRANGE CARE HOME,Commissioning,OP COMMISSIONING,Third Party Payments,Private Contractor Fees,73373-RESIDENTIAL & NURSING CARE PLACEMENTS,"-1,522.37",Revenue,27/01/2015,Social Care & Inclusion
WC52-0417,ASH GRANGE CARE HOME,Commissioning,OP COMMISSIONING,Third Party Payments,Private Contractor Fees,73373-RESIDENTIAL & NURSING CARE PLACEMENTS,-886.67,Revenue,06/01/2015,Social Care & Inclusion
WC52-0418,ASH GRANGE CARE HOME,Commissioning,OP COMMISSIONING,Third Party Payments,Private Contractor Fees,73373-RESIDENTIAL & NURSING CARE PLACEMENTS,-415.19,Revenue,06/01/2015,Social Care & Inclusion
WC52-0419,ASH GRANGE CARE HOME,Commissioning,OP COMMISSIONING,Third Party Payments,Private Contractor Fees,73373-RESIDENTIAL & NURSING CARE PLACEMENTS,345.99,Revenue,06/01/2015,Social Care & Inclusion
WC52-0420,ASH GRANGE CARE HOME,Commissioning,OP COMMISSIONING,Third Party Payments,Private Contractor Fees,73373-RESIDENTIAL & NURSING CARE PLACEMENTS,345.99,Revenue,06/01/2015,Social Care & Inclusion
WC52-0421,ASH GRANGE CARE HOME,Commissioning,OP COMMISSIONING,Third Party Payments,Private Contractor Fees,73373-RESIDENTIAL & NURSING CARE PLACEMENTS,782.36,Revenue,06/01/2015,Social Care & Inclusion
WC52-0422,ASH GRANGE CARE HOME,Commissioning,OP COMMISSIONING,Third Party Payments,Private Contractor Fees,73373-RESIDENTIAL & NURSING CARE PLACEMENTS,782.36,Revenue,06/01/2015,Social Care & Inclusion
WC52-0423,ASH GRANGE CARE HOME,Commissioning,OP COMMISSIONING,Third Party Payments,Private Contractor Fees,73373-RESIDENTIAL & NURSING CARE PLACEMENTS,"1,408.24",Revenue,20/01/2015,Social Care & Inclusion
WC52-0424,ASH GRANGE CARE HOME,Commissioning,OP COMMISSIONING,Third Party Payments,Private Contractor Fees,73373-RESIDENTIAL & NURSING CARE PLACEMENTS,"1,460.40",Revenue,13/01/2015,Social Care & Inclusion
WC52-0425,ASH GRANGE CARE HOME,Commissioning,OP COMMISSIONING,Third Party Payments,Private Contractor Fees,73373-RESIDENTIAL & NURSING CARE PLACEMENTS,"1,460.40",Revenue,13/01/2015,Social Care & Inclusion
WC52-0426,ASH GRANGE CARE HOME,Commissioning,OP COMMISSIONING,Third Party Payments,Private Contractor Fees,73373-RESIDENTIAL & NURSING CARE PLACEMENTS,"1,460.40",Revenue,13/01/2015,Social Care & Inclusion
WC52-0427,ASH GRANGE CARE HOME,Commissioning,OP COMMISSIONING,Third Party Payments,Private Contractor Fees,73373-RESIDENTIAL & NURSING CARE PLACEMENTS,"1,460.40",Revenue,13/01/2015,Social Care & Inclusion
WC52-0428,ASH GRANGE CARE HOME,Commissioning,OP COMMISSIONING,Third Party Payments,Private Contractor Fees,73373-RESIDENTIAL & NURSING CARE PLACEMENTS,"1,460.40",Revenue,13/01/2015,Social Care & Inclusion
WC52-0429,ASH GRANGE CARE HOME,Commissioning,OP COMMISSIONING,Third Party Payments,Private Contractor Fees,73373-RESIDENTIAL & NURSING CARE PLACEMENTS,"1,460.40",Revenue,20/01/2015,Social Care & Inclusion
WC52-0430,ASH GRANGE CARE HOME,Commissioning,OP COMMISSIONING,Third Party Payments,Private Contractor Fees,73373-RESIDENTIAL & NURSING CARE PLACEMENTS,"1,937.56",Revenue,13/01/2015,Social Care & Inclusion
WC52-0431,ASH GRANGE CARE HOME,Commissioning,OP COMMISSIONING,Third Party Payments,Private Contractor Fees,73373-RESIDENTIAL & NURSING CARE PLACEMENTS,"1,937.56",Revenue,13/01/2015,Social Care & Inclusion
WC52-0432,ASH GRANGE CARE HOME,Commissioning,OP COMMISSIONING,Third Party Payments,Private Contractor Fees,73373-RESIDENTIAL & NURSING CARE PLACEMENTS,"1,937.56",Revenue,13/01/2015,Social Care & Inclusion
WC52-0433,ASH GRANGE CARE HOME,Mental Health,MH COMMISSIONING,Third Party Payments,Private Contractor Fees,73373-RESIDENTIAL & NURSING CARE PLACEMENTS,"1,937.56",Revenue,13/01/2015,Social Care & Inclusion
WC52-0434,ASH GRANGE CARE HOME,Commissioning,OP COMMISSIONING,Third Party Payments,Private Contractor Fees,73373-RESIDENTIAL & NURSING CARE PLACEMENTS,"1,937.56",Revenue,13/01/2015,Social Care & Inclusion
WC52-0435,ASH GRANGE CARE HOME,Commissioning,OP COMMISSIONING,Third Party Payments,Private Contractor Fees,73373-RESIDENTIAL & NURSING CARE PLACEMENTS,"1,937.56",Revenue,13/01/2015,Social Care & Inclusion
WC52-0436,ASH GRANGE CARE HOME,Commissioning,OP COMMISSIONING,Third Party Payments,Private Contractor Fees,73373-RESIDENTIAL & NURSING CARE PLACEMENTS,"1,937.56",Revenue,13/01/2015,Social Care & Inclusion
WC52-0437,ASH GRANGE CARE HOME,Commissioning,OP COMMISSIONING,Third Party Payments,Private Contractor Fees,73373-RESIDENTIAL & NURSING CARE PLACEMENTS,"1,937.56",Revenue,13/01/2015,Social Care & Inclusion
WC52-0438,ASH GRANGE CARE HOME,Commissioning,OP COMMISSIONING,Third Party Payments,Private Contractor Fees,73373-RESIDENTIAL & NURSING CARE PLACEMENTS,"1,937.56",Revenue,13/01/2015,Social Care & Inclusion
WC52-0439,ASH GRANGE CARE HOME,Commissioning,OP COMMISSIONING,Third Party Payments,Private Contractor Fees,73373-RESIDENTIAL & NURSING CARE PLACEMENTS,"1,937.56",Revenue,20/01/2015,Social Care & Inclusion
WC52-0440,ASH GRANGE CARE HOME,Commissioning,OP COMMISSIONING,Third Party Payments,Private Contractor Fees,73373-RESIDENTIAL & NURSING CARE PLACEMENTS,"1,937.56",Revenue,27/01/2015,Social Care & Inclusion
WC52-0441,ASH GRANGE CARE HOME,Commissioning,OP COMMISSIONING,Third Party Payments,Private Contractor Fees,73373-RESIDENTIAL & NURSING CARE PLACEMENTS,"1,937.56",Revenue,27/01/2015,Social Care & Inclusion
WC52-0442,ASH GRANGE CARE HOME,Commissioning,OP COMMISSIONING,Third Party Payments,Private Contractor Fees,73373-RESIDENTIAL & NURSING CARE PLACEMENTS,"2,012.64",Revenue,13/01/2015,Social Care & Inclusion
WC52-0443,ASH GRANGE CARE HOME,Mental Health,MH COMMISSIONING,Third Party Payments,Private Contractor Fees,73373-RESIDENTIAL & NURSING CARE PLACEMENTS,"2,012.64",Revenue,13/01/2015,Social Care & Inclusion
WC52-0444,ASH GRANGE CARE HOME,Commissioning,OP COMMISSIONING,Third Party Payments,Private Contractor Fees,73373-RESIDENTIAL & NURSING CARE PLACEMENTS,"2,070.60",Revenue,13/01/2015,Social Care & Inclusion
WC52-0445,ASH GRANGE CARE HOME,Commissioning,OP COMMISSIONING,Third Party Payments,Private Contractor Fees,73373-RESIDENTIAL & NURSING CARE PLACEMENTS,"2,145.15",Revenue,13/01/2015,Social Care & Inclusion
WC52-0446,ASH GRANGE CARE HOME,Commissioning,OP COMMISSIONING,Third Party Payments,Private Contractor Fees,73373-RESIDENTIAL & NURSING CARE PLACEMENTS,"2,145.15",Revenue,27/01/2015,Social Care & Inclusion
WC52-0447,ASH GRANGE CARE HOME,Commissioning,OP COMMISSIONING,Third Party Payments,Private Contractor Fees,73373-RESIDENTIAL & NURSING CARE PLACEMENTS,"2,864.40",Revenue,13/01/2015,Social Care & Inclusion
WC52-0448,ASH GRANGE CARE HOME,"Access,Assessment & Care Management",TRANSITIONAL CARE SUPPORT TEAM,Third Party Payments,Private Contractor Fees,73019-PSE'S-PRIV CONTRACTOR FEES,"13,650.00",Revenue,14/01/2015,Social Care & Inclusion
WC52-0449,ASH GRANGE CARE HOME,"Access,Assessment & Care Management",TRANSITIONAL CARE SUPPORT TEAM,Third Party Payments,Private Contractor Fees,73019-PSE'S-PRIV CONTRACTOR FEES,"14,700.00",Revenue,02/01/2015,Social Care & Inclusion
WC52-0450,ASH GRANGE CARE HOME,"Access,Assessment & Care Management",TRANSITIONAL CARE SUPPORT TEAM,Third Party Payments,Private Contractor Fees,73019-PSE'S-PRIV CONTRACTOR FEES,"14,700.00",Revenue,19/01/2015,Social Care & Inclusion
WC52-0451,ASHBOURNE LODGE,Commissioning,OP COMMISSIONING,Third Party Payments,Private Contractor Fees,73373-RESIDENTIAL & NURSING CARE PLACEMENTS,"6,054.91",Revenue,20/01/2015,Social Care & Inclusion
WC52-0452,ASKELITE LTD,Shared Services,RECHARGEABLE EQUIPMENT,Supplies & Services,Communications & Computing,63800-COMPUTER EQUIPMENT AND SUPPLIES,"2,700.00",Revenue,14/01/2015,Resources
WC52-0453,ASKEWS AND HOLTS LIBRARY SERVICES LTD,Libraries Heritage & Arts,LIBRARY STOCK AND PERFORMANCE,Supplies & Services,"Equip,Furniture & Materials",60501-LIBRARY BOOKS,256.14,Revenue,16/01/2015,Neighbourhood Services
WC52-0454,ASKEWS AND HOLTS LIBRARY SERVICES LTD,Libraries Heritage & Arts,LIBRARY STOCK AND PERFORMANCE,Supplies & Services,"Equip,Furniture & Materials",60501-LIBRARY BOOKS,262.74,Revenue,16/01/2015,Neighbourhood Services
WC52-0455,ASKEWS AND HOLTS LIBRARY SERVICES LTD,Libraries Heritage & Arts,LIBRARY STOCK AND PERFORMANCE,Supplies & Services,"Equip,Furniture & Materials",60501-LIBRARY BOOKS,298.83,Revenue,13/01/2015,Neighbourhood Services
WC52-0456,ASKEWS AND HOLTS LIBRARY SERVICES LTD,Libraries Heritage & Arts,LIBRARY STOCK AND PERFORMANCE,Supplies & Services,"Equip,Furniture & Materials",60501-LIBRARY BOOKS,495.48,Revenue,15/01/2015,Neighbourhood Services
WC52-0457,ASKEWS AND HOLTS LIBRARY SERVICES LTD,Libraries Heritage & Arts,LIBRARY STOCK AND PERFORMANCE,Supplies & Services,"Equip,Furniture & Materials",60501-LIBRARY BOOKS,498.05,Revenue,16/01/2015,Neighbourhood Services
WC52-0458,ASKEWS AND HOLTS LIBRARY SERVICES LTD,Libraries Heritage & Arts,LIBRARY STOCK AND PERFORMANCE,Supplies & Services,"Equip,Furniture & Materials",60501-LIBRARY BOOKS,526.36,Revenue,08/01/2015,Neighbourhood Services
WC52-0459,ASKEWS AND HOLTS LIBRARY SERVICES LTD,Libraries Heritage & Arts,LIBRARY STOCK AND PERFORMANCE,Supplies & Services,"Equip,Furniture & Materials",60501-LIBRARY BOOKS,661.04,Revenue,22/01/2015,Neighbourhood Services
WC52-0460,ASKEWS AND HOLTS LIBRARY SERVICES LTD,Libraries Heritage & Arts,LIBRARY STOCK AND PERFORMANCE,Supplies & Services,"Equip,Furniture & Materials",60501-LIBRARY BOOKS,696.81,Revenue,21/01/2015,Neighbourhood Services
WC52-0461,ASKEWS AND HOLTS LIBRARY SERVICES LTD,Libraries Heritage & Arts,LIBRARY STOCK AND PERFORMANCE,Supplies & Services,"Equip,Furniture & Materials",60501-LIBRARY BOOKS,"1,479.46",Revenue,01/01/2015,Neighbourhood Services
WC52-0462,REDACTED,Commissioning,CONCESSIONARY TRAVEL,Transfer Payments,Transfer Payments,76422-DIRECT PAYMENTS TO SOCIAL SERVICES CLIENTS,493.00,Revenue,12/01/2015,Social Care & Inclusion
WC52-0463,ASN FIRST AID & HYGIENE LTD,Strategic Development,INTEGRATED BUSINESS PROCESSES & SERVICES,Supplies & Services,"Equip,Furniture & Materials",61502-PROTECTIVE CLOTHING & UNIFORM,467.50,Revenue,26/01/2015,Social Care & Inclusion
WC52-0464,ASN FIRST AID & HYGIENE LTD,Strategic Development,INTEGRATED BUSINESS PROCESSES & SERVICES,Supplies & Services,"Equip,Furniture & Materials",61502-PROTECTIVE CLOTHING & UNIFORM,467.50,Revenue,26/01/2015,Social Care & Inclusion
WC52-0465,A-STAT OFFICE TECHNOLOGY LTD,"Prevention, Workforce and Partnerships","CLUSTER 6 BENTLEY,LIGHTHOUSE,FIBBERSLEY",Central,Internal Recharges,82012-PRINT & DESIGN CHARGES-INTERNAL,388.15,Revenue,21/01/2015,Childrens
WC52-0466,ASTON MANOR ROAD TRANSPORT MUSEUM LTD (AMRTM LTD),Clean and Green Services,BARR BEACON RESTORATION,Transport,Hire,52000-WITH DRIVER-HIRE OF VEHICLES,500.00,Revenue,14/01/2015,Neighbourhood Services
WC52-0467,ATHWAL NEWS LTD,Libraries Heritage & Arts,LIBRARY STOCK AND PERFORMANCE,Supplies & Services,"Equip,Furniture & Materials",60501-LIBRARY BOOKS,538.15,Revenue,01/01/2015,Neighbourhood Services
WC52-0468,ATHWAL NEWS LTD,Libraries Heritage & Arts,LIBRARY STOCK AND PERFORMANCE,Supplies & Services,"Equip,Furniture & Materials",60501-LIBRARY BOOKS,542.83,Revenue,01/01/2015,Neighbourhood Services
WC52-0469,ATKINS HIGHWAYS & TRANSPORTATION,Strategic Regeneration,CFR 794 SRTS - DESIGN IN ADVANCE 10/11,Capital,Capital,01001-OTHER CONSULTANTS FEES,"10,963.09",Capital,06/01/2015,Regeneration
WC52-0470,ATOM,Libraries Heritage & Arts,LIBRARY STOCK AND PERFORMANCE,Supplies & Services,"Equip,Furniture & Materials",60501-LIBRARY BOOKS,273.00,Revenue,02/01/2015,Neighbourhood Services
WC52-0471,AUDITEL RENTAL & SERVICE LTD,Property Services,WALSALL TOWN HALL,Premises,Premises-Repairs & Maintenance,"40000-REPAIRS,ALTERATIONS & MAINTENANCE-PREM",269.74,Revenue,13/01/2015,Regeneration
WC52-0472,AUDITEL RENTAL & SERVICE LTD,Property Services,WALSALL TOWN HALL,Premises,Premises-Repairs & Maintenance,"40000-REPAIRS,ALTERATIONS & MAINTENANCE-PREM","1,565.00",Revenue,13/01/2015,Regeneration
WC52-0473,AUTISM WEST MIDLANDS,"Access,Assessment & Care Management",LD COMMISSIONING,Third Party Payments,Private Contractor Fees,73373-RESIDENTIAL & NURSING CARE PLACEMENTS,"7,314.45",Revenue,06/01/2015,Social Care & Inclusion
WC52-0474,AUTISM WEST MIDLANDS,"Access,Assessment & Care Management",LD COMMISSIONING,Third Party Payments,Private Contractor Fees,73373-RESIDENTIAL & NURSING CARE PLACEMENTS,"7,314.45",Revenue,13/01/2015,Social Care & Inclusion
WC52-0475,AUTISM WEST MIDLANDS,Commissioning,LD SLA,Third Party Payments,Private Contractor Fees,70000-SOCIAL SERVICES-FEES TO VOLUNTARY BODIES,"21,666.50",Revenue,02/01/2015,Social Care & Inclusion
WC52-0476,AUTISM WEST MIDLANDS 001,"Access,Assessment & Care Management",LD COMMISSIONING,Third Party Payments,Private Contractor Fees,73373-RESIDENTIAL & NURSING CARE PLACEMENTS,"4,924.75",Revenue,06/01/2015,Social Care & Inclusion
WC52-0477,AUTISM WEST MIDLANDS 001,"Access,Assessment & Care Management",LD COMMISSIONING,Third Party Payments,Private Contractor Fees,73373-RESIDENTIAL & NURSING CARE PLACEMENTS,"4,924.75",Revenue,13/01/2015,Social Care & Inclusion
WC52-0478,AVANTGARDE PHARMA LTD T/A AL-SHAFA PHARMACY,Public Health,HEALTH CHECKS,Supplies & Services,Services,63000-PROFESSIONAL FEES AND SERVICES,914.79,Revenue,20/01/2015,Neighbourhood Services
WC52-0479,REDACTED,Commissioning,CARERS SERVICES,Transfer Payments,Transfer Payments,76422-DIRECT PAYMENTS TO SOCIAL SERVICES CLIENTS,450.00,Revenue,12/01/2015,Social Care & Inclusion
WC52-0480,AXIELL ALM LIMITED,Libraries Heritage & Arts,LIBRARY STOCK AND PERFORMANCE,Supplies & Services,Services,63000-PROFESSIONAL FEES AND SERVICES,440.96,Revenue,02/01/2015,Neighbourhood Services
WC52-0481,AXIELL ALM LIMITED,Libraries Heritage & Arts,LIBRARY STOCK AND PERFORMANCE,Supplies & Services,Services,63000-PROFESSIONAL FEES AND SERVICES,770.09,Revenue,20/01/2015,Neighbourhood Services
WC52-0482,AXIELL ALM LIMITED,Libraries Heritage & Arts,LIBRARY STOCK AND PERFORMANCE,Supplies & Services,Services,63000-PROFESSIONAL FEES AND SERVICES,820.44,Revenue,13/01/2015,Neighbourhood Services
WC52-0483,AXIELL LIMITED,Shared Services,APPLICATIONS,Supplies & Services,Communications & Computing,63820-RECHARGE FOR MAINTENANCE/APPLICATION COSTS-COMPUTER,"16,474.59",Revenue,01/01/2015,Resources
WC52-0484,AXIELL LIMITED,Shared Services,APPLICATIONS,Supplies & Services,Communications & Computing,63820-RECHARGE FOR MAINTENANCE/APPLICATION COSTS-COMPUTER,"16,474.59",Revenue,26/01/2015,Resources
WC52-0485,AXIOMATIC TECHNOLOGY LTD,Libraries Heritage & Arts,NEW ART GALLERY - ADMIN,Supplies & Services,"Equip,Furniture & Materials",60008-MAINTENANCE-FURNITURE & EQUIPMENT,379.00,Revenue,19/01/2015,Neighbourhood Services
WC52-0486,AXIS EUROPE,Housing Services,HANDYMAN SERVICE GRANT FUNDED,Premises,Premises-Repairs & Maintenance,"40000-REPAIRS,ALTERATIONS & MAINTENANCE-PREM",301.87,Revenue,27/01/2015,Resources
WC52-0487,AXIS EUROPE,Housing Services,CFR 771 BACKLOG AIDS & ADAPTATIONS,Capital,Capital,01006-SITE WORKS MAIN CONTRACTORS,"1,281.58",Capital,27/01/2015,Resources
WC52-0488,AXIS EUROPE,Housing Services,CFR 826 DISABLED FACILITIES GRANTS (SOCIAL SERVICES),Capital,Capital,01045-PRIVATE GRANTS,"1,573.56",Capital,27/01/2015,Resources
WC52-0489,AXIS EUROPE,Housing Services,CFR 826 DISABLED FACILITIES GRANTS (SOCIAL SERVICES),Capital,Capital,01045-PRIVATE GRANTS,"4,930.23",Capital,27/01/2015,Resources
WC52-0490,REDACTED,Specialist Services Management,FAMILY SUPPORT - DIRECT PAYMENTS,Transfer Payments,Transfer Payments,76422-DIRECT PAYMENTS TO SOCIAL SERVICES CLIENTS,"2,024.00",Revenue,12/01/2015,Childrens
WC52-0491,REDACTED,"Access,Assessment & Care Management",LD COMMISSIONING,Transfer Payments,Transfer Payments,76422-DIRECT PAYMENTS TO SOCIAL SERVICES CLIENTS,"2,652.00",Revenue,12/01/2015,Social Care & Inclusion
WC52-0492,REDACTED,Corporate Parenting,INTERNAL FOSTER CARE PROVISION,Third Party Payments,Private Contractor Fees,74006-HOLIDAY/CHRISTMAS ALLOWANCE-FOSTER CARERS-OTH AGENCY PROVISION,796.00,Revenue,05/01/2015,Childrens
WC52-0493,REDACTED,Corporate Parenting,INTERNAL FOSTER CARE PROVISION,Supplies & Services,Other Supplies & Services,62515-MISCELLANEOUS SUPPLIES,896.24,Revenue,05/01/2015,Childrens
WC52-0494,REDACTED,Corporate Parenting,INTERNAL FOSTER CARE PROVISION,Supplies & Services,Other Supplies & Services,62515-MISCELLANEOUS SUPPLIES,"1,428.44",Revenue,05/01/2015,Childrens
WC52-0495,REDACTED,Corporate Parenting,INTERNAL FOSTER CARE PROVISION,Third Party Payments,Private Contractor Fees,74006-HOLIDAY/CHRISTMAS ALLOWANCE-FOSTER CARERS-OTH AGENCY PROVISION,"2,057.68",Revenue,05/01/2015,Childrens
WC52-0496,BAAF,Corporate Parenting,FAMILY PLACEMENTS,Supplies & Services,Communications & Computing,68001-PUBLICITY & ADVERTISING (NOT STAFF ADVERTISING),455.70,Revenue,01/01/2015,Childrens
WC52-0497,BAAF,Corporate Parenting,FAMILY PLACEMENTS,Supplies & Services,Communications & Computing,68001-PUBLICITY & ADVERTISING (NOT STAFF ADVERTISING),568.05,Revenue,01/01/2015,Childrens
WC52-0498,BAAF,Corporate Parenting,ADOPTION TEAM,Supplies & Services,Communications & Computing,68001-PUBLICITY & ADVERTISING (NOT STAFF ADVERTISING),733.95,Revenue,08/01/2015,Childrens
WC52-0499,BAAF,Corporate Parenting,FAMILY PLACEMENTS,Supplies & Services,Communications & Computing,68001-PUBLICITY & ADVERTISING (NOT STAFF ADVERTISING),"1,008.00",Revenue,23/01/2015,Childrens
WC52-0500,REDACTED,Commissioning,OP COMMISSIONING,Transfer Payments,Transfer Payments,76422-DIRECT PAYMENTS TO SOCIAL SERVICES CLIENTS,863.20,Revenue,12/01/2015,Social Care & Inclusion
WC52-0501,BACHES SOLICITORS,Specialist Services Management,GENERAL MANAGEMENT SUPPORT (INC LEGAL),Third Party Payments,Private Contractor Fees,73014-LEGAL FEES-PRIV CONTRACTOR FEES,"1,500.00",Revenue,08/01/2015,Childrens
WC52-0502,BAKER HALL PARTNERSHIP,Planning & Building Control,BUILDING CONTROL REVENUE FUNDED,Supplies & Services,Services,63248-SURVEYS & PROF SERVICES-PAYMENT TO CONTRACTOR,"1,275.75",Revenue,13/01/2015,Regeneration
WC52-0503,BAKER HALL PARTNERSHIP,Planning & Building Control,BUILDING CONTROL REVENUE FUNDED,Supplies & Services,Services,63248-SURVEYS & PROF SERVICES-PAYMENT TO CONTRACTOR,"1,390.50",Revenue,07/01/2015,Regeneration
WC52-0504,BAKER HALL PARTNERSHIP,Planning & Building Control,BUILDING CONTROL REVENUE FUNDED,Supplies & Services,Services,63248-SURVEYS & PROF SERVICES-PAYMENT TO CONTRACTOR,"2,910.75",Revenue,01/01/2015,Regeneration
WC52-0505,BAKER HALL PARTNERSHIP,Education,CFR 1010 RUSHALL PRIMARY/EDC ALTERATIONS,Capital,Capital,01007-ARCHITECTS ASSISTANTS TIME,"3,750.00",Capital,27/01/2015,Childrens
WC52-0506,BALFOUR BEATTY CIVILS LIMITED,Strategic Regeneration,CFR 876 DARLASTON HIGHWAYS CONSTRUCTION,Capital,Capital,01001-OTHER CONSULTANTS FEES,"5,525.21",Capital,27/01/2015,Regeneration
WC52-0507,REDACTED,"Access,Assessment & Care Management",LD COMMISSIONING,Transfer Payments,Transfer Payments,76422-DIRECT PAYMENTS TO SOCIAL SERVICES CLIENTS,"2,849.92",Revenue,12/01/2015,Social Care & Inclusion
WC52-0508,REDACTED,Commissioning,OP COMMISSIONING,Transfer Payments,Transfer Payments,76422-DIRECT PAYMENTS TO SOCIAL SERVICES CLIENTS,620.00,Revenue,12/01/2015,Social Care & Inclusion
WC52-0509,REDACTED,Commissioning,OP COMMISSIONING,Transfer Payments,Transfer Payments,76422-DIRECT PAYMENTS TO SOCIAL SERVICES CLIENTS,"1,140.04",Revenue,12/01/2015,Social Care & Inclusion
WC52-0510,REDACTED,Commissioning,OP COMMISSIONING,Transfer Payments,Transfer Payments,76422-DIRECT PAYMENTS TO SOCIAL SERVICES CLIENTS,450.26,Revenue,12/01/2015,Social Care & Inclusion
WC52-0511,REDACTED,Commissioning,CONCESSIONARY TRAVEL,Transfer Payments,Transfer Payments,76422-DIRECT PAYMENTS TO SOCIAL SERVICES CLIENTS,"1,314.88",Revenue,12/01/2015,Social Care & Inclusion
WC52-0512,REDACTED,Commissioning,CONCESSIONARY TRAVEL,Transfer Payments,Transfer Payments,76422-DIRECT PAYMENTS TO SOCIAL SERVICES CLIENTS,"1,280.00",Revenue,12/01/2015,Social Care & Inclusion
WC52-0513,REDACTED,Commissioning,OP COMMISSIONING,Transfer Payments,Transfer Payments,76422-DIRECT PAYMENTS TO SOCIAL SERVICES CLIENTS,364.23,Revenue,16/01/2015,Social Care & Inclusion
WC52-0514,REDACTED,Commissioning,OP COMMISSIONING,Transfer Payments,Transfer Payments,76422-DIRECT PAYMENTS TO SOCIAL SERVICES CLIENTS,632.52,Revenue,12/01/2015,Social Care & Inclusion
WC52-0515,BARNARDOS SERVICES LTD,Corporate Parenting,EXTERNAL FOSTER CARE PROVISION,Third Party Payments,Private Contractor Fees,74037-INDEPENDENT FOSTER CARE-OTH AGENCY PROVISION,"4,627.86",Revenue,16/01/2015,Childrens
WC52-0516,BARONS COURT HOTEL,Vulnerable Children,SAFEGUARDING & FAMILY SUPPORT,Third Party Payments,Private Contractor Fees,73374-SUPPORTED & OTHER ACCOMMODATION,700.00,Revenue,01/01/2015,Childrens
WC52-0517,BARONS COURT HOTEL,Vulnerable Children,SAFEGUARDING & FAMILY SUPPORT,Employees,Other Staff Costs,34329-HOTEL ACCOMMODATION-EMPLOYEES,"2,047.50",Revenue,28/01/2015,Childrens
WC52-0518,BARR BEACON SCHOOL TRUST,Schools,BARR BEACON SCHOOL TRUST (ACADEMY),Transfer Payments,Transfer Payments,77300-ISB-FORMULA ALLOCATION,620.00,Revenue,15/01/2015,Childrens
WC52-0519,BARR BEACON SCHOOL TRUST,Schools,BARR BEACON SCHOOL TRUST (ACADEMY),Transfer Payments,Transfer Payments,77300-ISB-FORMULA ALLOCATION,"1,150.00",Revenue,20/01/2015,Childrens
WC52-0520,BARR BEACON SCHOOL TRUST,Schools,BARR BEACON SCHOOL TRUST (ACADEMY),Third Party Payments,Grants to Other Orgs,66502-TOP UP FUNDING -GRANTS TO SCHOOLS,"3,761.52",Revenue,12/01/2015,Childrens
WC52-0521,REDACTED,Libraries Heritage & Arts,LEATHER MUSEUM,Employees,Other Staff Costs,32000-MISC FEES AND EXPENSES,350.00,Revenue,23/01/2015,Neighbourhood Services
WC52-0522,BARTS HEALTH NHS TRUST,Public Health,SEXUAL HEALTH,Supplies & Services,Services,63000-PROFESSIONAL FEES AND SERVICES,317.76,Revenue,27/01/2015,Neighbourhood Services
WC52-0523,BAY MEDIA LIMITED,WACC & WLLA,PRINCIPAL MARKETING,Supplies & Services,Communications & Computing,68001-PUBLICITY & ADVERTISING (NOT STAFF ADVERTISING),"1,500.00",Revenue,20/01/2015,Neighbourhood Services
WC52-0524,BEACON PHARMACY,Public Health,SEXUAL HEALTH,Supplies & Services,Services,63000-PROFESSIONAL FEES AND SERVICES,41.39,Revenue,20/01/2015,Neighbourhood Services
WC52-0525,BEACON PHARMACY,Public Health,PUBLIC HEALTH BUSINESS SUPPORT,Third Party Payments,Private Contractor Fees,70000-SOCIAL SERVICES-FEES TO VOLUNTARY BODIES,225.00,Revenue,20/01/2015,Neighbourhood Services
WC52-0526,BEACON PHARMACY,Public Health,HEALTH CHECKS,Supplies & Services,Services,63000-PROFESSIONAL FEES AND SERVICES,303.61,Revenue,20/01/2015,Neighbourhood Services
WC52-0527,BEADEN POWERLEC LIMITED,Leisure & Community Health,WALSALL GALA CENTRE,Premises,Premises-Repairs & Maintenance,40413-NON PMI MTCE,34.10,Revenue,12/01/2015,Neighbourhood Services
WC52-0528,BEADEN POWERLEC LIMITED,Property Services,RECHARGEABLE - SCHOOLS MAINTENANCE,Premises,Premises-Repairs & Maintenance,"40000-REPAIRS,ALTERATIONS & MAINTENANCE-PREM",250.00,Revenue,02/01/2015,Regeneration
WC52-0529,BEADEN POWERLEC LIMITED,Leisure & Community Health,WILLENHALL LEISURE CENTRE,Supplies & Services,"Equip,Furniture & Materials",60008-MAINTENANCE-FURNITURE & EQUIPMENT,426.00,Revenue,12/01/2015,Neighbourhood Services
WC52-0530,BEADEN POWERLEC LIMITED,Property Services,CFR 722 STAT TESTING WEST,Capital,Capital,01006-SITE WORKS MAIN CONTRACTORS,772.00,Capital,08/01/2015,Regeneration
WC52-0531,BEADEN POWERLEC LIMITED,Education,CFR 930 ST JOHNS PRIMARY ELECTRICAL WORKS,Capital,Capital,01006-SITE WORKS MAIN CONTRACTORS,"1,914.89",Capital,14/01/2015,Childrens
WC52-0532,BEADEN POWERLEC LIMITED,Property Services,CFR 805 PLANNED PROPERTY MAINTENANCE,Capital,Capital,01006-SITE WORKS MAIN CONTRACTORS,"2,162.00",Capital,07/01/2015,Regeneration
WC52-0533,BEADEN POWERLEC LIMITED,Property Services,RECHARGEABLE - SCHOOLS MAINTENANCE,Third Party Payments,Private Contractor Fees,73025-PROFESSIONAL SERVICES-PRIV CONTRACTOR & OTHER AGENCIES,"2,338.00",Revenue,12/01/2015,Regeneration
WC52-0534,BEADEN POWERLEC LIMITED,Education,CFR 930 COUNTY BRIDGE PRIMARY ELECTRICAL WORKS,Capital,Capital,01006-SITE WORKS MAIN CONTRACTORS,"2,781.00",Capital,21/01/2015,Childrens
WC52-0535,REDACTED,Corporate Parenting,INTERNAL FOSTER CARE PROVISION,Third Party Payments,Private Contractor Fees,74006-HOLIDAY/CHRISTMAS ALLOWANCE-FOSTER CARERS-OTH AGENCY PROVISION,"1,026.00",Revenue,05/01/2015,Childrens
WC52-0536,REDACTED,Corporate Parenting,INTERNAL FOSTER CARE PROVISION,Supplies & Services,Other Supplies & Services,62515-MISCELLANEOUS SUPPLIES,"1,407.92",Revenue,05/01/2015,Childrens
WC52-0537,BEARWOOD NURSING HOME LTD,Commissioning,OP COMMISSIONING,Third Party Payments,Private Contractor Fees,73373-RESIDENTIAL & NURSING CARE PLACEMENTS,"1,494.00",Revenue,06/01/2015,Social Care & Inclusion
WC52-0538,REDACTED,Commissioning,OP COMMISSIONING,Transfer Payments,Transfer Payments,76422-DIRECT PAYMENTS TO SOCIAL SERVICES CLIENTS,641.76,Revenue,12/01/2015,Social Care & Inclusion
WC52-0539,REDACTED,Corporate Parenting,INTERNAL FOSTER CARE PROVISION,Supplies & Services,Other Supplies & Services,62515-MISCELLANEOUS SUPPLIES,444.92,Revenue,05/01/2015,Childrens
WC52-0540,REDACTED,Corporate Parenting,INTERNAL FOSTER CARE PROVISION,Third Party Payments,Private Contractor Fees,74006-HOLIDAY/CHRISTMAS ALLOWANCE-FOSTER CARERS-OTH AGENCY PROVISION,561.32,Revenue,05/01/2015,Childrens
WC52-0541,BELLEVUE COURT CARE HOME,Mental Health,MH COMMISSIONING,Third Party Payments,Private Contractor Fees,73373-RESIDENTIAL & NURSING CARE PLACEMENTS,"1,486.96",Revenue,13/01/2015,Social Care & Inclusion
WC52-0542,BELLEVUE COURT CARE HOME,Mental Health,MH COMMISSIONING,Third Party Payments,Private Contractor Fees,73373-RESIDENTIAL & NURSING CARE PLACEMENTS,"1,494.00",Revenue,13/01/2015,Social Care & Inclusion
WC52-0543,BELLEVUE COURT CARE HOME,Mental Health,MH COMMISSIONING,Third Party Payments,Private Contractor Fees,73373-RESIDENTIAL & NURSING CARE PLACEMENTS,"1,530.16",Revenue,13/01/2015,Social Care & Inclusion
WC52-0544,REDACTED,"Access,Assessment & Care Management",LD COMMISSIONING,Transfer Payments,Transfer Payments,76422-DIRECT PAYMENTS TO SOCIAL SERVICES CLIENTS,"2,205.00",Revenue,12/01/2015,Social Care & Inclusion
WC52-0545,BENTLEY COURT PRIORY,Commissioning,OP COMMISSIONING,Third Party Payments,Private Contractor Fees,73373-RESIDENTIAL & NURSING CARE PLACEMENTS,"2,140.29",Revenue,13/01/2015,Social Care & Inclusion
WC52-0546,REDACTED,Commissioning,OP COMMISSIONING,Transfer Payments,Transfer Payments,76422-DIRECT PAYMENTS TO SOCIAL SERVICES CLIENTS,424.56,Revenue,12/01/2015,Social Care & Inclusion
WC52-0547,REDACTED,Commissioning,OP COMMISSIONING,Transfer Payments,Transfer Payments,76422-DIRECT PAYMENTS TO SOCIAL SERVICES CLIENTS,912.00,Revenue,12/01/2015,Social Care & Inclusion
WC52-0548,REDACTED,Corporate Parenting,INTERNAL FOSTER CARE PROVISION,Supplies & Services,Other Supplies & Services,62515-MISCELLANEOUS SUPPLIES,"2,138.16",Revenue,05/01/2015,Childrens
WC52-0549,REDACTED,Commissioning,OP COMMISSIONING,Transfer Payments,Transfer Payments,76422-DIRECT PAYMENTS TO SOCIAL SERVICES CLIENTS,968.00,Revenue,12/01/2015,Social Care & Inclusion
WC52-0550,BESCOT LODGE RESIDENTIAL CARE HOME,Commissioning,OP COMMISSIONING,Third Party Payments,Private Contractor Fees,73373-RESIDENTIAL & NURSING CARE PLACEMENTS,"1,616.87",Revenue,27/01/2015,Social Care & Inclusion
WC52-0551,BESCOT LODGE RESIDENTIAL CARE HOME,Commissioning,OP COMMISSIONING,Third Party Payments,Private Contractor Fees,73373-RESIDENTIAL & NURSING CARE PLACEMENTS,"1,698.36",Revenue,27/01/2015,Social Care & Inclusion
WC52-0552,BESCOT LODGE RESIDENTIAL CARE HOME,Commissioning,OP COMMISSIONING,Third Party Payments,Private Contractor Fees,73373-RESIDENTIAL & NURSING CARE PLACEMENTS,"1,698.49",Revenue,27/01/2015,Social Care & Inclusion
WC52-0553,BESCOT LODGE RESIDENTIAL CARE HOME,Commissioning,OP COMMISSIONING,Third Party Payments,Private Contractor Fees,73373-RESIDENTIAL & NURSING CARE PLACEMENTS,"1,698.49",Revenue,27/01/2015,Social Care & Inclusion
WC52-0554,BESCOT LODGE RESIDENTIAL CARE HOME,Commissioning,OP COMMISSIONING,Third Party Payments,Private Contractor Fees,73373-RESIDENTIAL & NURSING CARE PLACEMENTS,"1,698.49",Revenue,27/01/2015,Social Care & Inclusion
WC52-0555,BESCOT LODGE RESIDENTIAL CARE HOME,Commissioning,OP COMMISSIONING,Third Party Payments,Private Contractor Fees,73373-RESIDENTIAL & NURSING CARE PLACEMENTS,"1,698.49",Revenue,27/01/2015,Social Care & Inclusion
WC52-0556,BESCOT LODGE RESIDENTIAL CARE HOME,Mental Health,MH COMMISSIONING,Third Party Payments,Private Contractor Fees,73373-RESIDENTIAL & NURSING CARE PLACEMENTS,"1,698.49",Revenue,27/01/2015,Social Care & Inclusion
WC52-0557,BESCOT LODGE RESIDENTIAL CARE HOME,Commissioning,OP COMMISSIONING,Third Party Payments,Private Contractor Fees,73373-RESIDENTIAL & NURSING CARE PLACEMENTS,"1,698.49",Revenue,27/01/2015,Social Care & Inclusion
WC52-0558,BESCOT LODGE RESIDENTIAL CARE HOME,Commissioning,OP COMMISSIONING,Third Party Payments,Private Contractor Fees,73373-RESIDENTIAL & NURSING CARE PLACEMENTS,"1,716.65",Revenue,27/01/2015,Social Care & Inclusion
WC52-0559,BESCOT LODGE RESIDENTIAL CARE HOME,Commissioning,OP COMMISSIONING,Third Party Payments,Private Contractor Fees,73373-RESIDENTIAL & NURSING CARE PLACEMENTS,"1,716.73",Revenue,27/01/2015,Social Care & Inclusion
WC52-0560,BESCOT LODGE RESIDENTIAL CARE HOME,Commissioning,OP COMMISSIONING,Third Party Payments,Private Contractor Fees,73373-RESIDENTIAL & NURSING CARE PLACEMENTS,"1,716.74",Revenue,27/01/2015,Social Care & Inclusion
WC52-0561,BESCOT PROMOTIONS,Development & Delivery,WILLENHALL MARKET,Third Party Payments,Private Contractor Fees,73025-PROFESSIONAL SERVICES-PRIV CONTRACTOR & OTHER AGENCIES,"2,600.00",Revenue,09/01/2015,Regeneration
WC52-0562,REDACTED,Mental Health,MH COMMISSIONING,Transfer Payments,Transfer Payments,76422-DIRECT PAYMENTS TO SOCIAL SERVICES CLIENTS,949.52,Revenue,12/01/2015,Social Care & Inclusion
WC52-0563,REDACTED,Commissioning,OP COMMISSIONING,Transfer Payments,Transfer Payments,76422-DIRECT PAYMENTS TO SOCIAL SERVICES CLIENTS,"1,958.00",Revenue,12/01/2015,Social Care & Inclusion
WC52-0564,BFA SAFETY TRAINING,Human Resources,HEALTH & SAFETY (TRADED),Employees,Training,30030-EXTERNAL TRAINING,495.00,Revenue,27/01/2015,Resources
WC52-0565,BFA SAFETY TRAINING,Human Resources,HEALTH & SAFETY (TRADED),Employees,Training,30030-EXTERNAL TRAINING,595.00,Revenue,02/01/2015,Resources
WC52-0566,BFA SAFETY TRAINING,Human Resources,HEALTH & SAFETY (TRADED),Employees,Training,30030-EXTERNAL TRAINING,795.00,Revenue,02/01/2015,Resources
WC52-0567,BIFFA WASTE SERVICES LTD,Clean and Green Services,WASTE DISPOSAL - RESIDUAL,Third Party Payments,Private Contractor Fees,73005-LANDFILL PTYS-PRIV CONTRACTOR FEES,678.81,Revenue,13/01/2015,Neighbourhood Services
WC52-0568,BIFFA WASTE SERVICES LTD,Clean and Green Services,WASTE DISPOSAL - RESIDUAL,Third Party Payments,Private Contractor Fees,73005-LANDFILL PTYS-PRIV CONTRACTOR FEES,"1,502.47",Revenue,09/01/2015,Neighbourhood Services
WC52-0569,BIFFA WASTE SERVICES LTD,Clean and Green Services,WASTE DISPOSAL - RESIDUAL,Third Party Payments,Private Contractor Fees,73005-LANDFILL PTYS-PRIV CONTRACTOR FEES,"1,770.48",Revenue,14/01/2015,Neighbourhood Services
WC52-0570,BIFFA WASTE SERVICES LTD,Clean and Green Services,WASTE DISPOSAL - RESIDUAL,Third Party Payments,Private Contractor Fees,73005-LANDFILL PTYS-PRIV CONTRACTOR FEES,"2,260.54",Revenue,23/01/2015,Neighbourhood Services
WC52-0571,BIFFA WASTE SERVICES LTD,Clean and Green Services,WASTE DISPOSAL - RESIDUAL,Third Party Payments,Private Contractor Fees,73039-LANDFILL TAX-PRIV CONTRACTOR FEES,"4,206.40",Revenue,13/01/2015,Neighbourhood Services
WC52-0572,BIFFA WASTE SERVICES LTD,Clean and Green Services,WASTE DISPOSAL - RESIDUAL,Third Party Payments,Private Contractor Fees,73005-LANDFILL PTYS-PRIV CONTRACTOR FEES,"7,159.64",Revenue,14/01/2015,Neighbourhood Services
WC52-0573,BIFFA WASTE SERVICES LTD,Clean and Green Services,WASTE DISPOSAL - RESIDUAL,Third Party Payments,Private Contractor Fees,73039-LANDFILL TAX-PRIV CONTRACTOR FEES,"9,310.40",Revenue,09/01/2015,Neighbourhood Services
WC52-0574,BIFFA WASTE SERVICES LTD,Clean and Green Services,WASTE DISPOSAL - RESIDUAL,Third Party Payments,Private Contractor Fees,73039-LANDFILL TAX-PRIV CONTRACTOR FEES,"10,971.20",Revenue,14/01/2015,Neighbourhood Services
WC52-0575,BIFFA WASTE SERVICES LTD,Clean and Green Services,WASTE DISPOSAL - RESIDUAL,Third Party Payments,Private Contractor Fees,73039-LANDFILL TAX-PRIV CONTRACTOR FEES,"14,008.00",Revenue,23/01/2015,Neighbourhood Services
WC52-0576,REDACTED,Specialist Services Management,FAMILY SUPPORT - DIRECT PAYMENTS,Transfer Payments,Transfer Payments,76422-DIRECT PAYMENTS TO SOCIAL SERVICES CLIENTS,"1,058.93",Revenue,12/01/2015,Childrens
WC52-0577,REDACTED,Specialist Services Management,FAMILY SUPPORT - DIRECT PAYMENTS,Transfer Payments,Transfer Payments,76422-DIRECT PAYMENTS TO SOCIAL SERVICES CLIENTS,537.20,Revenue,12/01/2015,Childrens
WC52-0578,BIRCHILLS C OF E COMMUNITY ACADEMY,Education,BIRCHILLS CE COMMUNITY ACADEMY,Third Party Payments,Grants to Other Orgs,66502-TOP UP FUNDING -GRANTS TO SCHOOLS,"6,623.04",Revenue,12/01/2015,Childrens
WC52-0579,BIRCHILLS C OF E COMMUNITY ACADEMY,Education,EARLY YEARS - 3 YR OLDS,Third Party Payments,Grants to Other Orgs,66505-OTHER-GRANTS TO OTHER ORGS,"31,486.33",Revenue,19/01/2015,Childrens
WC52-0580,BLACK COUNTRY CONSORTIUM LIMITED,Strategic Regeneration,LEP CORE FUNDING,Supplies & Services,Services,63000-PROFESSIONAL FEES AND SERVICES,"64,245.91",Revenue,09/01/2015,Regeneration
WC52-0581,BLACK COUNTRY PARTNERSHIP NHS,Commissioning,BCPFT,Third Party Payments,Joint Arrangements,71007-CONTRIBUTION TO PCT,"-40,320.00",Revenue,15/01/2015,Social Care & Inclusion
WC52-0582,BLACK COUNTRY PARTNERSHIP NHS,"Access,Assessment & Care Management",LD COMMISSIONING,Third Party Payments,Private Contractor Fees,73375-IN PATIENT BEDS,"-17,850.00",Revenue,15/01/2015,Social Care & Inclusion
WC52-0583,BLACK COUNTRY PARTNERSHIP NHS,Commissioning,BCPFT,Third Party Payments,Joint Arrangements,71007-CONTRIBUTION TO PCT,"36,720.00",Revenue,27/01/2015,Social Care & Inclusion
WC52-0584,BLACK COUNTRY PARTNERSHIP NHS,Commissioning,BCPFT,Third Party Payments,Joint Arrangements,71007-CONTRIBUTION TO PCT,"52,020.00",Revenue,27/01/2015,Social Care & Inclusion
WC52-0585,BLACK COUNTRY PARTNERSHIP NHS,Commissioning,BCPFT,Third Party Payments,Joint Arrangements,71007-CONTRIBUTION TO PCT,"261,332.09",Revenue,16/01/2015,Social Care & Inclusion
WC52-0586,BLAKENALL HEATH JMI SCHOOL,Schools,BLAKENALL HEATH JUNIOR SCHOOL,Transfer Payments,Transfer Payments,77302-ISB-SCHOOL STANDARDS GRANT,"52,075.00",Revenue,21/01/2015,Childrens
WC52-0587,BLAKENALL HEATH JMI SCHOOL,Schools,BLAKENALL HEATH JUNIOR SCHOOL,Transfer Payments,Transfer Payments,77300-ISB-FORMULA ALLOCATION,"86,631.80",Revenue,13/01/2015,Childrens
WC52-0588,BLOXWICH RADIO TAXIS,Educational Support,SCHOOL TRANSPORT,Transport,Hire,52000-WITH DRIVER-HIRE OF VEHICLES,750.00,Revenue,21/01/2015,Childrens
WC52-0589,BLOXWICH RADIO TAXIS,Educational Support,SCHOOL TRANSPORT,Transport,Hire,52000-WITH DRIVER-HIRE OF VEHICLES,776.40,Revenue,21/01/2015,Childrens
WC52-0590,BLUE AND WHITE CREATIVE,Libraries Heritage & Arts,EXTL FUNDED ARTS INTO HEALTH MANAGEMENT & PARTNERSHIPS,Supplies & Services,Services,63000-PROFESSIONAL FEES AND SERVICES,"4,000.00",Revenue,07/01/2015,Neighbourhood Services
WC52-0591,BLUE COAT CHURCH OF ENGLAND ACADEMY,Education,BLUE COAT CofE ACADEMY,Third Party Payments,Grants to Other Orgs,66502-TOP UP FUNDING -GRANTS TO SCHOOLS,"4,707.66",Revenue,12/01/2015,Childrens
WC52-0592,BLUE GIRAFFE CHILDCARE,Education,EARLY YEARS - 2 YR OLDS,Third Party Payments,Grants to Other Orgs,66505-OTHER-GRANTS TO OTHER ORGS,"11,090.52",Revenue,23/01/2015,Childrens
WC52-0593,BOLDMERE COURT CARE HOME,Commissioning,OP COMMISSIONING,Third Party Payments,Private Contractor Fees,73373-RESIDENTIAL & NURSING CARE PLACEMENTS,"1,493.20",Revenue,20/01/2015,Social Care & Inclusion
WC52-0594,BOLDMERE COURT CARE HOME,Commissioning,OP COMMISSIONING,Third Party Payments,Private Contractor Fees,73373-RESIDENTIAL & NURSING CARE PLACEMENTS,"1,494.00",Revenue,20/01/2015,Social Care & Inclusion
WC52-0595,BOLINDA UK LTD,Libraries Heritage & Arts,LIBRARY STOCK AND PERFORMANCE,Supplies & Services,"Equip,Furniture & Materials",60501-LIBRARY BOOKS,563.04,Revenue,21/01/2015,Neighbourhood Services
WC52-0596,BONINGALE NURSERIES,Clean and Green Services,ARBORETUM,Third Party Payments,Private Contractor Fees,73019-PSE'S-PRIV CONTRACTOR FEES,411.70,Revenue,07/01/2015,Neighbourhood Services
WC52-0597,BOOTS UK LIMITED,Public Health,HEALTH CHECKS,Supplies & Services,Services,63000-PROFESSIONAL FEES AND SERVICES,54.42,Revenue,20/01/2015,Neighbourhood Services
WC52-0598,BOOTS UK LIMITED,Public Health,ALCOHOL & DRUGS MISUSE/TOBACCO CONTROL,Supplies & Services,Services,63000-PROFESSIONAL FEES AND SERVICES,77.50,Revenue,20/01/2015,Neighbourhood Services
WC52-0599,BOOTS UK LIMITED,Public Health,SEXUAL HEALTH,Supplies & Services,Services,63000-PROFESSIONAL FEES AND SERVICES,141.60,Revenue,20/01/2015,Neighbourhood Services
WC52-0600,BOOTS UK LIMITED,Public Health,HEALTH CHECKS,Supplies & Services,Services,63000-PROFESSIONAL FEES AND SERVICES,181.24,Revenue,20/01/2015,Neighbourhood Services
WC52-0601,BOOTS UK LIMITED,Public Health,SEXUAL HEALTH,Supplies & Services,Services,63000-PROFESSIONAL FEES AND SERVICES,194.70,Revenue,20/01/2015,Neighbourhood Services
WC52-0602,BOOTS UK LIMITED,Public Health,SEXUAL HEALTH,Supplies & Services,Services,63000-PROFESSIONAL FEES AND SERVICES,265.50,Revenue,20/01/2015,Neighbourhood Services
WC52-0603,BOOTS UK LIMITED,Public Health,ALCOHOL & DRUGS MISUSE/TOBACCO CONTROL,Supplies & Services,Services,63000-PROFESSIONAL FEES AND SERVICES,"1,149.00",Revenue,20/01/2015,Neighbourhood Services
WC52-0604,BOULTON TRAVEL LIMITED,Educational Support,SCHOOL TRANSPORT,Transport,Hire,52000-WITH DRIVER-HIRE OF VEHICLES,"1,695.00",Revenue,13/01/2015,Childrens
WC52-0605,BOULTON TRAVEL LIMITED,Educational Support,SCHOOL TRANSPORT,Transport,Hire,52000-WITH DRIVER-HIRE OF VEHICLES,"1,830.00",Revenue,13/01/2015,Childrens
WC52-0606,BOWDEN DERRA PARK,"Access,Assessment & Care Management",LD COMMISSIONING,Third Party Payments,Private Contractor Fees,73373-RESIDENTIAL & NURSING CARE PLACEMENTS,"10,271.64",Revenue,06/01/2015,Social Care & Inclusion
WC52-0607,BOWDEN DERRA PARK,"Access,Assessment & Care Management",LD COMMISSIONING,Third Party Payments,Private Contractor Fees,73373-RESIDENTIAL & NURSING CARE PLACEMENTS,"10,271.64",Revenue,27/01/2015,Social Care & Inclusion
WC52-0608,BPP PROFESSIONAL EDUCATION,Finance,FINANCE,Employees,Training,30030-EXTERNAL TRAINING,585.16,Revenue,26/01/2015,Resources
WC52-0609,BPP PROFESSIONAL EDUCATION,Finance,FINANCE,Employees,Training,30030-EXTERNAL TRAINING,693.48,Revenue,26/01/2015,Resources
WC52-0610,BRADLEY ENVIRONMENTAL,Property Services,CENTRALISED MAINTENANCE,Third Party Payments,Private Contractor Fees,73007-SAMPLING FEES-PRIV CONTRACTOR FEES,"3,100.00",Revenue,14/01/2015,Regeneration
WC52-0611,BRELMAYNE LTD,Property Services,RECHARGEABLE - SCHOOLS MAINTENANCE,Premises,Premises-Repairs & Maintenance,"40000-REPAIRS,ALTERATIONS & MAINTENANCE-PREM",252.93,Revenue,06/01/2015,Regeneration
WC52-0612,BRELMAYNE LTD,Property Services,CENTRALISED MAINTENANCE,Third Party Payments,Private Contractor Fees,73025-PROFESSIONAL SERVICES-PRIV CONTRACTOR & OTHER AGENCIES,255.11,Revenue,15/01/2015,Regeneration
WC52-0613,BRELMAYNE LTD,Property Services,RECHARGEABLE - SCHOOLS MAINTENANCE,Premises,Premises-Repairs & Maintenance,"40000-REPAIRS,ALTERATIONS & MAINTENANCE-PREM",259.72,Revenue,12/01/2015,Regeneration
WC52-0614,BRELMAYNE LTD,Property Services,CFR 807 STATUTORY TESTING,Capital,Capital,01006-SITE WORKS MAIN CONTRACTORS,273.32,Capital,09/01/2015,Regeneration
WC52-0615,BRELMAYNE LTD,Property Services,RECHARGEABLE - SCHOOLS MAINTENANCE,Premises,Premises-Repairs & Maintenance,"40000-REPAIRS,ALTERATIONS & MAINTENANCE-PREM",274.00,Revenue,21/01/2015,Regeneration
WC52-0616,BRELMAYNE LTD,Property Services,RECHARGEABLE - SCHOOLS MAINTENANCE,Premises,Premises-Repairs & Maintenance,"40000-REPAIRS,ALTERATIONS & MAINTENANCE-PREM",280.64,Revenue,12/01/2015,Regeneration
WC52-0617,BRELMAYNE LTD,Property Services,RECHARGEABLE - NON SCHOOLS MAINTENANCE,Premises,Premises-Repairs & Maintenance,"40000-REPAIRS,ALTERATIONS & MAINTENANCE-PREM",280.75,Revenue,21/01/2015,Regeneration
WC52-0618,BRELMAYNE LTD,Property Services,CFR 807 STATUTORY TESTING,Capital,Capital,01006-SITE WORKS MAIN CONTRACTORS,282.32,Capital,12/01/2015,Regeneration
WC52-0619,BRELMAYNE LTD,Property Services,CFR 807 STATUTORY TESTING,Capital,Capital,01006-SITE WORKS MAIN CONTRACTORS,284.18,Capital,09/01/2015,Regeneration
WC52-0620,BRELMAYNE LTD,Property Services,CENTRALISED MAINTENANCE,Third Party Payments,Private Contractor Fees,73025-PROFESSIONAL SERVICES-PRIV CONTRACTOR & OTHER AGENCIES,333.94,Revenue,15/01/2015,Regeneration
WC52-0621,BRELMAYNE LTD,Property Services,CFR 807 STATUTORY TESTING,Capital,Capital,01006-SITE WORKS MAIN CONTRACTORS,354.44,Capital,12/01/2015,Regeneration
WC52-0622,BRELMAYNE LTD,Property Services,CENTRAL OFFICE ACCOMMODATION,Premises,Premises-Repairs & Maintenance,"40000-REPAIRS,ALTERATIONS & MAINTENANCE-PREM",355.73,Revenue,28/01/2015,Regeneration
WC52-0623,BRELMAYNE LTD,Property Services,RECHARGEABLE - SCHOOLS MAINTENANCE,Premises,Premises-Repairs & Maintenance,"40000-REPAIRS,ALTERATIONS & MAINTENANCE-PREM",382.57,Revenue,12/01/2015,Regeneration
WC52-0624,BRELMAYNE LTD,Property Services,RECHARGEABLE - SCHOOLS MAINTENANCE,Third Party Payments,Private Contractor Fees,73025-PROFESSIONAL SERVICES-PRIV CONTRACTOR & OTHER AGENCIES,404.64,Revenue,09/01/2015,Regeneration
WC52-0625,BRELMAYNE LTD,Property Services,CENTRALISED MAINTENANCE,Third Party Payments,Private Contractor Fees,73025-PROFESSIONAL SERVICES-PRIV CONTRACTOR & OTHER AGENCIES,462.71,Revenue,21/01/2015,Regeneration
WC52-0626,BRELMAYNE LTD,Property Services,RECHARGEABLE - SCHOOLS MAINTENANCE,Third Party Payments,Private Contractor Fees,73025-PROFESSIONAL SERVICES-PRIV CONTRACTOR & OTHER AGENCIES,508.72,Revenue,12/01/2015,Regeneration
WC52-0627,BRELMAYNE LTD,Property Services,REDUNDANT BUILDINGS,Third Party Payments,Private Contractor Fees,73025-PROFESSIONAL SERVICES-PRIV CONTRACTOR & OTHER AGENCIES,508.90,Revenue,12/01/2015,Regeneration
WC52-0628,BRELMAYNE LTD,Property Services,RECHARGEABLE - SCHOOLS MAINTENANCE,Third Party Payments,Private Contractor Fees,73025-PROFESSIONAL SERVICES-PRIV CONTRACTOR & OTHER AGENCIES,624.08,Revenue,13/01/2015,Regeneration
WC52-0629,BRELMAYNE LTD,Clean and Green Services,ARBORETUM,Premises,Premises-Repairs & Maintenance,"40000-REPAIRS,ALTERATIONS & MAINTENANCE-PREM",628.56,Revenue,20/01/2015,Neighbourhood Services
WC52-0630,BRELMAYNE LTD,Property Services,CFR 807 STATUTORY TESTING,Capital,Capital,01006-SITE WORKS MAIN CONTRACTORS,692.66,Capital,12/01/2015,Regeneration
WC52-0631,BRELMAYNE LTD,Property Services,RECHARGEABLE - SCHOOLS MAINTENANCE,Premises,Premises-Repairs & Maintenance,"40000-REPAIRS,ALTERATIONS & MAINTENANCE-PREM",706.05,Revenue,21/01/2015,Regeneration
WC52-0632,BRELMAYNE LTD,Property Services,RECHARGEABLE - SCHOOLS MAINTENANCE,Third Party Payments,Private Contractor Fees,73025-PROFESSIONAL SERVICES-PRIV CONTRACTOR & OTHER AGENCIES,713.71,Revenue,12/01/2015,Regeneration
WC52-0633,BRELMAYNE LTD,Property Services,CFR 807 STATUTORY TESTING,Capital,Capital,01006-SITE WORKS MAIN CONTRACTORS,806.72,Capital,13/01/2015,Regeneration
WC52-0634,BRELMAYNE LTD,Property Services,RECHARGEABLE - SCHOOLS MAINTENANCE,Third Party Payments,Private Contractor Fees,73025-PROFESSIONAL SERVICES-PRIV CONTRACTOR & OTHER AGENCIES,819.85,Revenue,13/01/2015,Regeneration
WC52-0635,BRELMAYNE LTD,Property Services,RECHARGEABLE - SCHOOLS MAINTENANCE,Premises,Premises-Repairs & Maintenance,"40000-REPAIRS,ALTERATIONS & MAINTENANCE-PREM",850.00,Revenue,28/01/2015,Regeneration
WC52-0636,BRELMAYNE LTD,Property Services,CENTRALISED MAINTENANCE,Third Party Payments,Private Contractor Fees,73025-PROFESSIONAL SERVICES-PRIV CONTRACTOR & OTHER AGENCIES,855.00,Revenue,14/01/2015,Regeneration
WC52-0637,BRELMAYNE LTD,Property Services,CENTRALISED MAINTENANCE,Third Party Payments,Private Contractor Fees,73025-PROFESSIONAL SERVICES-PRIV CONTRACTOR & OTHER AGENCIES,882.99,Revenue,21/01/2015,Regeneration
WC52-0638,BRELMAYNE LTD,Property Services,CENTRALISED MAINTENANCE,Third Party Payments,Private Contractor Fees,73025-PROFESSIONAL SERVICES-PRIV CONTRACTOR & OTHER AGENCIES,"1,095.41",Revenue,13/01/2015,Regeneration
WC52-0639,BRELMAYNE LTD,Property Services,RECHARGEABLE - SCHOOLS MAINTENANCE,Premises,Premises-Repairs & Maintenance,"40000-REPAIRS,ALTERATIONS & MAINTENANCE-PREM","1,328.65",Revenue,28/01/2015,Regeneration
WC52-0640,BRELMAYNE LTD,Property Services,RECHARGEABLE - SCHOOLS MAINTENANCE,Premises,Premises-Repairs & Maintenance,"40000-REPAIRS,ALTERATIONS & MAINTENANCE-PREM","1,956.00",Revenue,15/01/2015,Regeneration
WC52-0641,BRELMAYNE LTD,Property Services,RECHARGEABLE - SCHOOLS MAINTENANCE,Premises,Premises-Repairs & Maintenance,"40000-REPAIRS,ALTERATIONS & MAINTENANCE-PREM","1,969.85",Revenue,21/01/2015,Regeneration
WC52-0642,BRELMAYNE LTD,Property Services,RECHARGEABLE - SCHOOLS MAINTENANCE,Premises,Premises-Repairs & Maintenance,"40000-REPAIRS,ALTERATIONS & MAINTENANCE-PREM","5,058.00",Revenue,15/01/2015,Regeneration
WC52-0643,REDACTED,"Access,Assessment & Care Management",LD COMMISSIONING,Transfer Payments,Transfer Payments,76422-DIRECT PAYMENTS TO SOCIAL SERVICES CLIENTS,440.00,Revenue,12/01/2015,Social Care & Inclusion
WC52-0644,REDACTED,Corporate Parenting,INTERNAL FOSTER CARE PROVISION,Third Party Payments,Private Contractor Fees,74006-HOLIDAY/CHRISTMAS ALLOWANCE-FOSTER CARERS-OTH AGENCY PROVISION,"1,278.80",Revenue,05/01/2015,Childrens
WC52-0645,REDACTED,Corporate Parenting,INTERNAL FOSTER CARE PROVISION,Supplies & Services,Other Supplies & Services,62515-MISCELLANEOUS SUPPLIES,"1,428.44",Revenue,05/01/2015,Childrens
WC52-0646,REDACTED,Commissioning,OP COMMISSIONING,Transfer Payments,Transfer Payments,76422-DIRECT PAYMENTS TO SOCIAL SERVICES CLIENTS,544.00,Revenue,12/01/2015,Social Care & Inclusion
WC52-0647,REDACTED,Commissioning,BCPFT,Third Party Payments,Private Contractor Fees,73374-SUPPORTED & OTHER ACCOMMODATION,"2,935.24",Revenue,28/01/2015,Social Care & Inclusion
WC52-0648,REDACTED,"Access,Assessment & Care Management",LD COMMISSIONING,Transfer Payments,Transfer Payments,76422-DIRECT PAYMENTS TO SOCIAL SERVICES CLIENTS,493.20,Revenue,12/01/2015,Social Care & Inclusion
WC52-0649,REDACTED,Commissioning,OP COMMISSIONING,Transfer Payments,Transfer Payments,76422-DIRECT PAYMENTS TO SOCIAL SERVICES CLIENTS,"1,294.80",Revenue,12/01/2015,Social Care & Inclusion
WC52-0650,REDACTED,Commissioning,OP COMMISSIONING,Transfer Payments,Transfer Payments,76422-DIRECT PAYMENTS TO SOCIAL SERVICES CLIENTS,697.00,Revenue,12/01/2015,Social Care & Inclusion
WC52-0651,BRIAR ASSOCIATES,Property Services,SHOPS & COMMERCIAL PREMISES,Third Party Payments,Private Contractor Fees,73025-PROFESSIONAL SERVICES-PRIV CONTRACTOR & OTHER AGENCIES,250.00,Revenue,13/01/2015,Regeneration
WC52-0652,REDACTED,Commissioning,OP COMMISSIONING,Transfer Payments,Transfer Payments,76422-DIRECT PAYMENTS TO SOCIAL SERVICES CLIENTS,"1,039.78",Revenue,12/01/2015,Social Care & Inclusion
WC52-0653,BRISTOW & SUTOR,Revenues,REVENUES,Supplies & Services,Services,63102-CONSULTANTS FEES - CORPORATE,431.25,Revenue,01/01/2015,Resources
WC52-0654,BRISTOW & SUTOR,Revenues,REVENUES,Supplies & Services,Services,63102-CONSULTANTS FEES - CORPORATE,"1,726.96",Revenue,07/01/2015,Resources
WC52-0655,BRITISH GAS BUSINESS,Youth Support Services,MY PLACE (REVENUE),Premises,Utilities,42000-GAS-ENERGY COSTS,304.63,Revenue,01/01/2015,Childrens
WC52-0656,BRITISH GAS BUSINESS,Youth Support Services,MY PLACE (REVENUE),Premises,Utilities,42000-GAS-ENERGY COSTS,364.17,Revenue,19/01/2015,Childrens
WC52-0657,BRITISH GAS BUSINESS,Safeguarding,STROUD FAMILY CENTRE,Premises,Utilities,42000-GAS-ENERGY COSTS,378.45,Revenue,20/01/2015,Childrens
WC52-0658,BRITISH GAS BUSINESS,Safeguarding,STROUD FAMILY CENTRE,Premises,Utilities,42000-GAS-ENERGY COSTS,463.44,Revenue,20/01/2015,Childrens
WC52-0659,BRITISH GAS BUSINESS,"Prevention, Workforce and Partnerships","CLUSTER 3 BLOXWICH,BLAKENALL,HATHERTON,E STAMMERS",Premises,Utilities,42000-GAS-ENERGY COSTS,482.42,Revenue,08/01/2015,Childrens
WC52-0660,BRITISH GAS BUSINESS,"Prevention, Workforce and Partnerships",CLUSTER 5 DARLASTON,Premises,Utilities,42001-GAS METERED-ENERGY COSTS,489.63,Revenue,19/01/2015,Childrens
WC52-0661,BRITISH GAS BUSINESS,Property Services,RECHARGEABLE UTILITIES,Premises,Utilities,42000-GAS-ENERGY COSTS,850.34,Revenue,14/01/2015,Regeneration
WC52-0662,BRITISH GAS BUSINESS,"Prevention, Workforce and Partnerships",ALUMWELL CHILDRENS CENTRE,Premises,Utilities,42000-GAS-ENERGY COSTS,871.91,Revenue,14/01/2015,Childrens
WC52-0663,BRITISH GAS BUSINESS,Property Services,CENTRALISED ENERGY,Premises,Utilities,42000-GAS-ENERGY COSTS,965.51,Revenue,19/01/2015,Regeneration
WC52-0664,BRITISH GAS BUSINESS,Property Services,CHALLENGE BUILDING,Premises,Utilities,42000-GAS-ENERGY COSTS,"1,841.93",Revenue,08/01/2015,Regeneration
WC52-0665,BRITISH GAS BUSINESS,Property Services,CENTRALISED ENERGY,Premises,Utilities,42000-GAS-ENERGY COSTS,"2,148.14",Revenue,22/01/2015,Regeneration
WC52-0666,BRITISH GAS BUSINESS,Property Services,CENTRALISED ENERGY,Premises,Utilities,42000-GAS-ENERGY COSTS,"2,937.96",Revenue,19/01/2015,Regeneration
WC52-0667,BRITISH GAS BUSINESS,Education,PELSALL EDC,Premises,Utilities,42000-GAS-ENERGY COSTS,"3,918.16",Revenue,21/01/2015,Childrens
WC52-0668,BRITISH GAS BUSINESS,Property Services,RECHARGEABLE UTILITIES,Premises,Utilities,42000-GAS-ENERGY COSTS,"5,740.95",Revenue,08/01/2015,Regeneration
WC52-0669,BRITISH GAS BUSINESS,Property Services,CENTRALISED ENERGY,Premises,Utilities,42000-GAS-ENERGY COSTS,"20,102.84",Revenue,14/01/2015,Regeneration
WC52-0670,BRITISH PRINTING INDUSTRIES FEDERATION LTD,Shared Services,PRINTING SERVICES,Supplies & Services,Subscriptions,64500-PUBLICATIONS/ORGANISATIONS-SUBSCRIPTIONS,250.00,Revenue,21/01/2015,Resources
WC52-0671,BROADOAK CARE,Commissioning,OP COMMISSIONING,Third Party Payments,Private Contractor Fees,73373-RESIDENTIAL & NURSING CARE PLACEMENTS,383.52,Revenue,20/01/2015,Social Care & Inclusion
WC52-0672,BROADOAK CARE,"Access,Assessment & Care Management",LD COMMISSIONING,Third Party Payments,Private Contractor Fees,73373-RESIDENTIAL & NURSING CARE PLACEMENTS,"1,458.16",Revenue,13/01/2015,Social Care & Inclusion
WC52-0673,BROADOAK CARE,"Access,Assessment & Care Management",LD COMMISSIONING,Third Party Payments,Private Contractor Fees,73373-RESIDENTIAL & NURSING CARE PLACEMENTS,"1,458.16",Revenue,13/01/2015,Social Care & Inclusion
WC52-0674,BROADOAK CARE,Mental Health,MH COMMISSIONING,Third Party Payments,Private Contractor Fees,73373-RESIDENTIAL & NURSING CARE PLACEMENTS,"1,458.16",Revenue,13/01/2015,Social Care & Inclusion
WC52-0675,BROADOAK CARE,Commissioning,OP COMMISSIONING,Third Party Payments,Private Contractor Fees,73373-RESIDENTIAL & NURSING CARE PLACEMENTS,"1,534.00",Revenue,13/01/2015,Social Care & Inclusion
WC52-0676,BROADOAK CARE,Mental Health,MH COMMISSIONING,Third Party Payments,Private Contractor Fees,73373-RESIDENTIAL & NURSING CARE PLACEMENTS,"1,534.08",Revenue,13/01/2015,Social Care & Inclusion
WC52-0677,BROADOAK CARE,Mental Health,MH COMMISSIONING,Third Party Payments,Private Contractor Fees,73373-RESIDENTIAL & NURSING CARE PLACEMENTS,"1,534.08",Revenue,13/01/2015,Social Care & Inclusion
WC52-0678,BROADOAK CARE,Commissioning,OP COMMISSIONING,Third Party Payments,Private Contractor Fees,73373-RESIDENTIAL & NURSING CARE PLACEMENTS,"1,534.08",Revenue,13/01/2015,Social Care & Inclusion
WC52-0679,BROADOAK CARE,Commissioning,OP COMMISSIONING,Third Party Payments,Private Contractor Fees,73373-RESIDENTIAL & NURSING CARE PLACEMENTS,"1,534.08",Revenue,13/01/2015,Social Care & Inclusion
WC52-0680,BROADOAK CARE,Commissioning,OP COMMISSIONING,Third Party Payments,Private Contractor Fees,73373-RESIDENTIAL & NURSING CARE PLACEMENTS,"1,534.08",Revenue,13/01/2015,Social Care & Inclusion
WC52-0681,BROADOAK CARE,Commissioning,OP COMMISSIONING,Third Party Payments,Private Contractor Fees,73373-RESIDENTIAL & NURSING CARE PLACEMENTS,"1,534.08",Revenue,13/01/2015,Social Care & Inclusion
WC52-0682,BROADOAK CARE,Commissioning,OP COMMISSIONING,Third Party Payments,Private Contractor Fees,73373-RESIDENTIAL & NURSING CARE PLACEMENTS,"1,534.08",Revenue,13/01/2015,Social Care & Inclusion
WC52-0683,BROADOAK CARE,Mental Health,MH COMMISSIONING,Third Party Payments,Private Contractor Fees,73373-RESIDENTIAL & NURSING CARE PLACEMENTS,"1,534.08",Revenue,13/01/2015,Social Care & Inclusion
WC52-0684,BROADOAK CARE,Commissioning,OP COMMISSIONING,Third Party Payments,Private Contractor Fees,73373-RESIDENTIAL & NURSING CARE PLACEMENTS,"1,534.08",Revenue,13/01/2015,Social Care & Inclusion
WC52-0685,BROADOAK CARE,Commissioning,OP COMMISSIONING,Third Party Payments,Private Contractor Fees,73373-RESIDENTIAL & NURSING CARE PLACEMENTS,"1,534.08",Revenue,13/01/2015,Social Care & Inclusion
WC52-0686,BROADOAK CARE,Commissioning,OP COMMISSIONING,Third Party Payments,Private Contractor Fees,73373-RESIDENTIAL & NURSING CARE PLACEMENTS,"1,534.08",Revenue,13/01/2015,Social Care & Inclusion
WC52-0687,BROADOAK CARE,Commissioning,OP COMMISSIONING,Third Party Payments,Private Contractor Fees,73373-RESIDENTIAL & NURSING CARE PLACEMENTS,"1,534.12",Revenue,13/01/2015,Social Care & Inclusion
WC52-0688,BROADOAK CARE,Commissioning,OP COMMISSIONING,Third Party Payments,Private Contractor Fees,73373-RESIDENTIAL & NURSING CARE PLACEMENTS,"1,534.22",Revenue,13/01/2015,Social Care & Inclusion
WC52-0689,BROADOAK CARE,Commissioning,OP COMMISSIONING,Third Party Payments,Private Contractor Fees,73373-RESIDENTIAL & NURSING CARE PLACEMENTS,"1,588.91",Revenue,27/01/2015,Social Care & Inclusion
WC52-0690,BROADOAK CARE,Mental Health,MH COMMISSIONING,Third Party Payments,Private Contractor Fees,73373-RESIDENTIAL & NURSING CARE PLACEMENTS,"2,958.76",Revenue,20/01/2015,Social Care & Inclusion
WC52-0691,BROADWAY PHARMACY,Public Health,ALCOHOL & DRUGS MISUSE/TOBACCO CONTROL,Supplies & Services,Services,63000-PROFESSIONAL FEES AND SERVICES,35.00,Revenue,22/01/2015,Neighbourhood Services
WC52-0692,BROADWAY PHARMACY,Public Health,PUBLIC HEALTH BUSINESS SUPPORT,Third Party Payments,Private Contractor Fees,70000-SOCIAL SERVICES-FEES TO VOLUNTARY BODIES,375.00,Revenue,20/01/2015,Neighbourhood Services
WC52-0693,BROADWAY PHARMACY,Public Health,HEALTH CHECKS,Supplies & Services,Services,63000-PROFESSIONAL FEES AND SERVICES,474.48,Revenue,20/01/2015,Neighbourhood Services
WC52-0694,BROADWAY PHARMACY,Public Health,PUBLIC HEALTH BUSINESS SUPPORT,Third Party Payments,Private Contractor Fees,70000-SOCIAL SERVICES-FEES TO VOLUNTARY BODIES,975.00,Revenue,22/01/2015,Neighbourhood Services
WC52-0695,BROOK DESIGN HARDWARE LTD T/A BROOKVENT,Provider,EMPLOYMENT LINKS TO WORK,Supplies & Services,"Equip,Furniture & Materials",60500-GENERAL MATERIALS,449.50,Revenue,16/01/2015,Social Care & Inclusion
WC52-0696,BROOK DESIGN HARDWARE LTD T/A BROOKVENT,Provider,EMPLOYMENT LINKS TO WORK,Supplies & Services,"Equip,Furniture & Materials",60500-GENERAL MATERIALS,986.70,Revenue,01/01/2015,Social Care & Inclusion
WC52-0697,BROWNE JACOBSON SOLICITORS,Development & Delivery,CFR 1032 ACQUISITION OF LEX,Capital,Capital,01056-PURCHASE OF LAND,"280,000.00",Capital,12/01/2015,Regeneration
WC52-0698,BROWNHILLS ASPHALT TARMACADAM,Clean and Green Services,COMMUNITY LIAISON,Premises,Premises-Repairs & Maintenance,"40000-REPAIRS,ALTERATIONS & MAINTENANCE-PREM","-1,290.00",Revenue,01/01/2015,Neighbourhood Services
WC52-0699,BROWNHILLS ASPHALT TARMACADAM,Property Services,CENTRALISED MAINTENANCE,Third Party Payments,Private Contractor Fees,73025-PROFESSIONAL SERVICES-PRIV CONTRACTOR & OTHER AGENCIES,395.00,Revenue,02/01/2015,Regeneration
WC52-0700,BROWNHILLS ASPHALT TARMACADAM,Clean and Green Services,COUNTRYSIDE MANAGEMENT-OTHER,Supplies & Services,"Equip,Furniture & Materials",60500-GENERAL MATERIALS,405.00,Revenue,15/01/2015,Neighbourhood Services
WC52-0701,BROWNHILLS ASPHALT TARMACADAM,Property Services,CENTRALISED MAINTENANCE,Third Party Payments,Private Contractor Fees,73025-PROFESSIONAL SERVICES-PRIV CONTRACTOR & OTHER AGENCIES,450.00,Revenue,26/01/2015,Regeneration
WC52-0702,BROWNHILLS ASPHALT TARMACADAM,Property Services,CENTRALISED MAINTENANCE,Third Party Payments,Private Contractor Fees,73025-PROFESSIONAL SERVICES-PRIV CONTRACTOR & OTHER AGENCIES,475.00,Revenue,02/01/2015,Regeneration
WC52-0703,BROWNHILLS ASPHALT TARMACADAM,Clean and Green Services,COMMUNITY LIAISON,Premises,Premises-Repairs & Maintenance,"40000-REPAIRS,ALTERATIONS & MAINTENANCE-PREM",490.00,Revenue,23/01/2015,Neighbourhood Services
WC52-0704,BROWNHILLS ASPHALT TARMACADAM,Property Services,RECHARGEABLE - SCHOOLS MAINTENANCE,Third Party Payments,Private Contractor Fees,73025-PROFESSIONAL SERVICES-PRIV CONTRACTOR & OTHER AGENCIES,636.00,Revenue,12/01/2015,Regeneration
WC52-0705,BROWNHILLS ASPHALT TARMACADAM,Property Services,RECHARGEABLE - NON SCHOOLS MAINTENANCE,Third Party Payments,Private Contractor Fees,73025-PROFESSIONAL SERVICES-PRIV CONTRACTOR & OTHER AGENCIES,750.00,Revenue,19/01/2015,Regeneration
WC52-0706,BROWNHILLS ASPHALT TARMACADAM,Clean and Green Services,COMMUNITY LIAISON,Premises,Premises-Repairs & Maintenance,"40000-REPAIRS,ALTERATIONS & MAINTENANCE-PREM","1,290.00",Revenue,12/01/2015,Neighbourhood Services
WC52-0707,BROWNHILLS ASPHALT TARMACADAM,Clean and Green Services,DEPOT,Third Party Payments,Private Contractor Fees,73025-PROFESSIONAL SERVICES-PRIV CONTRACTOR & OTHER AGENCIES,"1,842.00",Revenue,15/01/2015,Neighbourhood Services
WC52-0708,BROWNHILLS ASPHALT TARMACADAM,Education,CFR 930 WATLING STREET PRIMARY REPLACEMENT FOUNDATION UNIT,Capital,Capital,01006-SITE WORKS MAIN CONTRACTORS,"2,500.00",Capital,08/01/2015,Childrens
WC52-0709,BROWNHILLS ASPHALT TARMACADAM,Leisure & Community Health,CFR 818 MANAGING MEMORIAL SAFETY,Capital,Capital,01006-SITE WORKS MAIN CONTRACTORS,"10,289.00",Capital,28/01/2015,Neighbourhood Services
WC52-0710,BROWNHILLS ASPHALT TARMACADAM,Property Services,RECHARGEABLE - SCHOOLS MAINTENANCE,Premises,Premises-Repairs & Maintenance,"40000-REPAIRS,ALTERATIONS & MAINTENANCE-PREM","13,857.00",Revenue,26/01/2015,Regeneration
WC52-0711,BROWNHILLS ASPHALT TARMACADAM,Education,CFR 1010 RUSHALL PRIMARY/EDC ALTERATIONS,Capital,Capital,01006-SITE WORKS MAIN CONTRACTORS,"15,000.00",Capital,13/01/2015,Childrens
WC52-0712,BROWNHILLS ASPHALT TARMACADAM,Property Services,RECHARGEABLE - NON SCHOOLS MAINTENANCE,Premises,Premises-Repairs & Maintenance,"40000-REPAIRS,ALTERATIONS & MAINTENANCE-PREM","31,028.00",Revenue,19/01/2015,Regeneration
WC52-0713,BROWNHILLS COMMUNITY ASSOCIATION,Communities & Partnership,AREA 1 - BROWNHILLS,Supplies & Services,Other Supplies & Services,62515-MISCELLANEOUS SUPPLIES,930.00,Revenue,15/01/2015,Neighbourhood Services
WC52-0714,BROWNHILLS COMMUNITY ASSOCIATION,Education,EARLY YEARS - 2 YR OLDS,Third Party Payments,Grants to Other Orgs,66505-OTHER-GRANTS TO OTHER ORGS,"6,161.40",Revenue,23/01/2015,Childrens
WC52-0715,BROXAP LTD,Strategic Regeneration,CFR 1021 SRTS SUPPORT FOR A STARS PROGRAMME,Capital,Capital,01009-SITE WORKS - OTHER CONTRACTORS,550.00,Capital,26/01/2015,Regeneration
WC52-0716,REDACTED,"Access,Assessment & Care Management",LD COMMISSIONING,Transfer Payments,Transfer Payments,76422-DIRECT PAYMENTS TO SOCIAL SERVICES CLIENTS,"1,445.00",Revenue,12/01/2015,Social Care & Inclusion
WC52-0717,REDACTED,Libraries Heritage & Arts,EXTL FUNDED CREATIVE PROJECT MANAGEMENT,Supplies & Services,Services,63000-PROFESSIONAL FEES AND SERVICES,"2,081.25",Revenue,15/01/2015,Neighbourhood Services
WC52-0718,BT,Shared Services,CENTRAL COMMUNICATIONS RECHARGES,Supplies & Services,Communications & Computing,63601-COSTS (NOT INTERNAL RECHARGES)-TELEPHONES,"1,806.04",Revenue,09/01/2015,Resources
WC52-0719,BT,Shared Services,CENTRAL COMMUNICATIONS RECHARGES,Supplies & Services,Communications & Computing,63601-COSTS (NOT INTERNAL RECHARGES)-TELEPHONES,"17,301.10",Revenue,09/01/2015,Resources
WC52-0720,BT PLC,Benefits,PROCESSING,Supplies & Services,Communications & Computing,63603-COST OF CALLS-TELEPHONES,994.00,Revenue,05/01/2015,Resources
WC52-0721,BT PLC,Benefits,PROCESSING,Supplies & Services,Communications & Computing,63603-COST OF CALLS-TELEPHONES,994.00,Revenue,27/01/2015,Resources
WC52-0722,BUFFET EXPRESS LTD,"Prevention, Workforce and Partnerships",PARENTING TEAM,Supplies & Services,Provisions,61305-CATERING,363.75,Revenue,28/01/2015,Childrens
WC52-0723,BULLEYS CHARTERED SURVEYORS,"Prevention, Workforce and Partnerships","CLUSTER 6 BENTLEY,LIGHTHOUSE,FIBBERSLEY",Premises,Rent,43000-RENTS,"2,812.50",Revenue,19/01/2015,Childrens
WC52-0724,BUPA CARE HOMES (CFHCARE) LTD,Commissioning,OP COMMISSIONING,Third Party Payments,Private Contractor Fees,73373-RESIDENTIAL & NURSING CARE PLACEMENTS,"1,458.00",Revenue,20/01/2015,Social Care & Inclusion
WC52-0725,BUPA CARE HOMES (CFHCARE) LTD,Mental Health,MH COMMISSIONING,Third Party Payments,Private Contractor Fees,73373-RESIDENTIAL & NURSING CARE PLACEMENTS,"1,494.00",Revenue,20/01/2015,Social Care & Inclusion
WC52-0726,BUPA CARE HOMES (CFHCARE) LTD,Mental Health,MH COMMISSIONING,Third Party Payments,Private Contractor Fees,73373-RESIDENTIAL & NURSING CARE PLACEMENTS,"1,544.44",Revenue,20/01/2015,Social Care & Inclusion
WC52-0727,BUPA CARE HOMES (CFHCARE) LTD,Mental Health,MH COMMISSIONING,Third Party Payments,Private Contractor Fees,73373-RESIDENTIAL & NURSING CARE PLACEMENTS,"1,708.84",Revenue,20/01/2015,Social Care & Inclusion
WC52-0728,BUPA CARE HOMES (CFHCARE) LTD,Commissioning,OP COMMISSIONING,Third Party Payments,Private Contractor Fees,73373-RESIDENTIAL & NURSING CARE PLACEMENTS,"3,060.92",Revenue,20/01/2015,Social Care & Inclusion
WC52-0729,BURNTWOOD COMPRESSOR SERVICES LIMITED,Property Services,CENTRAL OFFICE ACCOMMODATION,Premises,Premises-Repairs & Maintenance,"40000-REPAIRS,ALTERATIONS & MAINTENANCE-PREM","1,786.00",Revenue,26/01/2015,Regeneration
WC52-0730,BURTON ADDICTION CENTRE,Public Health,ALCOHOL & DRUGS MISUSE/TOBACCO CONTROL,Supplies & Services,Services,63000-PROFESSIONAL FEES AND SERVICES,"1,350.00",Revenue,06/01/2015,Neighbourhood Services
WC52-0731,BUSH HOME LTD,Commissioning,OP COMMISSIONING,Third Party Payments,Private Contractor Fees,73373-RESIDENTIAL & NURSING CARE PLACEMENTS,678.04,Revenue,20/01/2015,Social Care & Inclusion
WC52-0732,BUSH HOME LTD,Commissioning,OP COMMISSIONING,Third Party Payments,Private Contractor Fees,73373-RESIDENTIAL & NURSING CARE PLACEMENTS,782.36,Revenue,20/01/2015,Social Care & Inclusion
WC52-0733,BUSH HOME LTD,Commissioning,OP COMMISSIONING,Third Party Payments,Private Contractor Fees,73373-RESIDENTIAL & NURSING CARE PLACEMENTS,"1,408.24",Revenue,20/01/2015,Social Care & Inclusion
WC52-0734,BUSH HOME LTD,Commissioning,OP COMMISSIONING,Third Party Payments,Private Contractor Fees,73373-RESIDENTIAL & NURSING CARE PLACEMENTS,"1,460.40",Revenue,20/01/2015,Social Care & Inclusion
WC52-0735,BUSH HOME LTD,Commissioning,OP COMMISSIONING,Third Party Payments,Private Contractor Fees,73373-RESIDENTIAL & NURSING CARE PLACEMENTS,"1,460.40",Revenue,20/01/2015,Social Care & Inclusion
WC52-0736,BUSH HOME LTD,Commissioning,OP COMMISSIONING,Third Party Payments,Private Contractor Fees,73373-RESIDENTIAL & NURSING CARE PLACEMENTS,"1,460.40",Revenue,27/01/2015,Social Care & Inclusion
WC52-0737,BUSINESS SERVICES FOR EDUCATION LTD,"Prevention, Workforce and Partnerships",CLUSTER 5 DARLASTON,Supplies & Services,Services,63102-CONSULTANTS FEES - CORPORATE,325.00,Revenue,22/01/2015,Childrens
WC52-0738,BUSINESS SERVICES FOR EDUCATION LTD,"Prevention, Workforce and Partnerships",CLUSTER 5 DARLASTON,Supplies & Services,Services,63102-CONSULTANTS FEES - CORPORATE,487.50,Revenue,22/01/2015,Childrens
WC52-0739,BUSY BEES CHILDCARE LTD,Education,EARLY YEARS - 2 YR OLDS,Third Party Payments,Grants to Other Orgs,66505-OTHER-GRANTS TO OTHER ORGS,616.14,Revenue,23/01/2015,Childrens
WC52-0740,BY THE BRIDGE,Corporate Parenting,EXTERNAL FOSTER CARE PROVISION,Third Party Payments,Private Contractor Fees,74037-INDEPENDENT FOSTER CARE-OTH AGENCY PROVISION,"4,295.71",Revenue,16/01/2015,Childrens
WC52-0741,C & V ORCHARD MANOR LTD,Commissioning,OP COMMISSIONING,Third Party Payments,Private Contractor Fees,73373-RESIDENTIAL & NURSING CARE PLACEMENTS,398.50,Revenue,13/01/2015,Social Care & Inclusion
WC52-0742,C & V ORCHARD MANOR LTD,Commissioning,OP COMMISSIONING,Third Party Payments,Private Contractor Fees,73373-RESIDENTIAL & NURSING CARE PLACEMENTS,697.38,Revenue,13/01/2015,Social Care & Inclusion
WC52-0743,C & V ORCHARD MANOR LTD,Commissioning,OP COMMISSIONING,Third Party Payments,Private Contractor Fees,73373-RESIDENTIAL & NURSING CARE PLACEMENTS,"1,394.76",Revenue,13/01/2015,Social Care & Inclusion
WC52-0744,C & V ORCHARD MANOR LTD,"Access,Assessment & Care Management",LD COMMISSIONING,Third Party Payments,Private Contractor Fees,73373-RESIDENTIAL & NURSING CARE PLACEMENTS,"1,439.80",Revenue,06/01/2015,Social Care & Inclusion
WC52-0745,C & V ORCHARD MANOR LTD,Commissioning,OP COMMISSIONING,Third Party Payments,Private Contractor Fees,73373-RESIDENTIAL & NURSING CARE PLACEMENTS,"1,439.80",Revenue,06/01/2015,Social Care & Inclusion
WC52-0746,C & V ORCHARD MANOR LTD,Commissioning,OP COMMISSIONING,Third Party Payments,Private Contractor Fees,73373-RESIDENTIAL & NURSING CARE PLACEMENTS,"1,439.80",Revenue,13/01/2015,Social Care & Inclusion
WC52-0747,C & V ORCHARD MANOR LTD,Commissioning,OP COMMISSIONING,Third Party Payments,Private Contractor Fees,73373-RESIDENTIAL & NURSING CARE PLACEMENTS,"1,439.81",Revenue,06/01/2015,Social Care & Inclusion
WC52-0748,C & V ORCHARD MANOR LTD,"Access,Assessment & Care Management",LD COMMISSIONING,Third Party Payments,Private Contractor Fees,73373-RESIDENTIAL & NURSING CARE PLACEMENTS,"1,460.40",Revenue,06/01/2015,Social Care & Inclusion
WC52-0749,C & V ORCHARD MANOR LTD,Commissioning,OP COMMISSIONING,Third Party Payments,Private Contractor Fees,73373-RESIDENTIAL & NURSING CARE PLACEMENTS,"1,460.40",Revenue,06/01/2015,Social Care & Inclusion
WC52-0750,C & V ORCHARD MANOR LTD,Commissioning,OP COMMISSIONING,Third Party Payments,Private Contractor Fees,73373-RESIDENTIAL & NURSING CARE PLACEMENTS,"1,531.76",Revenue,06/01/2015,Social Care & Inclusion
WC52-0751,C & V ORCHARD MANOR LTD,Commissioning,OP COMMISSIONING,Third Party Payments,Private Contractor Fees,73373-RESIDENTIAL & NURSING CARE PLACEMENTS,"1,531.76",Revenue,06/01/2015,Social Care & Inclusion
WC52-0752,C & V ORCHARD MANOR LTD,Commissioning,OP COMMISSIONING,Third Party Payments,Private Contractor Fees,73373-RESIDENTIAL & NURSING CARE PLACEMENTS,"1,531.76",Revenue,27/01/2015,Social Care & Inclusion
WC52-0753,C & V ORCHARD MANOR LTD,Commissioning,OP COMMISSIONING,Third Party Payments,Private Contractor Fees,73373-RESIDENTIAL & NURSING CARE PLACEMENTS,"1,534.12",Revenue,06/01/2015,Social Care & Inclusion
WC52-0754,C & V ORCHARD RESIDENTIAL LTD,Commissioning,OP COMMISSIONING,Third Party Payments,Private Contractor Fees,73373-RESIDENTIAL & NURSING CARE PLACEMENTS,"1,458.16",Revenue,06/01/2015,Social Care & Inclusion
WC52-0755,C & V ORCHARD RESIDENTIAL LTD,Commissioning,OP COMMISSIONING,Third Party Payments,Private Contractor Fees,73373-RESIDENTIAL & NURSING CARE PLACEMENTS,"1,458.16",Revenue,13/01/2015,Social Care & Inclusion
WC52-0756,C & V ORCHARD RESIDENTIAL LTD,Commissioning,OP COMMISSIONING,Third Party Payments,Private Contractor Fees,73373-RESIDENTIAL & NURSING CARE PLACEMENTS,"1,460.40",Revenue,06/01/2015,Social Care & Inclusion
WC52-0757,C & V ORCHARD RESIDENTIAL LTD,Commissioning,OP COMMISSIONING,Third Party Payments,Private Contractor Fees,73373-RESIDENTIAL & NURSING CARE PLACEMENTS,"1,460.40",Revenue,20/01/2015,Social Care & Inclusion
WC52-0758,C & V ORCHARD RESIDENTIAL LTD,Commissioning,OP COMMISSIONING,Third Party Payments,Private Contractor Fees,73373-RESIDENTIAL & NURSING CARE PLACEMENTS,"1,531.00",Revenue,06/01/2015,Social Care & Inclusion
WC52-0759,C & V ORCHARD RESIDENTIAL LTD,Commissioning,OP COMMISSIONING,Third Party Payments,Private Contractor Fees,73373-RESIDENTIAL & NURSING CARE PLACEMENTS,"1,531.00",Revenue,20/01/2015,Social Care & Inclusion
WC52-0760,C & V ORCHARD RESIDENTIAL LTD,Commissioning,OP COMMISSIONING,Third Party Payments,Private Contractor Fees,73373-RESIDENTIAL & NURSING CARE PLACEMENTS,"1,531.76",Revenue,06/01/2015,Social Care & Inclusion
WC52-0761,C & V ORCHARD RESIDENTIAL LTD,Commissioning,OP COMMISSIONING,Third Party Payments,Private Contractor Fees,73373-RESIDENTIAL & NURSING CARE PLACEMENTS,"1,531.76",Revenue,06/01/2015,Social Care & Inclusion
WC52-0762,C & V ORCHARD RESIDENTIAL LTD,Commissioning,OP COMMISSIONING,Third Party Payments,Private Contractor Fees,73373-RESIDENTIAL & NURSING CARE PLACEMENTS,"1,531.76",Revenue,06/01/2015,Social Care & Inclusion
WC52-0763,C & V ORCHARD RESIDENTIAL LTD,Commissioning,OP COMMISSIONING,Third Party Payments,Private Contractor Fees,73373-RESIDENTIAL & NURSING CARE PLACEMENTS,"1,531.76",Revenue,20/01/2015,Social Care & Inclusion
WC52-0764,C & V ORCHARD RESIDENTIAL LTD,Commissioning,OP COMMISSIONING,Third Party Payments,Private Contractor Fees,73373-RESIDENTIAL & NURSING CARE PLACEMENTS,"1,531.76",Revenue,20/01/2015,Social Care & Inclusion
WC52-0765,C & V ORCHARD RESIDENTIAL LTD,Commissioning,OP COMMISSIONING,Third Party Payments,Private Contractor Fees,73373-RESIDENTIAL & NURSING CARE PLACEMENTS,"1,531.76",Revenue,27/01/2015,Social Care & Inclusion
WC52-0766,C & V ORCHARD RESIDENTIAL LTD,Commissioning,OP COMMISSIONING,Third Party Payments,Private Contractor Fees,73373-RESIDENTIAL & NURSING CARE PLACEMENTS,"1,531.80",Revenue,06/01/2015,Social Care & Inclusion
WC52-0767,C & V ORCHARD RESIDENTIAL LTD,Commissioning,OP COMMISSIONING,Third Party Payments,Private Contractor Fees,73373-RESIDENTIAL & NURSING CARE PLACEMENTS,"1,531.80",Revenue,27/01/2015,Social Care & Inclusion
WC52-0768,C & V ORCHARD RESIDENTIAL LTD,Commissioning,OP COMMISSIONING,Third Party Payments,Private Contractor Fees,73373-RESIDENTIAL & NURSING CARE PLACEMENTS,"1,534.12",Revenue,06/01/2015,Social Care & Inclusion
WC52-0769,C & V ORCHARD RESIDENTIAL LTD,Commissioning,OP COMMISSIONING,Third Party Payments,Private Contractor Fees,73373-RESIDENTIAL & NURSING CARE PLACEMENTS,"1,534.12",Revenue,06/01/2015,Social Care & Inclusion
WC52-0770,C & V ORCHARD RESIDENTIAL LTD,Commissioning,OP COMMISSIONING,Third Party Payments,Private Contractor Fees,73373-RESIDENTIAL & NURSING CARE PLACEMENTS,"1,534.12",Revenue,06/01/2015,Social Care & Inclusion
WC52-0771,C & V ORCHARD RESIDENTIAL LTD,Commissioning,OP COMMISSIONING,Third Party Payments,Private Contractor Fees,73373-RESIDENTIAL & NURSING CARE PLACEMENTS,"1,534.12",Revenue,06/01/2015,Social Care & Inclusion
WC52-0772,C & V ORCHARD RESIDENTIAL LTD,Commissioning,OP COMMISSIONING,Third Party Payments,Private Contractor Fees,73373-RESIDENTIAL & NURSING CARE PLACEMENTS,"1,534.12",Revenue,20/01/2015,Social Care & Inclusion
WC52-0773,C & V ORCHARD RESIDENTIAL LTD,Commissioning,OP COMMISSIONING,Third Party Payments,Private Contractor Fees,73373-RESIDENTIAL & NURSING CARE PLACEMENTS,"1,534.12",Revenue,20/01/2015,Social Care & Inclusion
WC52-0774,C & V ORCHARD RESIDENTIAL LTD,Commissioning,OP COMMISSIONING,Third Party Payments,Private Contractor Fees,73373-RESIDENTIAL & NURSING CARE PLACEMENTS,"1,534.12",Revenue,27/01/2015,Social Care & Inclusion
WC52-0775,C & V ORCHARD RESIDENTIAL LTD,Commissioning,OP COMMISSIONING,Third Party Payments,Private Contractor Fees,73373-RESIDENTIAL & NURSING CARE PLACEMENTS,"1,534.12",Revenue,27/01/2015,Social Care & Inclusion
WC52-0776,REDACTED,Corporate Parenting,INTERNAL FOSTER CARE PROVISION,Supplies & Services,Other Supplies & Services,62515-MISCELLANEOUS SUPPLIES,"4,267.08",Revenue,05/01/2015,Childrens
WC52-0777,REDACTED,Corporate Parenting,INTERNAL FOSTER CARE PROVISION,Third Party Payments,Private Contractor Fees,74006-HOLIDAY/CHRISTMAS ALLOWANCE-FOSTER CARERS-OTH AGENCY PROVISION,"4,478.41",Revenue,05/01/2015,Childrens
WC52-0778,REDACTED,Corporate Parenting,INTERNAL FOSTER CARE PROVISION,Supplies & Services,Other Supplies & Services,62515-MISCELLANEOUS SUPPLIES,"1,428.44",Revenue,05/01/2015,Childrens
WC52-0779,REDACTED,Corporate Parenting,INTERNAL FOSTER CARE PROVISION,Third Party Payments,Private Contractor Fees,74006-HOLIDAY/CHRISTMAS ALLOWANCE-FOSTER CARERS-OTH AGENCY PROVISION,"1,435.40",Revenue,05/01/2015,Childrens
WC52-0780,C P DAVIDSON & SONS LTD,Clean and Green Services,FLEET,Supplies & Services,"Equip,Furniture & Materials",60500-GENERAL MATERIALS,-711.04,Revenue,02/01/2015,Neighbourhood Services
WC52-0781,C P DAVIDSON & SONS LTD,Clean and Green Services,FLEET,Supplies & Services,"Equip,Furniture & Materials",60500-GENERAL MATERIALS,"1,254.45",Revenue,02/01/2015,Neighbourhood Services
WC52-0782,C P DAVIDSON & SONS LTD,Clean and Green Services,FLEET PARTS STOCK ACCOUNT,Supplies & Services,"Equip,Furniture & Materials",60514-MATERIALS TO STORES,"2,938.38",Revenue,01/01/2015,Neighbourhood Services
WC52-0783,REDACTED,Libraries Heritage & Arts,EXHIBITIONS - SPECIAL PROJECTS/PARTNERSHIPS,Supplies & Services,Services,63000-PROFESSIONAL FEES AND SERVICES,894.00,Revenue,28/01/2015,Neighbourhood Services
WC52-0784,CALDMORE AREA HOUSING ASS LTD,Mental Health,MH COMMISSIONING,Third Party Payments,Private Contractor Fees,73373-RESIDENTIAL & NURSING CARE PLACEMENTS,265.43,Revenue,27/01/2015,Social Care & Inclusion
WC52-0785,CALDMORE AREA HOUSING ASS LTD,Mental Health,MH COMMISSIONING,Third Party Payments,Private Contractor Fees,73373-RESIDENTIAL & NURSING CARE PLACEMENTS,353.90,Revenue,27/01/2015,Social Care & Inclusion
WC52-0786,CALDMORE AREA HOUSING ASS LTD,Mental Health,MH COMMISSIONING,Third Party Payments,Private Contractor Fees,73373-RESIDENTIAL & NURSING CARE PLACEMENTS,442.38,Revenue,20/01/2015,Social Care & Inclusion
WC52-0787,CALDMORE AREA HOUSING ASS LTD,Mental Health,MH COMMISSIONING,Third Party Payments,Private Contractor Fees,73374-SUPPORTED & OTHER ACCOMMODATION,453.20,Revenue,12/01/2015,Social Care & Inclusion
WC52-0788,CALDMORE AREA HOUSING ASS LTD,Mental Health,MH COMMISSIONING,Third Party Payments,Private Contractor Fees,73374-SUPPORTED & OTHER ACCOMMODATION,453.20,Revenue,12/01/2015,Social Care & Inclusion
WC52-0789,CALDMORE AREA HOUSING ASS LTD,Mental Health,MH COMMISSIONING,Third Party Payments,Private Contractor Fees,73374-SUPPORTED & OTHER ACCOMMODATION,576.80,Revenue,12/01/2015,Social Care & Inclusion
WC52-0790,CALDMORE AREA HOUSING ASS LTD,Mental Health,MH COMMISSIONING,Third Party Payments,Private Contractor Fees,73374-SUPPORTED & OTHER ACCOMMODATION,576.80,Revenue,12/01/2015,Social Care & Inclusion
WC52-0791,CALDMORE AREA HOUSING ASS LTD,Mental Health,MH COMMISSIONING,Third Party Payments,Private Contractor Fees,73374-SUPPORTED & OTHER ACCOMMODATION,576.80,Revenue,12/01/2015,Social Care & Inclusion
WC52-0792,CALDMORE AREA HOUSING ASS LTD,Mental Health,MH COMMISSIONING,Third Party Payments,Private Contractor Fees,73374-SUPPORTED & OTHER ACCOMMODATION,576.80,Revenue,23/01/2015,Social Care & Inclusion
WC52-0793,CALDMORE AREA HOUSING ASS LTD,Mental Health,MH COMMISSIONING,Third Party Payments,Private Contractor Fees,73374-SUPPORTED & OTHER ACCOMMODATION,576.80,Revenue,23/01/2015,Social Care & Inclusion
WC52-0794,CALDMORE AREA HOUSING ASS LTD,Mental Health,MH COMMISSIONING,Third Party Payments,Private Contractor Fees,73374-SUPPORTED & OTHER ACCOMMODATION,576.80,Revenue,26/01/2015,Social Care & Inclusion
WC52-0795,CALDMORE AREA HOUSING ASS LTD,Mental Health,MH COMMISSIONING,Third Party Payments,Private Contractor Fees,73374-SUPPORTED & OTHER ACCOMMODATION,679.80,Revenue,23/01/2015,Social Care & Inclusion
WC52-0796,CALDMORE AREA HOUSING ASS LTD,Mental Health,MH COMMISSIONING,Third Party Payments,Private Contractor Fees,73374-SUPPORTED & OTHER ACCOMMODATION,700.40,Revenue,23/01/2015,Social Care & Inclusion
WC52-0797,CALDMORE AREA HOUSING ASS LTD,Mental Health,MH COMMISSIONING,Third Party Payments,Private Contractor Fees,73374-SUPPORTED & OTHER ACCOMMODATION,721.00,Revenue,12/01/2015,Social Care & Inclusion
WC52-0798,CALDMORE AREA HOUSING ASS LTD,Mental Health,MH COMMISSIONING,Third Party Payments,Private Contractor Fees,73374-SUPPORTED & OTHER ACCOMMODATION,721.00,Revenue,12/01/2015,Social Care & Inclusion
WC52-0799,CALDMORE AREA HOUSING ASS LTD,Mental Health,MH COMMISSIONING,Third Party Payments,Private Contractor Fees,73374-SUPPORTED & OTHER ACCOMMODATION,721.00,Revenue,12/01/2015,Social Care & Inclusion
WC52-0800,CALDMORE AREA HOUSING ASS LTD,Mental Health,MH COMMISSIONING,Third Party Payments,Private Contractor Fees,73374-SUPPORTED & OTHER ACCOMMODATION,721.00,Revenue,12/01/2015,Social Care & Inclusion
WC52-0801,CALDMORE AREA HOUSING ASS LTD,Mental Health,MH COMMISSIONING,Third Party Payments,Private Contractor Fees,73374-SUPPORTED & OTHER ACCOMMODATION,721.00,Revenue,12/01/2015,Social Care & Inclusion
WC52-0802,CALDMORE AREA HOUSING ASS LTD,Mental Health,MH COMMISSIONING,Third Party Payments,Private Contractor Fees,73374-SUPPORTED & OTHER ACCOMMODATION,721.00,Revenue,27/01/2015,Social Care & Inclusion
WC52-0803,CALDMORE AREA HOUSING ASS LTD,Mental Health,MH COMMISSIONING,Third Party Payments,Private Contractor Fees,73374-SUPPORTED & OTHER ACCOMMODATION,721.00,Revenue,27/01/2015,Social Care & Inclusion
WC52-0804,CALDMORE AREA HOUSING ASS LTD,Mental Health,MH COMMISSIONING,Third Party Payments,Private Contractor Fees,73374-SUPPORTED & OTHER ACCOMMODATION,721.00,Revenue,27/01/2015,Social Care & Inclusion
WC52-0805,CALDMORE AREA HOUSING ASS LTD,Mental Health,MH COMMISSIONING,Third Party Payments,Private Contractor Fees,73374-SUPPORTED & OTHER ACCOMMODATION,721.00,Revenue,27/01/2015,Social Care & Inclusion
WC52-0806,CALDMORE AREA HOUSING ASS LTD,Mental Health,MH COMMISSIONING,Third Party Payments,Private Contractor Fees,73374-SUPPORTED & OTHER ACCOMMODATION,721.00,Revenue,27/01/2015,Social Care & Inclusion
WC52-0807,CALDMORE AREA HOUSING ASS LTD,Mental Health,MH COMMISSIONING,Third Party Payments,Private Contractor Fees,73374-SUPPORTED & OTHER ACCOMMODATION,721.00,Revenue,27/01/2015,Social Care & Inclusion
WC52-0808,CALDMORE AREA HOUSING ASS LTD,Mental Health,MH COMMISSIONING,Third Party Payments,Private Contractor Fees,73374-SUPPORTED & OTHER ACCOMMODATION,721.00,Revenue,27/01/2015,Social Care & Inclusion
WC52-0809,CALDMORE AREA HOUSING ASS LTD,Mental Health,MH COMMISSIONING,Third Party Payments,Private Contractor Fees,73374-SUPPORTED & OTHER ACCOMMODATION,721.00,Revenue,27/01/2015,Social Care & Inclusion
WC52-0810,CALDMORE AREA HOUSING ASS LTD,Mental Health,MH COMMISSIONING,Third Party Payments,Private Contractor Fees,73374-SUPPORTED & OTHER ACCOMMODATION,721.00,Revenue,27/01/2015,Social Care & Inclusion
WC52-0811,CALDMORE AREA HOUSING ASS LTD,Mental Health,MH COMMISSIONING,Third Party Payments,Private Contractor Fees,73374-SUPPORTED & OTHER ACCOMMODATION,741.60,Revenue,26/01/2015,Social Care & Inclusion
WC52-0812,CALDMORE AREA HOUSING ASS LTD,Mental Health,MH COMMISSIONING,Third Party Payments,Private Contractor Fees,73373-RESIDENTIAL & NURSING CARE PLACEMENTS,"1,061.71",Revenue,27/01/2015,Social Care & Inclusion
WC52-0813,CALDMORE AREA HOUSING ASS LTD,Commissioning,OP COMMISSIONING,Third Party Payments,Private Contractor Fees,73373-RESIDENTIAL & NURSING CARE PLACEMENTS,"2,477.32",Revenue,20/01/2015,Social Care & Inclusion
WC52-0814,CALDMORE AREA HOUSING ASS LTD,Commissioning,OP COMMISSIONING,Third Party Payments,Private Contractor Fees,73373-RESIDENTIAL & NURSING CARE PLACEMENTS,"2,477.32",Revenue,20/01/2015,Social Care & Inclusion
WC52-0815,CALDMORE AREA HOUSING ASS LTD,Commissioning,OP COMMISSIONING,Third Party Payments,Private Contractor Fees,73373-RESIDENTIAL & NURSING CARE PLACEMENTS,"2,742.74",Revenue,27/01/2015,Social Care & Inclusion
WC52-0816,CALDMORE AREA HOUSING ASS LTD,Commissioning,OP COMMISSIONING,Third Party Payments,Private Contractor Fees,73373-RESIDENTIAL & NURSING CARE PLACEMENTS,"3,096.65",Revenue,20/01/2015,Social Care & Inclusion
WC52-0817,CALDMORE AREA HOUSING ASS LTD,Commissioning,OP COMMISSIONING,Third Party Payments,Private Contractor Fees,73373-RESIDENTIAL & NURSING CARE PLACEMENTS,"3,096.65",Revenue,20/01/2015,Social Care & Inclusion
WC52-0818,CALDMORE AREA HOUSING ASS LTD,Mental Health,MH COMMISSIONING,Third Party Payments,Private Contractor Fees,73373-RESIDENTIAL & NURSING CARE PLACEMENTS,"3,096.65",Revenue,20/01/2015,Social Care & Inclusion
WC52-0819,CALDMORE AREA HOUSING ASS LTD,Mental Health,MH COMMISSIONING,Third Party Payments,Private Contractor Fees,73373-RESIDENTIAL & NURSING CARE PLACEMENTS,"3,096.65",Revenue,20/01/2015,Social Care & Inclusion
WC52-0820,CALDMORE AREA HOUSING ASS LTD,Mental Health,MH COMMISSIONING,Third Party Payments,Private Contractor Fees,73373-RESIDENTIAL & NURSING CARE PLACEMENTS,"3,096.65",Revenue,20/01/2015,Social Care & Inclusion
WC52-0821,CALDMORE AREA HOUSING ASS LTD,Mental Health,MH COMMISSIONING,Third Party Payments,Private Contractor Fees,73373-RESIDENTIAL & NURSING CARE PLACEMENTS,"3,096.65",Revenue,20/01/2015,Social Care & Inclusion
WC52-0822,CALDMORE AREA HOUSING ASS LTD,Mental Health,MH COMMISSIONING,Third Party Payments,Private Contractor Fees,73373-RESIDENTIAL & NURSING CARE PLACEMENTS,"3,096.65",Revenue,20/01/2015,Social Care & Inclusion
WC52-0823,CALDMORE AREA HOUSING ASS LTD,Mental Health,MH COMMISSIONING,Third Party Payments,Private Contractor Fees,73373-RESIDENTIAL & NURSING CARE PLACEMENTS,"3,096.65",Revenue,20/01/2015,Social Care & Inclusion
WC52-0824,CALDMORE AREA HOUSING ASS LTD,Mental Health,MH COMMISSIONING,Third Party Payments,Private Contractor Fees,73373-RESIDENTIAL & NURSING CARE PLACEMENTS,"3,096.65",Revenue,20/01/2015,Social Care & Inclusion
WC52-0825,CALDMORE AREA HOUSING ASS LTD,Mental Health,MH COMMISSIONING,Third Party Payments,Private Contractor Fees,73373-RESIDENTIAL & NURSING CARE PLACEMENTS,"3,096.65",Revenue,20/01/2015,Social Care & Inclusion
WC52-0826,CALDMORE AREA HOUSING ASS LTD,Mental Health,MH COMMISSIONING,Third Party Payments,Private Contractor Fees,73373-RESIDENTIAL & NURSING CARE PLACEMENTS,"3,096.65",Revenue,20/01/2015,Social Care & Inclusion
WC52-0827,CALDMORE AREA HOUSING ASS LTD,Commissioning,BCPFT,Third Party Payments,Private Contractor Fees,70000-SOCIAL SERVICES-FEES TO VOLUNTARY BODIES,"15,000.00",Revenue,02/01/2015,Social Care & Inclusion
WC52-0828,REDACTED,Corporate Parenting,INTERNAL FOSTER CARE PROVISION,Third Party Payments,Private Contractor Fees,74006-HOLIDAY/CHRISTMAS ALLOWANCE-FOSTER CARERS-OTH AGENCY PROVISION,373.60,Revenue,19/01/2015,Childrens
WC52-0829,REDACTED,Specialist Services Management,FAMILY SUPPORT - DIRECT PAYMENTS,Transfer Payments,Transfer Payments,76422-DIRECT PAYMENTS TO SOCIAL SERVICES CLIENTS,287.70,Revenue,12/01/2015,Childrens
WC52-0830,CAMBIAN CHILDCARE LIMITED,Corporate Parenting,INDEPENDENT RESIDENTIAL HOMES,Third Party Payments,Private Contractor Fees,74036-EXTERNAL RESIDENTIAL CARE-OTH AGENCY PROVISION,"2,657.01",Revenue,21/01/2015,Childrens
WC52-0831,CAMBIAN CHILDCARE LIMITED,Corporate Parenting,INDEPENDENT RESIDENTIAL HOMES,Third Party Payments,Private Contractor Fees,74036-EXTERNAL RESIDENTIAL CARE-OTH AGENCY PROVISION,"14,339.67",Revenue,21/01/2015,Childrens
WC52-0832,CAMBIAN WHINFELL SCHOOLS LTD,Schools,INDEPENDENT PROVIDERS - SPECIAL & AP,Third Party Payments,Grants to Other Orgs,66502-TOP UP FUNDING -GRANTS TO SCHOOLS,"13,510.50",Revenue,12/01/2015,Childrens
WC52-0833,CAMBIAN WHINFELL SCHOOLS LTD,Schools,INDEPENDENT PROVIDERS - SPECIAL & AP,Third Party Payments,Grants to Other Orgs,66502-TOP UP FUNDING -GRANTS TO SCHOOLS,"13,510.50",Revenue,12/01/2015,Childrens
WC52-0834,CAMBIAN WHINFELL SCHOOLS LTD,Schools,INDEPENDENT PROVIDERS - SPECIAL & AP,Third Party Payments,Grants to Other Orgs,66502-TOP UP FUNDING -GRANTS TO SCHOOLS,"21,326.08",Revenue,12/01/2015,Childrens
WC52-0835,CAMBIAN WHINFELL SCHOOLS LTD,Educational Support,SEN ASSESSMENT,Supplies & Services,Services,63000-PROFESSIONAL FEES AND SERVICES,"25,938.13",Revenue,12/01/2015,Childrens
WC52-0836,CAMBIAN WHINFELL SCHOOLS LTD,Schools,INDEPENDENT PROVIDERS - SPECIAL & AP,Third Party Payments,Grants to Other Orgs,66502-TOP UP FUNDING -GRANTS TO SCHOOLS,"30,250.14",Revenue,12/01/2015,Childrens
WC52-0837,CAMPION SCHOOL,Schools,INDEPENDENT PROVIDERS - SPECIAL & AP,Third Party Payments,Grants to Other Orgs,66502-TOP UP FUNDING -GRANTS TO SCHOOLS,"2,099.00",Revenue,12/01/2015,Childrens
WC52-0838,CANNOCK TACHOGRAPH CENTRE LTD,Clean and Green Services,FLEET,Third Party Payments,Private Contractor Fees,73025-PROFESSIONAL SERVICES-PRIV CONTRACTOR & OTHER AGENCIES,260.00,Revenue,26/01/2015,Neighbourhood Services
WC52-0839,CAPITA TREASURY SOLUTIONS LIMITED,Capital,VEHICLE MAINTENANCE VEHICLES,Capital,Capital,01018-VEHICLES LEASING,"9,350.00",Capital,07/01/2015,Leasing
WC52-0840,CAPITAL HAIR & BEAUTY LTD,WACC & WLLA,VP SCL VOCATIONAL & SUPPORTED LEARNING,Supplies & Services,Other Supplies & Services,63115-HIRE OF ROOM (duplicate please use 63128)-SERVICES-FEES,800.00,Revenue,29/01/2015,Neighbourhood Services
WC52-0841,CAPSTONE FOSTER CARE (SOUTH EAST) LIMITED,Corporate Parenting,EXTERNAL FOSTER CARE PROVISION,Third Party Payments,Private Contractor Fees,74037-INDEPENDENT FOSTER CARE-OTH AGENCY PROVISION,"2,770.65",Revenue,07/01/2015,Childrens
WC52-0842,CAPSTONE FOSTER CARE (SOUTH EAST) LIMITED,Corporate Parenting,EXTERNAL FOSTER CARE PROVISION,Third Party Payments,Private Contractor Fees,74037-INDEPENDENT FOSTER CARE-OTH AGENCY PROVISION,"2,770.65",Revenue,07/01/2015,Childrens
WC52-0843,CAPSTONE FOSTER CARE (SOUTH EAST) LIMITED,Corporate Parenting,EXTERNAL FOSTER CARE PROVISION,Third Party Payments,Private Contractor Fees,74037-INDEPENDENT FOSTER CARE-OTH AGENCY PROVISION,"2,770.65",Revenue,29/01/2015,Childrens
WC52-0844,CAPSTONE FOSTER CARE (SOUTH EAST) LIMITED,Corporate Parenting,EXTERNAL FOSTER CARE PROVISION,Third Party Payments,Private Contractor Fees,74037-INDEPENDENT FOSTER CARE-OTH AGENCY PROVISION,"2,770.65",Revenue,29/01/2015,Childrens
WC52-0845,CAPSTONE FOSTER CARE (SOUTH EAST) LIMITED,Corporate Parenting,EXTERNAL FOSTER CARE PROVISION,Third Party Payments,Private Contractor Fees,74037-INDEPENDENT FOSTER CARE-OTH AGENCY PROVISION,"3,259.34",Revenue,07/01/2015,Childrens
WC52-0846,CAPSTONE FOSTER CARE (SOUTH EAST) LIMITED,Corporate Parenting,EXTERNAL FOSTER CARE PROVISION,Third Party Payments,Private Contractor Fees,74037-INDEPENDENT FOSTER CARE-OTH AGENCY PROVISION,"3,259.34",Revenue,29/01/2015,Childrens
WC52-0847,CAPSTONE FOSTER CARE (SOUTH EAST) LIMITED,Corporate Parenting,EXTERNAL FOSTER CARE PROVISION,Third Party Payments,Private Contractor Fees,74037-INDEPENDENT FOSTER CARE-OTH AGENCY PROVISION,"3,780.10",Revenue,07/01/2015,Childrens
WC52-0848,CAPSTONE FOSTER CARE (SOUTH EAST) LIMITED,Corporate Parenting,EXTERNAL FOSTER CARE PROVISION,Third Party Payments,Private Contractor Fees,74037-INDEPENDENT FOSTER CARE-OTH AGENCY PROVISION,"3,780.10",Revenue,29/01/2015,Childrens
WC52-0849,CARE 2 U LIMITED,Commissioning,OP COMMISSIONING,Third Party Payments,Private Contractor Fees,73372-DOMICILIARY CARE,637.79,Revenue,27/01/2015,Social Care & Inclusion
WC52-0850,CARE 2 U LIMITED,Commissioning,OP COMMISSIONING,Third Party Payments,Private Contractor Fees,73372-DOMICILIARY CARE,720.01,Revenue,27/01/2015,Social Care & Inclusion
WC52-0851,CARE 2 U LIMITED,Commissioning,OP COMMISSIONING,Third Party Payments,Private Contractor Fees,73372-DOMICILIARY CARE,721.67,Revenue,27/01/2015,Social Care & Inclusion
WC52-0852,CARE 2 U LIMITED,Commissioning,OP COMMISSIONING,Third Party Payments,Private Contractor Fees,73372-DOMICILIARY CARE,735.07,Revenue,27/01/2015,Social Care & Inclusion
WC52-0853,CARE 2 U LIMITED,Commissioning,OP COMMISSIONING,Third Party Payments,Private Contractor Fees,73372-DOMICILIARY CARE,754.52,Revenue,27/01/2015,Social Care & Inclusion
WC52-0854,CARE 2 U LIMITED,Commissioning,OP COMMISSIONING,Third Party Payments,Private Contractor Fees,73372-DOMICILIARY CARE,794.55,Revenue,27/01/2015,Social Care & Inclusion
WC52-0855,CARE 2 U LIMITED,Commissioning,OP COMMISSIONING,Third Party Payments,Private Contractor Fees,73372-DOMICILIARY CARE,819.24,Revenue,27/01/2015,Social Care & Inclusion
WC52-0856,CARE 2 U LIMITED,Commissioning,OP COMMISSIONING,Third Party Payments,Private Contractor Fees,73372-DOMICILIARY CARE,"43,490.53",Revenue,08/01/2015,Social Care & Inclusion
WC52-0857,CARE FIRST CARE HOMES LTD,Commissioning,OP COMMISSIONING,Third Party Payments,Private Contractor Fees,73373-RESIDENTIAL & NURSING CARE PLACEMENTS,533.57,Revenue,27/01/2015,Social Care & Inclusion
WC52-0858,CARE FIRST MANAGEMENT SERVICES LTD,Commissioning,CONCESSIONARY TRAVEL,Third Party Payments,Private Contractor Fees,73372-DOMICILIARY CARE,780.00,Revenue,26/01/2015,Social Care & Inclusion
WC52-0859,CARE LEAVERS,Corporate Parenting,TRANSITION AND LEAVING CARE,Supplies & Services,Other Supplies & Services,63114-OTHER FEES & LICENCES-SERVICES-FEES,81.25,Revenue,22/01/2015,Childrens
WC52-0860,CARE LEAVERS,Corporate Parenting,TRANSITION AND LEAVING CARE,Third Party Payments,Private Contractor Fees,74500-CARE LEAVERS MTCE PAYMENTS,350.00,Revenue,22/01/2015,Childrens
WC52-0861,CARE LEAVERS,Corporate Parenting,TRANSITION AND LEAVING CARE,Supplies & Services,Other Supplies & Services,64002-OTHER EXPENSES-EXPENSES,683.76,Revenue,14/01/2015,Childrens
WC52-0862,CARE LEAVERS,Corporate Parenting,TRANSITION AND LEAVING CARE,Transfer Payments,Transfer Payments,76010-ACCOMMODATION AND RELATED COSTS-ASSISTANCE TO S/S CLIENTS,"1,310.00",Revenue,22/01/2015,Childrens
WC52-0863,CARE LEAVERS,Corporate Parenting,TRANSITION AND LEAVING CARE,Supplies & Services,Other Supplies & Services,64002-OTHER EXPENSES-EXPENSES,"1,449.00",Revenue,22/01/2015,Childrens
WC52-0864,CARE LEAVERS,Corporate Parenting,TRANSITION AND LEAVING CARE,Third Party Payments,Private Contractor Fees,74500-CARE LEAVERS MTCE PAYMENTS,"1,600.00",Revenue,14/01/2015,Childrens
WC52-0865,CARE LEAVERS,Corporate Parenting,TRANSITION AND LEAVING CARE,Transfer Payments,Transfer Payments,76400-RESIDENTS PERSONAL EXPENSES-ALLOWANCES TO S/S CLIENTS,"2,575.16",Revenue,22/01/2015,Childrens
WC52-0866,CARE LEAVERS,Corporate Parenting,TRANSITION AND LEAVING CARE,Transfer Payments,Transfer Payments,76010-ACCOMMODATION AND RELATED COSTS-ASSISTANCE TO S/S CLIENTS,"2,620.00",Revenue,14/01/2015,Childrens
WC52-0867,CARE LEAVERS,Corporate Parenting,TRANSITION AND LEAVING CARE,Transfer Payments,Transfer Payments,76400-RESIDENTS PERSONAL EXPENSES-ALLOWANCES TO S/S CLIENTS,"2,999.50",Revenue,14/01/2015,Childrens
WC52-0868,CARE LEAVERS,Corporate Parenting,TRANSITION AND LEAVING CARE,Transfer Payments,Transfer Payments,76000-TRANSFER PAYMENTS - SOCIAL SERVICES CLIENTS,"3,987.90",Revenue,14/01/2015,Childrens
WC52-0869,CARE LEAVERS,Corporate Parenting,TRANSITION AND LEAVING CARE,Transfer Payments,Transfer Payments,76000-TRANSFER PAYMENTS - SOCIAL SERVICES CLIENTS,"7,611.52",Revenue,22/01/2015,Childrens
WC52-0870,CARE SHOP,Provider,REABLEMENT TEAM - HOLLY BANK,Supplies & Services,"Equip,Furniture & Materials",60539-CLEANING MATERIALS,901.84,Revenue,28/01/2015,Social Care & Inclusion
WC52-0871,CARE TODAY CHILDRENS SERVICES,Corporate Parenting,INDEPENDENT RESIDENTIAL HOMES,Third Party Payments,Private Contractor Fees,74036-EXTERNAL RESIDENTIAL CARE-OTH AGENCY PROVISION,"6,774.40",Revenue,01/01/2015,Childrens
WC52-0872,CARE4HEALTH LTD.,"Access,Assessment & Care Management",OCCUPATIONAL THERAPY SERVICES,Employees,Agency,34305-AGENCY STAFF-EMPLOYEES,724.50,Revenue,08/01/2015,Social Care & Inclusion
WC52-0873,CARE4HEALTH LTD.,"Access,Assessment & Care Management",OCCUPATIONAL THERAPY SERVICES,Employees,Agency,34305-AGENCY STAFF-EMPLOYEES,"1,044.90",Revenue,01/01/2015,Social Care & Inclusion
WC52-0874,CARE4HEALTH LTD.,"Access,Assessment & Care Management",OCCUPATIONAL THERAPY SERVICES,Employees,Agency,34305-AGENCY STAFF-EMPLOYEES,"1,046.25",Revenue,26/01/2015,Social Care & Inclusion
WC52-0875,CARETECH COMMUNITY SERVICE,"Access,Assessment & Care Management",LD COMMISSIONING,Third Party Payments,Private Contractor Fees,73374-SUPPORTED & OTHER ACCOMMODATION,"1,210.42",Revenue,12/01/2015,Social Care & Inclusion
WC52-0876,CARETECH COMMUNITY SERVICE,"Access,Assessment & Care Management",LD COMMISSIONING,Third Party Payments,Private Contractor Fees,73374-SUPPORTED & OTHER ACCOMMODATION,"4,256.12",Revenue,12/01/2015,Social Care & Inclusion
WC52-0877,CARETECH COMMUNITY SERVICE,Commissioning,OP COMMISSIONING,Third Party Payments,Private Contractor Fees,73374-SUPPORTED & OTHER ACCOMMODATION,"5,048.57",Revenue,12/01/2015,Social Care & Inclusion
WC52-0878,CAREVIEW SERVICES LTD,"Access,Assessment & Care Management",LD COMMISSIONING,Third Party Payments,Private Contractor Fees,73373-RESIDENTIAL & NURSING CARE PLACEMENTS,"6,653.13",Revenue,20/01/2015,Social Care & Inclusion
WC52-0879,CARING CARE LIMITED,Provider,COMMUNITY INTERMEDIATE CARE,Employees,Agency,34305-AGENCY STAFF-EMPLOYEES,552.00,Revenue,15/01/2015,Social Care & Inclusion
WC52-0880,CARING CARE LIMITED,Commissioning,OP COMMISSIONING,Third Party Payments,Private Contractor Fees,73372-DOMICILIARY CARE,"41,528.01",Revenue,08/01/2015,Social Care & Inclusion
WC52-0881,CARING HANDS LIMITED,Commissioning,OP COMMISSIONING,Third Party Payments,Private Contractor Fees,73372-DOMICILIARY CARE,390.00,Revenue,12/01/2015,Social Care & Inclusion
WC52-0882,CARING HANDS LIMITED,Commissioning,OP COMMISSIONING,Third Party Payments,Private Contractor Fees,73372-DOMICILIARY CARE,"1,090.75",Revenue,12/01/2015,Social Care & Inclusion
WC52-0883,CARING HANDS LIMITED,Commissioning,OP COMMISSIONING,Third Party Payments,Private Contractor Fees,73372-DOMICILIARY CARE,"7,305.29",Revenue,06/01/2015,Social Care & Inclusion
WC52-0884,CARING HANDS LIMITED,Commissioning,OP COMMISSIONING,Third Party Payments,Private Contractor Fees,73372-DOMICILIARY CARE,"49,782.20",Revenue,08/01/2015,Social Care & Inclusion
WC52-0885,REDACTED,Commissioning,CONCESSIONARY TRAVEL,Third Party Payments,Private Contractor Fees,73374-SUPPORTED & OTHER ACCOMMODATION,"4,912.20",Revenue,28/01/2015,Social Care & Inclusion
WC52-0886,REDACTED,Commissioning,CONCESSIONARY TRAVEL,Transfer Payments,Transfer Payments,76422-DIRECT PAYMENTS TO SOCIAL SERVICES CLIENTS,450.00,Revenue,12/01/2015,Social Care & Inclusion
WC52-0887,REDACTED,Corporate Parenting,INTERNAL FOSTER CARE PROVISION,Supplies & Services,Other Supplies & Services,62515-MISCELLANEOUS SUPPLIES,533.96,Revenue,05/01/2015,Childrens
WC52-0888,REDACTED,Corporate Parenting,INTERNAL FOSTER CARE PROVISION,Third Party Payments,Private Contractor Fees,74006-HOLIDAY/CHRISTMAS ALLOWANCE-FOSTER CARERS-OTH AGENCY PROVISION,714.00,Revenue,05/01/2015,Childrens
WC52-0889,CARTER SYNERGY LTD,Libraries Heritage & Arts,NAG - MAINTENANCE,Premises,Premises-Repairs & Maintenance,40005-HEATING-OP MTCE,500.25,Revenue,08/01/2015,Neighbourhood Services
WC52-0890,CARTER SYNERGY LTD,Libraries Heritage & Arts,NAG - MAINTENANCE,Premises,Premises-Repairs & Maintenance,40011-SECURITY SYSTEM-OP MTCE,610.04,Revenue,14/01/2015,Neighbourhood Services
WC52-0891,CARTER SYNERGY LTD,Libraries Heritage & Arts,NAG - MAINTENANCE,Premises,Premises-Repairs & Maintenance,"40000-REPAIRS,ALTERATIONS & MAINTENANCE-PREM",998.80,Revenue,14/01/2015,Neighbourhood Services
WC52-0892,CARTER SYNERGY LTD,Libraries Heritage & Arts,NAG - MAINTENANCE,Premises,Premises-Repairs & Maintenance,40216-OTHER-PLAN MTCE,"9,939.41",Revenue,02/01/2015,Neighbourhood Services
WC52-0893,CARTER SYNERGY LTD,Libraries Heritage & Arts,NAG - MAINTENANCE,Premises,Premises-Repairs & Maintenance,40216-OTHER-PLAN MTCE,"9,939.41",Revenue,28/01/2015,Neighbourhood Services
WC52-0894,CASHFRIDAY,Commissioning,OP COMMISSIONING,Third Party Payments,Private Contractor Fees,73372-DOMICILIARY CARE,251.81,Revenue,26/01/2015,Social Care & Inclusion
WC52-0895,CASHFRIDAY,Commissioning,OP COMMISSIONING,Third Party Payments,Private Contractor Fees,73372-DOMICILIARY CARE,254.50,Revenue,14/01/2015,Social Care & Inclusion
WC52-0896,CASHFRIDAY,Commissioning,OP COMMISSIONING,Third Party Payments,Private Contractor Fees,73372-DOMICILIARY CARE,254.50,Revenue,27/01/2015,Social Care & Inclusion
WC52-0897,CASHFRIDAY,Commissioning,OP COMMISSIONING,Third Party Payments,Private Contractor Fees,73372-DOMICILIARY CARE,283.50,Revenue,13/01/2015,Social Care & Inclusion
WC52-0898,CASHFRIDAY,Commissioning,OP COMMISSIONING,Third Party Payments,Private Contractor Fees,73372-DOMICILIARY CARE,288.00,Revenue,13/01/2015,Social Care & Inclusion
WC52-0899,CASHFRIDAY,Commissioning,OP COMMISSIONING,Third Party Payments,Private Contractor Fees,73372-DOMICILIARY CARE,294.00,Revenue,14/01/2015,Social Care & Inclusion
WC52-0900,CASHFRIDAY,Commissioning,OP COMMISSIONING,Third Party Payments,Private Contractor Fees,73372-DOMICILIARY CARE,294.00,Revenue,15/01/2015,Social Care & Inclusion
WC52-0901,CASHFRIDAY,Commissioning,OP COMMISSIONING,Third Party Payments,Private Contractor Fees,73372-DOMICILIARY CARE,294.00,Revenue,26/01/2015,Social Care & Inclusion
WC52-0902,CASHFRIDAY,Commissioning,OP COMMISSIONING,Third Party Payments,Private Contractor Fees,73372-DOMICILIARY CARE,294.00,Revenue,30/01/2015,Social Care & Inclusion
WC52-0903,CASHFRIDAY,Commissioning,OP COMMISSIONING,Third Party Payments,Private Contractor Fees,73372-DOMICILIARY CARE,315.00,Revenue,26/01/2015,Social Care & Inclusion
WC52-0904,CASHFRIDAY,Commissioning,OP COMMISSIONING,Third Party Payments,Private Contractor Fees,73372-DOMICILIARY CARE,338.00,Revenue,14/01/2015,Social Care & Inclusion
WC52-0905,CASHFRIDAY,Commissioning,OP COMMISSIONING,Third Party Payments,Private Contractor Fees,73372-DOMICILIARY CARE,342.00,Revenue,26/01/2015,Social Care & Inclusion
WC52-0906,CASHFRIDAY,Commissioning,OP COMMISSIONING,Third Party Payments,Private Contractor Fees,73372-DOMICILIARY CARE,347.75,Revenue,14/01/2015,Social Care & Inclusion
WC52-0907,CASHFRIDAY,Commissioning,OP COMMISSIONING,Third Party Payments,Private Contractor Fees,73372-DOMICILIARY CARE,349.00,Revenue,14/01/2015,Social Care & Inclusion
WC52-0908,CASHFRIDAY,Commissioning,OP COMMISSIONING,Third Party Payments,Private Contractor Fees,73372-DOMICILIARY CARE,349.00,Revenue,19/01/2015,Social Care & Inclusion
WC52-0909,CASHFRIDAY,Commissioning,OP COMMISSIONING,Third Party Payments,Private Contractor Fees,73372-DOMICILIARY CARE,349.00,Revenue,27/01/2015,Social Care & Inclusion
WC52-0910,CASHFRIDAY,Commissioning,OP COMMISSIONING,Third Party Payments,Private Contractor Fees,73372-DOMICILIARY CARE,367.50,Revenue,15/01/2015,Social Care & Inclusion
WC52-0911,CASHFRIDAY,Commissioning,OP COMMISSIONING,Third Party Payments,Private Contractor Fees,73372-DOMICILIARY CARE,378.00,Revenue,30/01/2015,Social Care & Inclusion
WC52-0912,CASHFRIDAY,Commissioning,OP COMMISSIONING,Third Party Payments,Private Contractor Fees,73372-DOMICILIARY CARE,383.25,Revenue,14/01/2015,Social Care & Inclusion
WC52-0913,CASHFRIDAY,Commissioning,OP COMMISSIONING,Third Party Payments,Private Contractor Fees,73372-DOMICILIARY CARE,383.25,Revenue,15/01/2015,Social Care & Inclusion
WC52-0914,CASHFRIDAY,Commissioning,OP COMMISSIONING,Third Party Payments,Private Contractor Fees,73372-DOMICILIARY CARE,383.25,Revenue,26/01/2015,Social Care & Inclusion
WC52-0915,CASHFRIDAY,Commissioning,OP COMMISSIONING,Third Party Payments,Private Contractor Fees,73372-DOMICILIARY CARE,383.25,Revenue,30/01/2015,Social Care & Inclusion
WC52-0916,CASHFRIDAY,Commissioning,OP COMMISSIONING,Third Party Payments,Private Contractor Fees,73372-DOMICILIARY CARE,392.00,Revenue,14/01/2015,Social Care & Inclusion
WC52-0917,CASHFRIDAY,Commissioning,OP COMMISSIONING,Third Party Payments,Private Contractor Fees,73372-DOMICILIARY CARE,407.25,Revenue,30/01/2015,Social Care & Inclusion
WC52-0918,CASHFRIDAY,Commissioning,OP COMMISSIONING,Third Party Payments,Private Contractor Fees,73372-DOMICILIARY CARE,410.75,Revenue,14/01/2015,Social Care & Inclusion
WC52-0919,CASHFRIDAY,Commissioning,OP COMMISSIONING,Third Party Payments,Private Contractor Fees,73372-DOMICILIARY CARE,410.75,Revenue,15/01/2015,Social Care & Inclusion
WC52-0920,CASHFRIDAY,Commissioning,OP COMMISSIONING,Third Party Payments,Private Contractor Fees,73372-DOMICILIARY CARE,410.75,Revenue,26/01/2015,Social Care & Inclusion
WC52-0921,CASHFRIDAY,Commissioning,OP COMMISSIONING,Third Party Payments,Private Contractor Fees,73372-DOMICILIARY CARE,411.50,Revenue,14/01/2015,Social Care & Inclusion
WC52-0922,CASHFRIDAY,Commissioning,OP COMMISSIONING,Third Party Payments,Private Contractor Fees,73372-DOMICILIARY CARE,422.00,Revenue,26/01/2015,Social Care & Inclusion
WC52-0923,CASHFRIDAY,Commissioning,OP COMMISSIONING,Third Party Payments,Private Contractor Fees,73372-DOMICILIARY CARE,423.50,Revenue,14/01/2015,Social Care & Inclusion
WC52-0924,CASHFRIDAY,Commissioning,OP COMMISSIONING,Third Party Payments,Private Contractor Fees,73372-DOMICILIARY CARE,427.00,Revenue,15/01/2015,Social Care & Inclusion
WC52-0925,CASHFRIDAY,Commissioning,OP COMMISSIONING,Third Party Payments,Private Contractor Fees,73372-DOMICILIARY CARE,427.00,Revenue,26/01/2015,Social Care & Inclusion
WC52-0926,CASHFRIDAY,Commissioning,OP COMMISSIONING,Third Party Payments,Private Contractor Fees,73372-DOMICILIARY CARE,434.00,Revenue,14/01/2015,Social Care & Inclusion
WC52-0927,CASHFRIDAY,Commissioning,OP COMMISSIONING,Third Party Payments,Private Contractor Fees,73372-DOMICILIARY CARE,434.00,Revenue,27/01/2015,Social Care & Inclusion
WC52-0928,CASHFRIDAY,Commissioning,OP COMMISSIONING,Third Party Payments,Private Contractor Fees,73372-DOMICILIARY CARE,435.00,Revenue,14/01/2015,Social Care & Inclusion
WC52-0929,CASHFRIDAY,Commissioning,OP COMMISSIONING,Third Party Payments,Private Contractor Fees,73372-DOMICILIARY CARE,443.00,Revenue,27/01/2015,Social Care & Inclusion
WC52-0930,CASHFRIDAY,Commissioning,OP COMMISSIONING,Third Party Payments,Private Contractor Fees,73372-DOMICILIARY CARE,444.50,Revenue,14/01/2015,Social Care & Inclusion
WC52-0931,CASHFRIDAY,Commissioning,OP COMMISSIONING,Third Party Payments,Private Contractor Fees,73372-DOMICILIARY CARE,444.50,Revenue,14/01/2015,Social Care & Inclusion
WC52-0932,CASHFRIDAY,Commissioning,OP COMMISSIONING,Third Party Payments,Private Contractor Fees,73372-DOMICILIARY CARE,444.50,Revenue,15/01/2015,Social Care & Inclusion
WC52-0933,CASHFRIDAY,Commissioning,OP COMMISSIONING,Third Party Payments,Private Contractor Fees,73372-DOMICILIARY CARE,444.50,Revenue,19/01/2015,Social Care & Inclusion
WC52-0934,CASHFRIDAY,Commissioning,OP COMMISSIONING,Third Party Payments,Private Contractor Fees,73372-DOMICILIARY CARE,444.50,Revenue,26/01/2015,Social Care & Inclusion
WC52-0935,CASHFRIDAY,Commissioning,OP COMMISSIONING,Third Party Payments,Private Contractor Fees,73372-DOMICILIARY CARE,463.50,Revenue,14/01/2015,Social Care & Inclusion
WC52-0936,CASHFRIDAY,Commissioning,CONCESSIONARY TRAVEL,Third Party Payments,Private Contractor Fees,73372-DOMICILIARY CARE,464.00,Revenue,13/01/2015,Social Care & Inclusion
WC52-0937,CASHFRIDAY,Commissioning,OP COMMISSIONING,Third Party Payments,Private Contractor Fees,73372-DOMICILIARY CARE,475.52,Revenue,15/01/2015,Social Care & Inclusion
WC52-0938,CASHFRIDAY,Commissioning,OP COMMISSIONING,Third Party Payments,Private Contractor Fees,73372-DOMICILIARY CARE,479.00,Revenue,13/01/2015,Social Care & Inclusion
WC52-0939,CASHFRIDAY,Commissioning,OP COMMISSIONING,Third Party Payments,Private Contractor Fees,73372-DOMICILIARY CARE,489.00,Revenue,14/01/2015,Social Care & Inclusion
WC52-0940,CASHFRIDAY,Commissioning,OP COMMISSIONING,Third Party Payments,Private Contractor Fees,73372-DOMICILIARY CARE,503.31,Revenue,14/01/2015,Social Care & Inclusion
WC52-0941,CASHFRIDAY,Commissioning,OP COMMISSIONING,Third Party Payments,Private Contractor Fees,73372-DOMICILIARY CARE,509.00,Revenue,26/01/2015,Social Care & Inclusion
WC52-0942,CASHFRIDAY,Commissioning,OP COMMISSIONING,Third Party Payments,Private Contractor Fees,73372-DOMICILIARY CARE,515.50,Revenue,30/01/2015,Social Care & Inclusion
WC52-0943,CASHFRIDAY,Commissioning,OP COMMISSIONING,Third Party Payments,Private Contractor Fees,73372-DOMICILIARY CARE,533.00,Revenue,13/01/2015,Social Care & Inclusion
WC52-0944,CASHFRIDAY,Commissioning,OP COMMISSIONING,Third Party Payments,Private Contractor Fees,73372-DOMICILIARY CARE,588.00,Revenue,14/01/2015,Social Care & Inclusion
WC52-0945,CASHFRIDAY,Commissioning,OP COMMISSIONING,Third Party Payments,Private Contractor Fees,73372-DOMICILIARY CARE,594.50,Revenue,13/01/2015,Social Care & Inclusion
WC52-0946,CASHFRIDAY,Commissioning,OP COMMISSIONING,Third Party Payments,Private Contractor Fees,73372-DOMICILIARY CARE,603.25,Revenue,14/01/2015,Social Care & Inclusion
WC52-0947,CASHFRIDAY,Commissioning,OP COMMISSIONING,Third Party Payments,Private Contractor Fees,73372-DOMICILIARY CARE,603.25,Revenue,19/01/2015,Social Care & Inclusion
WC52-0948,CASHFRIDAY,Commissioning,OP COMMISSIONING,Third Party Payments,Private Contractor Fees,73372-DOMICILIARY CARE,603.25,Revenue,26/01/2015,Social Care & Inclusion
WC52-0949,CASHFRIDAY,Commissioning,OP COMMISSIONING,Third Party Payments,Private Contractor Fees,73372-DOMICILIARY CARE,644.63,Revenue,30/01/2015,Social Care & Inclusion
WC52-0950,CASHFRIDAY,Commissioning,OP COMMISSIONING,Third Party Payments,Private Contractor Fees,73372-DOMICILIARY CARE,656.00,Revenue,14/01/2015,Social Care & Inclusion
WC52-0951,CASHFRIDAY,Commissioning,OP COMMISSIONING,Third Party Payments,Private Contractor Fees,73372-DOMICILIARY CARE,656.00,Revenue,15/01/2015,Social Care & Inclusion
WC52-0952,CASHFRIDAY,Commissioning,OP COMMISSIONING,Third Party Payments,Private Contractor Fees,73372-DOMICILIARY CARE,656.00,Revenue,26/01/2015,Social Care & Inclusion
WC52-0953,CASHFRIDAY,Commissioning,OP COMMISSIONING,Third Party Payments,Private Contractor Fees,73372-DOMICILIARY CARE,698.00,Revenue,14/01/2015,Social Care & Inclusion
WC52-0954,CASHFRIDAY,Commissioning,OP COMMISSIONING,Third Party Payments,Private Contractor Fees,73372-DOMICILIARY CARE,763.50,Revenue,14/01/2015,Social Care & Inclusion
WC52-0955,CASHFRIDAY,Commissioning,OP COMMISSIONING,Third Party Payments,Private Contractor Fees,73372-DOMICILIARY CARE,784.00,Revenue,13/01/2015,Social Care & Inclusion
WC52-0956,CASHFRIDAY,Commissioning,OP COMMISSIONING,Third Party Payments,Private Contractor Fees,73372-DOMICILIARY CARE,818.81,Revenue,13/01/2015,Social Care & Inclusion
WC52-0957,CASHFRIDAY,Commissioning,OP COMMISSIONING,Third Party Payments,Private Contractor Fees,73372-DOMICILIARY CARE,828.00,Revenue,14/01/2015,Social Care & Inclusion
WC52-0958,CASHFRIDAY,Commissioning,OP COMMISSIONING,Third Party Payments,Private Contractor Fees,73372-DOMICILIARY CARE,828.00,Revenue,14/01/2015,Social Care & Inclusion
WC52-0959,CASHFRIDAY,Commissioning,OP COMMISSIONING,Third Party Payments,Private Contractor Fees,73372-DOMICILIARY CARE,887.50,Revenue,13/01/2015,Social Care & Inclusion
WC52-0960,CASHFRIDAY,Commissioning,OP COMMISSIONING,Third Party Payments,Private Contractor Fees,73372-DOMICILIARY CARE,889.00,Revenue,13/01/2015,Social Care & Inclusion
WC52-0961,CASHFRIDAY,Commissioning,OP COMMISSIONING,Third Party Payments,Private Contractor Fees,73372-DOMICILIARY CARE,"1,037.00",Revenue,14/01/2015,Social Care & Inclusion
WC52-0962,CASHFRIDAY,Commissioning,OP COMMISSIONING,Third Party Payments,Private Contractor Fees,73372-DOMICILIARY CARE,"1,050.00",Revenue,14/01/2015,Social Care & Inclusion
WC52-0963,CASHFRIDAY,Commissioning,OP COMMISSIONING,Third Party Payments,Private Contractor Fees,73372-DOMICILIARY CARE,"1,192.75",Revenue,14/01/2015,Social Care & Inclusion
WC52-0964,CATCHER MEDIA,"Prevention, Workforce and Partnerships",PARENTING TEAM,Supplies & Services,"Equip,Furniture & Materials",69900-TALKING BOOKS - GENERAL,590.00,Revenue,16/01/2015,Childrens
WC52-0965,CATHEDRAL LEASING LTD,Provider,EMPLOYMENT LINKS TO WORK,Supplies & Services,"Equip,Furniture & Materials",60500-GENERAL MATERIALS,704.76,Revenue,01/01/2015,Social Care & Inclusion
WC52-0966,REDACTED,"Access,Assessment & Care Management",LD COMMISSIONING,Transfer Payments,Transfer Payments,76422-DIRECT PAYMENTS TO SOCIAL SERVICES CLIENTS,622.68,Revenue,12/01/2015,Social Care & Inclusion
WC52-0967,REDACTED,Mental Health,MH COMMISSIONING,Transfer Payments,Transfer Payments,76422-DIRECT PAYMENTS TO SOCIAL SERVICES CLIENTS,690.48,Revenue,12/01/2015,Social Care & Inclusion
WC52-0968,REDACTED,Corporate Parenting,INTERNAL FOSTER CARE PROVISION,Third Party Payments,Private Contractor Fees,74006-HOLIDAY/CHRISTMAS ALLOWANCE-FOSTER CARERS-OTH AGENCY PROVISION,417.56,Revenue,19/01/2015,Childrens
WC52-0969,REDACTED,"Access,Assessment & Care Management",LD COMMISSIONING,Transfer Payments,Transfer Payments,76422-DIRECT PAYMENTS TO SOCIAL SERVICES CLIENTS,388.40,Revenue,12/01/2015,Social Care & Inclusion
WC52-0970,REDACTED,Specialist Services Management,FAMILY SUPPORT - DIRECT PAYMENTS,Transfer Payments,Transfer Payments,76422-DIRECT PAYMENTS TO SOCIAL SERVICES CLIENTS,"1,014.26",Revenue,12/01/2015,Childrens
WC52-0971,REDACTED,Corporate Parenting,INTERNAL FOSTER CARE PROVISION,Third Party Payments,Private Contractor Fees,74006-HOLIDAY/CHRISTMAS ALLOWANCE-FOSTER CARERS-OTH AGENCY PROVISION,417.56,Revenue,19/01/2015,Childrens
WC52-0972,CE RISK SAFETY AND SECURITY LTD,Property Services,CENTRALISED MAINTENANCE,Third Party Payments,Private Contractor Fees,73002-SECURITY-PRIV CONTRACTOR FEES,300.00,Revenue,16/01/2015,Regeneration
WC52-0973,CE RISK SAFETY AND SECURITY LTD,Property Services,CENTRALISED MAINTENANCE,Third Party Payments,Private Contractor Fees,73002-SECURITY-PRIV CONTRACTOR FEES,310.00,Revenue,16/01/2015,Regeneration
WC52-0974,CE RISK SAFETY AND SECURITY LTD,Housing Services,TENANCY SERVICE,Third Party Payments,Private Contractor Fees,73002-SECURITY-PRIV CONTRACTOR FEES,"4,953.20",Revenue,13/01/2015,Resources
WC52-0975,CE RISK SAFETY AND SECURITY LTD,Housing Services,TENANCY SERVICE,Third Party Payments,Private Contractor Fees,73002-SECURITY-PRIV CONTRACTOR FEES,"7,653.77",Revenue,13/01/2015,Resources
WC52-0976,CE RISK SAFETY AND SECURITY LTD,Property Services,CENTRAL OFFICE ACCOMMODATION,Third Party Payments,Private Contractor Fees,73002-SECURITY-PRIV CONTRACTOR FEES,"7,653.77",Revenue,16/01/2015,Regeneration
WC52-0977,CEDER LODGE NURSING HOME,Commissioning,OP COMMISSIONING,Third Party Payments,Private Contractor Fees,73373-RESIDENTIAL & NURSING CARE PLACEMENTS,"2,140.29",Revenue,20/01/2015,Social Care & Inclusion
WC52-0978,CENTRO WMPTA,Vulnerable Children,INITIAL RESPONSE SERVICE,Transport,Other Transport,53100-OFFICER/STAFF-PUBLIC TRANSPORT,585.00,Revenue,20/01/2015,Childrens
WC52-0979,CENTRO WMPTA,Planning & Building Control,DIRECTORATE SUPPORT,Transport,Other Transport,53100-OFFICER/STAFF-PUBLIC TRANSPORT,900.00,Revenue,20/01/2015,Regeneration
WC52-0980,REDACTED,Corporate Parenting,INTERNAL FOSTER CARE PROVISION,Third Party Payments,Private Contractor Fees,74006-HOLIDAY/CHRISTMAS ALLOWANCE-FOSTER CARERS-OTH AGENCY PROVISION,561.32,Revenue,19/01/2015,Childrens
WC52-0981,CERTAS ENERGY UK LIMITED,Clean and Green Services,TARMAC,Transport,Other Transport,50301-FUEL-TRANSPORT RUN COSTS,498.40,Revenue,02/01/2015,Neighbourhood Services
WC52-0982,CERTAS ENERGY UK LIMITED,Clean and Green Services,FUEL STOCK ACCOUNT,Transport,Other Transport,50301-FUEL-TRANSPORT RUN COSTS,"1,424.70",Revenue,02/01/2015,Neighbourhood Services
WC52-0983,CERTAS ENERGY UK LIMITED,Clean and Green Services,FUEL STOCK ACCOUNT,Transport,Other Transport,50301-FUEL-TRANSPORT RUN COSTS,"14,010.00",Revenue,02/01/2015,Neighbourhood Services
WC52-0984,CERTAS ENERGY UK LIMITED,Clean and Green Services,FUEL STOCK ACCOUNT,Transport,Other Transport,50301-FUEL-TRANSPORT RUN COSTS,"17,676.04",Revenue,29/01/2015,Neighbourhood Services
WC52-0985,CERTAS ENERGY UK LIMITED,Clean and Green Services,FUEL STOCK ACCOUNT,Transport,Other Transport,50301-FUEL-TRANSPORT RUN COSTS,"18,279.48",Revenue,15/01/2015,Neighbourhood Services
WC52-0986,CERTAS ENERGY UK LIMITED,Clean and Green Services,FUEL STOCK ACCOUNT,Transport,Other Transport,50301-FUEL-TRANSPORT RUN COSTS,"18,314.05",Revenue,29/01/2015,Neighbourhood Services
WC52-0987,CERTAS ENERGY UK LIMITED,Clean and Green Services,FUEL STOCK ACCOUNT,Transport,Other Transport,50301-FUEL-TRANSPORT RUN COSTS,"19,112.87",Revenue,02/01/2015,Neighbourhood Services
WC52-0988,CF ASSET FINANCE LIMITED,Strategic Development,INTEGRATED BUSINESS PROCESSES & SERVICES,Supplies & Services,"Equip,Furniture & Materials",60009-LEASING/HIRE/RENTAL-EQUIPMENT,284.35,Revenue,09/01/2015,Social Care & Inclusion
WC52-0989,CF ASSET FINANCE LIMITED,Strategic Development,INTEGRATED BUSINESS PROCESSES & SERVICES,Supplies & Services,"Equip,Furniture & Materials",60009-LEASING/HIRE/RENTAL-EQUIPMENT,326.84,Revenue,14/01/2015,Social Care & Inclusion
WC52-0990,CF CORPORATE FINANCE LTD,"Prevention, Workforce and Partnerships","CLUSTER 3 BLOXWICH,BLAKENALL,HATHERTON,E STAMMERS",Supplies & Services,"Equip,Furniture & Materials",60004-PHOTOGRAPHIC DEVELOPMENT/PRINTING-EQUIPMENT,255.00,Revenue,16/01/2015,Childrens
WC52-0991,CF CORPORATE FINANCE LTD,"Prevention, Workforce and Partnerships","CLUSTER 3 BLOXWICH,BLAKENALL,HATHERTON,E STAMMERS",Supplies & Services,"Equip,Furniture & Materials",60009-LEASING/HIRE/RENTAL-EQUIPMENT,442.40,Revenue,08/01/2015,Childrens
WC52-0992,CFT FOSTERING LIMITED,Corporate Parenting,EXTERNAL FOSTER CARE PROVISION,Third Party Payments,Private Contractor Fees,74037-INDEPENDENT FOSTER CARE-OTH AGENCY PROVISION,"5,661.60",Revenue,01/01/2015,Childrens
WC52-0993,CFT FOSTERING LIMITED,Corporate Parenting,EXTERNAL FOSTER CARE PROVISION,Third Party Payments,Private Contractor Fees,74037-INDEPENDENT FOSTER CARE-OTH AGENCY PROVISION,"5,850.32",Revenue,05/01/2015,Childrens
WC52-0994,CHANDOS LODGE CARE HOME,Commissioning,OP COMMISSIONING,Third Party Payments,Private Contractor Fees,73373-RESIDENTIAL & NURSING CARE PLACEMENTS,"1,632.00",Revenue,27/01/2015,Social Care & Inclusion
WC52-0995,REDACTED,Commissioning,CONCESSIONARY TRAVEL,Transfer Payments,Transfer Payments,76422-DIRECT PAYMENTS TO SOCIAL SERVICES CLIENTS,748.00,Revenue,12/01/2015,Social Care & Inclusion
WC52-0996,REDACTED,Corporate Parenting,INTERNAL FOSTER CARE PROVISION,Third Party Payments,Private Contractor Fees,74006-HOLIDAY/CHRISTMAS ALLOWANCE-FOSTER CARERS-OTH AGENCY PROVISION,639.40,Revenue,19/01/2015,Childrens
WC52-0997,CHARLES CODDY WALKER ACADEMY,Education,EARLY YEARS - 3 YR OLDS,Third Party Payments,Grants to Other Orgs,66505-OTHER-GRANTS TO OTHER ORGS,"24,760.21",Revenue,19/01/2015,Childrens
WC52-0998,CHARLIE CATERPILLAR'S DAY NURSERY,"Prevention, Workforce and Partnerships",CLUSTER 5 DARLASTON,Employees,Agency,34305-AGENCY STAFF-EMPLOYEES,579.64,Revenue,21/01/2015,Childrens
WC52-0999,CHARLIE CATERPILLAR'S DAY NURSERY,"Prevention, Workforce and Partnerships",CLUSTER 5 DARLASTON,Employees,Agency,34305-AGENCY STAFF-EMPLOYEES,634.85,Revenue,01/01/2015,Childrens
WC52-1000,CHARLIE CATERPILLAR'S DAY NURSERY,Education,EARLY YEARS - 2 YR OLDS,Third Party Payments,Grants to Other Orgs,66505-OTHER-GRANTS TO OTHER ORGS,"18,997.65",Revenue,23/01/2015,Childrens
WC52-1001,CHARMEND LTD,"Access,Assessment & Care Management",TRANSITIONAL CARE SUPPORT TEAM,Third Party Payments,Private Contractor Fees,73019-PSE'S-PRIV CONTRACTOR FEES,"26,571.43",Revenue,01/01/2015,Social Care & Inclusion
WC52-1002,CHARTER CARE,Commissioning,OP COMMISSIONING,Third Party Payments,Private Contractor Fees,73372-DOMICILIARY CARE,"36,721.82",Revenue,08/01/2015,Social Care & Inclusion
WC52-1003,CHASE HOUSE AND PARTNER,"Access,Assessment & Care Management",LD COMMISSIONING,Third Party Payments,Private Contractor Fees,73373-RESIDENTIAL & NURSING CARE PLACEMENTS,"4,445.68",Revenue,13/01/2015,Social Care & Inclusion
WC52-1004,CHASE HOUSE AND PARTNER,"Access,Assessment & Care Management",LD COMMISSIONING,Third Party Payments,Private Contractor Fees,73373-RESIDENTIAL & NURSING CARE PLACEMENTS,"4,445.68",Revenue,20/01/2015,Social Care & Inclusion
WC52-1005,CHASE HOUSE AND PARTNER,"Access,Assessment & Care Management",LD COMMISSIONING,Third Party Payments,Private Contractor Fees,73373-RESIDENTIAL & NURSING CARE PLACEMENTS,"4,455.44",Revenue,13/01/2015,Social Care & Inclusion
WC52-1006,CHASE HOUSE AND PARTNER,"Access,Assessment & Care Management",LD COMMISSIONING,Third Party Payments,Private Contractor Fees,73373-RESIDENTIAL & NURSING CARE PLACEMENTS,"4,455.44",Revenue,20/01/2015,Social Care & Inclusion
WC52-1007,CHASE HOUSE AND PARTNER,"Access,Assessment & Care Management",LD COMMISSIONING,Third Party Payments,Private Contractor Fees,73373-RESIDENTIAL & NURSING CARE PLACEMENTS,"4,562.48",Revenue,13/01/2015,Social Care & Inclusion
